Workbook

Sheet LDC Info
AA3: Algoma Power Inc.
AA4: Atikokan Hydro Inc.
AA5: Attawapiskat Power Corporation
AA6: Bluewater Power Distribution Corp.
AA7: Brant County Power
AA8: Brantford Power Inc.
AA9: Burlington Hydro Inc.
AA10: Cambridge and North Dumfries Hydro
AA11: Canadian Niagara Power Inc. – Eastern Ontario Power/Fort Erie/Port Colborne
AA12: Centre Wellington Hydro Ltd.
N13: Version 1.1 | AA13: Chapleau Public Utilities Corporation
D14: Utility Name | E14: Peterborough Distribution Inc. | AA14: COLLUS Power Corp.
AA15: Cooperative Hydro Embrun Inc.
D16: Service Territory | E16: Peterborough, Lakefield, Norwood | AA16: E.L.K. Energy Inc.
AA17: Enersource Hydro Mississauga Inc.
D18: Assigned EB Number | E18: EB-2012-0160 | AA18: Entegrus Powerlines Inc.
AA19: ENWIN Utilities Ltd.
D20: Name of Contact and Title | E20: Amanda Jankowski, Manager, Finance and Regulatory Compliance | AA20: Erie Thames Powerlines Corp.
AA21: Espanola Regional Hydro Distribution Corporation
D22: Phone Number | E22: (705) 748-9301 x1272 | AA22: Essex Powerlines Corporation
AA23: Festival Hydro Inc.
D24: Email Address | E24: ajankowski@peterboroughutilities.ca | AA24: Fort Albany Power Corporation
AA25: Fort Frances Power Corporation
D26: Bridge Year | E26: 2012 | AA26: Greater Sudbury Hydro Inc.
AA27: Grimsby Power Inc.
D28: Test Year | E28: 2013 | AA28: Guelph Hydro Electric Systems Inc.
AA29: Haldimand County Hydro Inc.
D30: Last Rebasing Year | E30: 2009 | AA30: Guelph Hydro Electric Systems Inc.
AA31: Halton Hills Hydro Inc.
B32: Notes | AA32: Hearst Power Distribution Co. Ltd.
AA33: Horizon Utilities Corporation
C34: Pale green cells represent input cells. | AA34: Hydro 2000 Inc.
AA35: Hydro Hawkesbury Inc.
C36: Pale blue cells represent drop-down lists. The applicant should select the appropriate item from the drop-down list. | AA36: Hydro One Brampton Networks Inc.
AA37: Hydro One Networks Inc.
C38: White cells contain fixed values, automatically generated values or formulae. | AA38: Hydro One Remote Communities Inc.
AA39: Hydro Ottawa Limited
AA40: Innisfil Hydro Dist. Systems Limited
AA41: Kashechewan Power Corporation
AA42: Kenora Hydro Electric Corporation Ltd.
AA43: Kingston Hydro Corporation
AA44: Kitchener-Wilmot Hydro Inc.
AA45: Lakefront Utilities Inc.
AA46: Lakeland Power Distribution Ltd.
AA47: London Hydro Inc.
AA48: Midland Power Utility Corporation
AA49: Milton Hydro Distribution Inc.
AA50: Newmarket – Tay Power Distribution Ltd.
AA51: Niagara Peninsula Energy Inc.
AA52: Niagara-on-the-Lake Hydro Inc.
AA53: Norfolk Power Distribution Ltd.
AA54: North Bay Hydro Distribution Limited
AA55: Northern Ontario Wires Inc.
AA56: Oakville Hydro Distribution Inc.
AA57: Orangeville Hydro Limited
AA58: Orillia Power Distribution Corp.
AA59: Oshawa PUC Networks Inc.
AA60: Ottawa River Power Corporation
AA61: Parry Sound Power Corporation
AA62: Peterborough Distribution Inc.
AA63: PowerStream Inc.
AA64: PUC Distribution Inc.
AA65: Renfrew Hydro Inc.
AA66: Rideau St. Lawrence Distribution Inc.
AA67: St. Thomas Energy Inc.
AA68: Sioux Lookout Hydro Inc.
AA69: Thunder Bay Hydro Electricity Distribution
AA70: Tillsonburg Hydro Inc.
AA71: Toronto Hydro-Electric System Limited
AA72: Veridian Connections Inc.
AA73: Wasaga Distribution Inc.
AA74: Waterloo North Hydro Inc.
AA75: Welland Hydro Electric System Corp.
AA76: Wellington North Power Inc.
AA77: West Coast Huron Energy Inc.
AA78: Westario Power Inc.
AA79: Whitby Hydro Electric Corporation
AA80: Woodstock Hydro Services Inc.

Sheet Index
A15: 1 | B15: LDC Information Sheet | E15: 19 | F15: Appendix 2-H OM&A Detailed Analysis
A16: 2 | B16: Index | E16: 20 | F16: Appendix 2-I OM&A Summary Analysis
A17: 3 | B17: Appendix 2-A Capital Projects | E17: 21 | F17: Appendix 2-J OM&A Cost Drivers
A18: 4 | B18: Appendix 2-B Fixed Asset Continuity | E18: 22 | F18: Appendix 2-K Employee Costs
A19: 5 | B19: Appendix 2-CA CGAAP Depreciation Expense 2011 | E19: 23 | F19: Appendix 2-L OM&A per Cust FTEE
A20: 6 | B20: Appendix 2-CB MIFRS Depreciation Expense 2011 | E20: 24 | F20: Appendix 2-M Regulatory Costs
A21: 7 | B21: Appendix 2-CC MIFRS Depreciation Expense 2012 | E21: 25 | F21: Appendix 2-N Corp Cost Allocation
A22: 8 | B22: Appendix 2-CD MIFRS Depreciation Expense 2013 | E22: 26 | F22: Appendix 2-OA Capital Structure and Cost of Capital
A23: 9 | B23: Appendix 2-CE CGAAP Depreciation Expense 2011 | E23: 27 | F23: Appendix 2-OB Debt Instruments
A24: 10 | B24: Appendix 2-CF CGAAP Depreciation Expense 2012 | E24: 28 | F24: Appendix 2-P Cost Allocation
A25: 11 | B25: Appendix 2-CG MIFRS Depreciation Expense 2012 | E25: 29 | F25: Appendix 2-Q Cost of Service Embedded Distributor
A26: 12 | B26: Appendix 2-CH MIFRS Depreciation Expense 2013 | E26: 30 | F26: Appendix 2-R Loss Factors
A27: 13 | B27: Appendix 2-CI Alternative Accounting Standards Depreciation Expense | E27: 31 | F27: Appendix 2-S Stranded Meters
A28: 14 | B28: Appendix 2-D Overhead | E28: 32 | F28: Appendix 2-T 1592 Tax Variance
A29: 15 | B29: Appendix 2-EA PP&E Deferral Account - 2012 IFRS Adopters | E29: 33 | F29: Appendix 2-U IFRS Transition Costs
A30: 16 | B30: Appendix 2-EB PP&E Deferral Account - 2013 IFRS Adopters | E30: 34 | F30: Appendix 2-V Rev Reconciliation
A31: 17 | B31: Appendix 2-F Other Operating Revenue | E31: 35 | F31: Appendix 2-W Bill Impacts
A32: 18 | B32: Appendix 2-G Detailed OM&A Expenses | E32: 36 | F32: Appendix 2-X CoS Flowchart

Sheet App.2-A_Capital Projects
G1: File Number: | H1: ='LDC Info'!$E$18 -> EB-2012-0160
G2: Exhibit: | H2: 2
G3: Tab: | H3: 3
G4: Schedule: | H4: 2
G5: Page: | H5: 2-33
G7: Date:
A9: Appendix 2-A
A10: Capital Projects Table
A13: Projects | B13: =IF(ISBLANK('LDC Info'!E26), "Year 1", 'LDC Info'!E26-5) -> 2007 | C13: =IF(ISBLANK('LDC Info'!E26), "Year 2", 'LDC Info'!E26-4) -> 2008 | D13: =IF(ISBLANK('LDC Info'!E26), "Year 3", 'LDC Info'!E26-3) -> 2009 | E13: =IF(ISBLANK('LDC Info'!E26), "Year 4", 'LDC Info'!E26-2) -> 2010 | F13: =IF(ISBLANK('LDC Info'!E26), "Year 5", 'LDC Info'!E26-1) -> 2011 | G13: 2012 Actual | H13: ='LDC Info'!E28 & " Test Year" -> 2013 Test Year
A14: Reporting Basis | B14: CGAAP | C14: CGAAP | D14: CGAAP | E14: CGAAP | F14: CGAAP | G14: CGAAP | H14: CGAAP
A15: Overhead Distribution Renewal
A16: Springbrook/Daleview area | B16: 190146
A17: Hunter St. - Belmont to Park | B17: 106580
A18: Juliet Avenue | B18: 139420
A19: Sherbrooke St.- Goodfellow to Wallis | B19: 229431
A20: Ashburnham/Neal Drive area | C20: 391415
A21: Romaine Street | C21: 210167
A22: Erskine Avenue | D22: 129136
A23: Hilliard Street and Hedonics Road | D23: 128599
A24: Brealey Drive/Kawartha Heights | D24: 166976
A25: Water Street North | E25: 120862
A26: Insulator Replacement Program | E26: 88611 | H26: 75000
A27: Ford Street/Brunswick Avenue area | F27: 103813
A28: Cumberland Avenue OH line conversion | G28: 142674
A29: Cumberland Avenue 27.6 kV extension
A30: Parkhill Road West 27.6 kV extension | H30: 225000
A31: Parkhill Road West Feeder | H31: 0
A32: 44kV OH River Crossing | H32: 136000
A33: 44 kV Switches Upgrades/SCADA | G33: =231175+67439 -> 298614 | H33: 0
A34: Aylmer St. project | H34: 350000
A35: Simcoe St. conversion | H35: 150000
A36: other | B36: 132325 | C36: 84733 | D36: 151986 | E36: 160700 | F36: 45123 | G36: =566233-142674 -> 423559 | H36: 126000
A37: Sub-Total | B37: =SUM(B16:B36) -> 797902 | C37: =SUM(C16:C36) -> 686315 | D37: 576697 | E37: 370173 | F37: 148936 | G37: =SUM(G16:G36) -> 864847 | H37: 1062000
A39: Pole Replacement Program | E39: 787323 | F39: 612201 | G39: 755684 | H39: 550000
A41: New 27.6 kV Feeder (M9) | B41: 390684
A43: New 27.6 kV Feeder (M8) | E43: 553658 | F43: 390633
A45: Substations
A46: MS1 | B46: 88783
A47: MS19 | E47: 138165
A48: MS65 | H48: =130000-130000 -> 0
A49: other | D49: 53340 | E49: 120366 | F49: 43578 | G49: =36417+54853+48883+25394-2 -> 165545 | H49: 50000
A50: Sub-Total | B50: =SUM(B46:B49) -> 88783 | C50: =SUM(C46:C49) -> 0 | D50: 53340 | E50: 258531 | F50: 43578 | G50: =SUM(G46:G49) -> 165545 | H50: 50000
A52: New Underground Subdivisions | B52: 508996 | C52: 263747 | D52: 562718 | E52: 203362 | F52: 780762 | G52: 760470 | H52: 600000
A54: New Underground Lines - Cumberland | E54: 271489
A55: New Underground Lines - George St. (Holiday Inn) | H55: 113000
A57: Underground Distribution Renewal:
A58: Cumberland Avenue feeder | B58: 947599
A59: Cumberland Avenue 27.6 kV line | B59: 81181
A60: Ashburnham by the Lake Subdivision | B60: 445632
A61: Cherryhill Road area | B61: 262834 | C61: 898942
A62: Marsdale, Maria, Walker | B62: 146308
A63: Garside Road area | C63: 141137
A64: Hilltop, Cottonwood, Ashdale, Bayleaf, Stocker, Whitefield | D64: 725876
A65: St. Paul's Street/Herbert Street area | E65: 187950
A66: George Street Vault Reconstruction | E66: 87493
A67: University Heights | F67: 476892 | G67: 448381
A68: Cameron Street/Orpington Road | G68: 143552
A69: Stewart Drive | G69: 90044
A70: Montcalm, Amundsen, Cartier | H70: 659500
A71: Downtown underground vault rebuild | H71: 75000
A72: other | B72: 168762 | D72: 33631 | E72: 369438 | G72: =790338-448381-143552-90044 -> 108361 | H72: 570000
A73: Sub-Total | B73: =SUM(B58:B72) -> 2052316 | C73: =SUM(C58:C72) -> 1040079 | D73: 759507 | E73: 644881 | F73: 476892 | G73: =SUM(G58:G72) -> 790338 | H73: 1304500
A75: Overhead Distribution - Customer Demand
A76: Major Bennett Drive
A77: other | B77: 105825 | C77: 240432 | D77: 188239 | E77: 192072 | F77: 102194 | G77: =46118+138047 -> 184165 | H77: 0
A78: Sub-Total | B78: =SUM(B76:B77) -> 105825 | C78: =SUM(C76:C77) -> 240432 | D78: 188239 | E78: 192072 | F78: 102194 | G78: =SUM(G76:G77) -> 184165 | H78: 0
A80: OH Distribution Lines - Customer Demand
A81: Line extension to new YMCA - Aylmer Street | B81: 201753
A82: Line extension to new subdivision - Maria St. | B82: 95257
A83: George Street/Argyle Street | D83: 158793
A84: Carnegie Avenue | E84: 184483
A85: Cumberland Avenue | E85: 167157
A86: Heritage Trail | E86: 80354
A87: Major Bennett line extension | G87: 97091
A88: Bethune St. relocation | H88: 80000
A89: other | B89: 213181 | C89: 298296 | D89: 127917 | E89: 152176 | G89: =262237-97091 -> 165146 | H89: 225000
A90: Sub-Total | B90: =SUM(B81:B89) -> 510191 | C90: =SUM(C81:C89) -> 298296 | D90: 286710 | E90: 584170 | F90: 0 | G90: =SUM(G81:G89) -> 262237 | H90: 305000
A92: Relocations requested by Municipality
A93: Highway 7/Highway 115 intersection | D93: 341986
A94: Lansdowne Street/Borden Avenue | E94: 243340
A95: Borden Avenue/Erskine Avenue | E95: 211350
A96: Romaine Street | E96: 116467
A97: Lansdowne Street West | F97: 1210702
A98: Water Street North | F98: 183199
A99: Hilliard Street/Towerhill Road | F99: 182913
A100: Peterborough Regional Health Centre | G100: 178411
A101: Parkhill Road West | H101: 0
A102: Parkhill Road/Brealey Drive | H102: 0
A103: Chemong Road | H103: 0
A104: Charlotte St. U/G | H104: 750000
A105: other | B105: 168012 | E105: 12013 | F105: 39675 | G105: =317578-178411 -> 139167 | H105: 109500
A106: Sub-Total | B106: =SUM(B93:B105) -> 168012 | C106: 0 | D106: 341986 | E106: 583170 | F106: 1616489 | G106: =SUM(G93:G105) -> 317578 | H106: 859500
A108: Services
A109: Overhead Services | B109: 249665 | C109: 280957 | D109: 129046 | E109: 282403 | F109: 219312 | G109: =343876+396210-105897-149892 -> 484297 | H109: 245000
A110: Overhead Services - Sherwood Drive | G110: 105897
A111: Overhead Services - Market Plaza | G111: 149892
A112: Underground Services - Primary | B112: 373106 | C112: 391578 | D112: 263976 | E112: 218379 | F112: 506545 | G112: 720150 | H112: 455000
A113: Underground Services - Secondary | C113: 222475 | D113: 147884 | E113: 81148 | F113: 200161 | G113: 346651 | H113: 220000
A114: Underground Services - Residential | B114: 323392 | C114: 332151 | D114: 270942 | E114: 332199 | F114: 267422 | G114: 222120 | H114: 221000
A115: 600V service upgrades | F115: 204349 | G115: 277334
A116: Sub-Total | B116: =SUM(B109:B115) -> 946163 | C116: =SUM(C109:C115) -> 1227161 | D116: 811848 | E116: 914129 | F116: 1397789 | G116: =SUM(G109:G115) -> 2306341 | H116: 1141000
A118: Transformers | B118: 163769 | C118: 228183 | D118: 357224 | E118: 639091 | F118: 136884 | G118: =331055-70499 -> 260556 | H118: 130000
A120: Meters | B120: 159914 | C120: 78634 | D120: 402177 | E120: 155039 | F120: 379911 | G120: 487068 | H120: 205000
A122: Generation Connection
A123: Trent Rapids Power | E123: 595310
A124: Trent University | H124: 35000
A125: other | G125: =9917+14640 -> 24557 | H125: 10000
A126: Sub-Total | B126: =SUM(B123:B125) -> 0 | C126: =SUM(C123:C125) -> 0 | D126: 0 | E126: 595310 | F126: 0 | G126: =SUM(G123:G125) -> 24557 | H126: 45000
A128: MDMR Integration | G128: 666078
A129: Load Control | G129: 0
A130: Miscellaneous | B130: 216086 | C130: 40273 | D130: 117500 | E130: 42577 | F130: 181795 | G130: 0 | H130: 0
A132: Contributions and Grants | B132: -738434 | C132: -555079 | D132: -900355 | E132: -1448545 | F132: -1410810 | G132: -1671900 | H132: -1893000
A135: Total | B135: =B37+B39+B41+B43+B50+B52+B54+B73+B78+B90+B106+B116+B118+B120+B126+B128+B129+B130+B132 -> 5370207 | C135: 3548041 | D135: 3557591 | E135: 5346430 | F135: 4857254 | G135: =G37+G39+G41+G43+G50+G52+G54+G73+G78+G90+G106+G116+G118+G120+G126+G128+G129+G130+G132 -> 6173564 | H135: =H37+H39+H41+H43+H50+H52+H54+H55+H73+H78+H90+H106+H116+H118+H120+H126+H128+H129+H130+H132 -> 4472000
A138: Notes:
A140: 1 Please provide a breakdown of the major components of each capital project. Please ensure that all projects below the materiality threshold are included in the miscellaneous line. Add more projects as required.
A142: 2 Amounts should be reported on a MIFRS basis for the adoption year and any subsequent years, only.

Sheet App.2-B_Fixed Asset Conti 2009
M1: File Number: | N1: ='LDC Info'!$E$18 -> EB-2012-0160
M2: Exhibit: | N2: 2
M3: Tab: | N3: 2
M4: Schedule: | N4: 1
M5: Page: | N5: 2-21
M7: Date:
A9: Appendix 2-B
A10: Fixed Asset Continuity Schedule
F12: Year | G12: 2009
E14: Cost | K14: Accumulated Depreciation
A15: CCA Class | B15: OEB | C15: Description | D15: Depreciation Rate | E15: Opening Balance | F15: Additions | G15: Disposals | H15: Closing Balance | J15: Opening Balance | K15: Additions | L15: Disposals | M15: Closing Balance | N15: Net Book Value
A16: 12 | B16: 1611 | C16: Computer Software (Formally known as Account 1925) | E16: 57747 | H16: =E16+F16+G16 -> 57747 | J16: -57747 | M16: =J16+K16+L16 -> -57747 | N16: =H16+M16 -> 0
A17: CEC | B17: 1612 | C17: Land Rights (Formally known as Account 1906) | H17: =E17+F17+G17 -> 0 | M17: =J17+K17+L17 -> 0 | N17: =H17+M17 -> 0
A18: N/A | B18: 1805 | C18: Land | E18: 134968 | H18: =E18+F18+G18 -> 134968 | M18: =J18+K18+L18 -> 0 | N18: =H18+M18 -> 134968
A19: 47 | B19: 1808 | C19: Buildings | E19: 296412 | H19: =E19+F19+G19 -> 296412 | J19: -45530 | K19: -7802 | M19: =J19+K19+L19 -> -53332 | N19: =H19+M19 -> 243080
A20: 13 | B20: 1810 | C20: Leasehold Improvements | H20: 0 | M20: 0 | N20: 0
A21: 47 | B21: 1815 | C21: Transformer Station Equipment >50 kV | H21: 0 | M21: 0 | N21: 0
A22: 47 | B22: 1820 | C22: Distribution Station Equipment <50 kV | E22: =2004278+1254927 -> 3259205 | F22: 53340 | H22: 3312545 | J22: =-563485-206684 -> -770169 | K22: =-74751-50197 -> -124948 | M22: -895117 | N22: 2417428
A23: 47 | B23: 1825 | C23: Storage Battery Equipment | H23: 0 | M23: 0 | N23: 0
A24: 47 | B24: 1830 | C24: Poles, Towers & Fixtures | E24: 19274297 | F24: 580780 | H24: 19855077 | J24: -7123608 | K24: -910080 | M24: -8033688 | N24: 11821389
A25: 47 | B25: 1835 | C25: Overhead Conductors & Devices | E25: 6132245 | F25: 633295 | H25: 6765540 | J25: -1309088 | K25: -259986 | M25: -1569074 | N25: 5196466
A26: 47 | B26: 1840 | C26: Underground Conduit | E26: 12905907 | F26: 581864 | H26: 13487771 | J26: -3901929 | K26: -553183 | M26: -4455112 | N26: 9032659
A27: 47 | B27: 1845 | C27: Underground Conductors & Devices | E27: 3630276 | F27: 592675 | H27: 4222951 | J27: -353067 | K27: -107948 | M27: -461015 | N27: 3761936
A28: 47 | B28: 1850 | C28: Line Transformers | E28: 15008971 | F28: =1544023-546539 -> 997484 | G28: =-584400+546539 -> -37861 | H28: 15968594 | J28: -5242714 | K28: =-813482+118110+33999 -> -661373 | L28: 0 | M28: -5904087 | N28: 10064507
A29: 47 | B29: 1855 | C29: Services (Overhead & Underground) | E29: 11072442 | F29: 616331 | H29: 11688773 | J29: -2600764 | K29: -360660 | M29: -2961424 | N29: 8727349
A30: 47 | B30: 1860 | C30: Meters | E30: =4289898-1254927 -> 3034971 | F30: 402177 | G30: -1679841 | H30: 1757307 | J30: =-1461962+206684 -> -1255278 | K30: =-107208+50197 -> -57011 | L30: 737749 | M30: -574540 | N30: 1182767
A31: 47 | B31: 1860 | C31: Meters (Smart Meters) | H31: 0 | M31: 0 | N31: 0
A32: N/A | B32: 1905 | C32: Land | H32: 0 | M32: 0 | N32: 0
A33: 47 | B33: 1908 | C33: Buildings & Fixtures | H33: 0 | M33: 0 | N33: 0
A34: 13 | B34: 1910 | C34: Leasehold Improvements | H34: 0 | M34: 0 | N34: 0
A35: 8 | B35: 1915 | C35: Office Furniture & Equipment (10 years) | H35: 0 | M35: 0 | N35: 0
A36: 8 | B36: 1915 | C36: Office Furniture & Equipment (5 years) | H36: 0 | M36: 0 | N36: 0
A37: 10 | B37: 1920 | C37: Computer Equipment - Hardware | H37: 0 | M37: 0 | N37: 0
A38: 45 | B38: 1920 | C38: Computer Equip.-Hardware(Post Mar. 22/04) | H38: 0 | M38: 0 | N38: 0
A39: 45.1 | B39: 1920 | C39: Computer Equip.-Hardware(Post Mar. 19/07) | H39: 0 | M39: 0 | N39: 0
A40: 10 | B40: 1930 | C40: Transportation Equipment | H40: 0 | M40: 0 | N40: 0
A41: 8 | B41: 1935 | C41: Stores Equipment | H41: 0 | M41: 0 | N41: 0
A42: 8 | B42: 1940 | C42: Tools, Shop & Garage Equipment | H42: 0 | M42: 0 | N42: 0
A43: 8 | B43: 1945 | C43: Measurement & Testing Equipment | H43: 0 | M43: 0 | N43: 0
A44: 8 | B44: 1950 | C44: Power Operated Equipment | H44: 0 | M44: 0 | N44: 0
A45: 8 | B45: 1955 | C45: Communications Equipment | H45: 0 | M45: 0 | N45: 0
A46: 8 | B46: 1955 | C46: Communication Equipment (Smart Meters) | H46: 0 | M46: 0 | N46: 0
A47: 8 | B47: 1960 | C47: Miscellaneous Equipment | E47: 82385 | H47: 82385 | J47: -49431 | K47: -16477 | M47: -65908 | N47: 16477
B48: 1970 | C48: Load Management Controls Customer Premises | E48: 1633219 | H48: =E48+F48+G48 -> 1633219 | J48: -1373891 | K48: -163322 | M48: =J48+K48+L48 -> -1537213 | N48: =H48+M48 -> 96006
A49: 47 | B49: 1975 | C49: Load Management Controls Utility Premises | H49: 0 | M49: 0 | N49: 0
A50: 47 | B50: 1980 | C50: System Supervisor Equipment | H50: 0 | M50: 0 | N50: 0
A51: 47 | B51: 1985 | C51: Miscellaneous Fixed Assets | H51: 0 | M51: 0 | N51: 0
A52: 47 | B52: 1995 | C52: Contributions & Grants | E52: -8184401 | F52: -900355 | H52: -9084756 | M52: 0 | N52: -9084756
C53: Sub-total | E53: =SUM(E16:E52) -> 68338644 | F53: =SUM(F16:F52) -> 3557591 | G53: -1717702 | H53: 70178533 | J53: =SUM(J16:J52) -> -24083216 | K53: =SUM(K16:K52) -> -3222790 | L53: =SUM(L16:L52) -> 737749 | M53: -26568257 | N53: 43610276
B54: 2055 | C54: Contract work in progress-electric | E54: 2405424 | F54: 6842616 | G54: -4457946 | H54: 4790094 | M54: =J54+K54+L54 -> 0 | N54: =H54+M54 -> 4790094
C55: Total | E55: =E53+E54 -> 70744068 | F55: =F53+F54 -> 10400207 | G55: -6175648 | H55: 74968627 | J55: =J53+J54 -> -24083216 | K55: =K53+K54 -> -3222790 | L55: =L53+L54 -> 737749 | M55: =M53+M54 -> -26568257 | N55: =N53+N54 -> 48400370
J57: Less: Fully Allocated Depreciation
A58: 10 | C58: Transportation | J58: Transportation
A59: 8 | C59: Stores Equipment | J59: Stores Equipment
J60: Net Depreciation | L60: =K55+SUM(L58:L59) -> -3222790
A62: Notes:
A64: 1 | B64: Tables in the format outlined above covering all fixed asset accounts should be submitted for the Test Year, Bridge Year and all relevant historical years. At a minimum , the applicant must provide data for the earlier of: 1) all historical years back to its last rebasing; or 2) at least three years of historical actuals, in addition to Bridge Year and Test Year forecasts.
A67: 2 | B67: The "CCA Class" for fixed assets should agree with the CCA Class used for tax purposes in Tax Returns. Fixed Assets sub-components may be used where the underlying asset components are classified under multiple CCA Classes for tax purposes. If an applicant uses any different classes from those shown in the table, an explanation should be provided. (also see note 3 below).
A70: 3 | B70: The table may need to be customized for a utility's asset categories or for any new asset accounts announced or authorized by the Board.
A72: 4 | B72: The depreciation column (D) is not required as the relevant information will be provided in the following 2-C series of appendices.

Sheet App.2-B_Fixed Asset Conti 2010
M1: File Number: | N1: ='LDC Info'!$E$18 -> EB-2012-0160
M2: Exhibit: | N2: 2
M3: Tab: | N3: 2
M4: Schedule: | N4: 1
M5: Page: | N5: 2-21
M7: Date:
A9: Appendix 2-B
A10: Fixed Asset Continuity Schedule
F12: Year | G12: 2010
E14: Cost | K14: Accumulated Depreciation
A15: CCA Class | B15: OEB | C15: Description | D15: Depreciation Rate | E15: Opening Balance | F15: Additions | G15: Disposals | H15: Closing Balance | J15: Opening Balance | K15: Additions | L15: Disposals | M15: Closing Balance | N15: Net Book Value
A16: 12 | B16: 1611 | C16: Computer Software (Formally known as Account 1925) | E16: ='App.2-B_Fixed Asset Conti 2009'!H16 -> 57747 | H16: =E16+F16+G16 -> 57747 | J16: ='App.2-B_Fixed Asset Conti 2009'!M16 -> -57747 | M16: =J16+K16+L16 -> -57747 | N16: =H16+M16 -> 0
A17: CEC | B17: 1612 | C17: Land Rights (Formally known as Account 1906) | E17: ='App.2-B_Fixed Asset Conti 2009'!H17 -> 0 | H17: =E17+F17+G17 -> 0 | J17: ='App.2-B_Fixed Asset Conti 2009'!M17 -> 0 | M17: =J17+K17+L17 -> 0 | N17: =H17+M17 -> 0
A18: N/A | B18: 1805 | C18: Land | E18: ='App.2-B_Fixed Asset Conti 2009'!H18 -> 134968 | H18: =E18+F18+G18 -> 134968 | J18: ='App.2-B_Fixed Asset Conti 2009'!M18 -> 0 | M18: =J18+K18+L18 -> 0 | N18: =H18+M18 -> 134968
A19: 47 | B19: 1808 | C19: Buildings | E19: ='App.2-B_Fixed Asset Conti 2009'!H19 -> 296412 | F19: 115146 | H19: =E19+F19+G19 -> 411558 | J19: ='App.2-B_Fixed Asset Conti 2009'!M19 -> -53332 | K19: -10105 | M19: =J19+K19+L19 -> -63437 | N19: =H19+M19 -> 348121
A20: 13 | B20: 1810 | C20: Leasehold Improvements | E20: ='App.2-B_Fixed Asset Conti 2009'!H20 -> 0 | H20: 0 | J20: ='App.2-B_Fixed Asset Conti 2009'!M20 -> 0 | M20: 0 | N20: 0
A21: 47 | B21: 1815 | C21: Transformer Station Equipment >50 kV | E21: ='App.2-B_Fixed Asset Conti 2009'!H21 -> 0 | H21: 0 | J21: ='App.2-B_Fixed Asset Conti 2009'!M21 -> 0 | M21: 0 | N21: 0
A22: 47 | B22: 1820 | C22: Distribution Station Equipment <50 kV | E22: ='App.2-B_Fixed Asset Conti 2009'!H22 -> 3312545 | F22: 143385 | H22: 3455930 | J22: ='App.2-B_Fixed Asset Conti 2009'!M22 -> -895117 | K22: =-83086-50197 -> -133283 | M22: -1028400 | N22: 2427530
A23: 47 | B23: 1825 | C23: Storage Battery Equipment | E23: ='App.2-B_Fixed Asset Conti 2009'!H23 -> 0 | H23: 0 | J23: ='App.2-B_Fixed Asset Conti 2009'!M23 -> 0 | M23: 0 | N23: 0
A24: 47 | B24: 1830 | C24: Poles, Towers & Fixtures | E24: ='App.2-B_Fixed Asset Conti 2009'!H24 -> 19855077 | F24: 1722528 | H24: 21577605 | J24: ='App.2-B_Fixed Asset Conti 2009'!M24 -> -8033688 | K24: -941162 | M24: -8974850 | N24: 12602755
A25: 47 | B25: 1835 | C25: Overhead Conductors & Devices | E25: ='App.2-B_Fixed Asset Conti 2009'!H25 -> 6765540 | F25: 1153716 | H25: 7919256 | J25: ='App.2-B_Fixed Asset Conti 2009'!M25 -> -1569074 | K25: -298718 | M25: -1867792 | N25: 6051464
A26: 47 | B26: 1840 | C26: Underground Conduit | E26: ='App.2-B_Fixed Asset Conti 2009'!H26 -> 13487771 | F26: 781958 | H26: 14269729 | J26: ='App.2-B_Fixed Asset Conti 2009'!M26 -> -4455112 | K26: -585370 | M26: -5040482 | N26: 9229247
A27: 47 | B27: 1845 | C27: Underground Conductors & Devices | E27: ='App.2-B_Fixed Asset Conti 2009'!H27 -> 4222951 | F27: 390979 | H27: 4613930 | J27: ='App.2-B_Fixed Asset Conti 2009'!M27 -> -461015 | K27: -124062 | M27: -585077 | N27: 4028853
A28: 47 | B28: 1850 | C28: Line Transformers | E28: ='App.2-B_Fixed Asset Conti 2009'!H28 -> 15968594 | F28: 1547126 | H28: 17515720 | J28: ='App.2-B_Fixed Asset Conti 2009'!M28 -> -5904087 | K28: -792428 | M28: -6696515 | N28: 10819205
A29: 47 | B29: 1855 | C29: Services (Overhead & Underground) | E29: ='App.2-B_Fixed Asset Conti 2009'!H29 -> 11688773 | F29: 785098 | H29: 12473871 | J29: ='App.2-B_Fixed Asset Conti 2009'!M29 -> -2961424 | K29: -384371 | M29: -3345795 | N29: 9128076
A30: 47 | B30: 1860 | C30: Meters | E30: ='App.2-B_Fixed Asset Conti 2009'!H30 -> 1757307 | F30: 155039 | G30: -1380993 | H30: 531353 | J30: ='App.2-B_Fixed Asset Conti 2009'!M30 -> -574540 | K30: =-71548+50197 -> -21351 | L30: 273974 | M30: -321917 | N30: 209436
A31: 47 | B31: 1860 | C31: Meters (Smart Meters) | E31: ='App.2-B_Fixed Asset Conti 2009'!H31 -> 0 | H31: 0 | J31: ='App.2-B_Fixed Asset Conti 2009'!M31 -> 0 | M31: 0 | N31: 0
A32: N/A | B32: 1905 | C32: Land | E32: ='App.2-B_Fixed Asset Conti 2009'!H32 -> 0 | H32: 0 | J32: ='App.2-B_Fixed Asset Conti 2009'!M32 -> 0 | M32: 0 | N32: 0
A33: 47 | B33: 1908 | C33: Buildings & Fixtures | E33: ='App.2-B_Fixed Asset Conti 2009'!H33 -> 0 | H33: 0 | J33: ='App.2-B_Fixed Asset Conti 2009'!M33 -> 0 | M33: 0 | N33: 0
A34: 13 | B34: 1910 | C34: Leasehold Improvements | E34: ='App.2-B_Fixed Asset Conti 2009'!H34 -> 0 | H34: 0 | J34: ='App.2-B_Fixed Asset Conti 2009'!M34 -> 0 | M34: 0 | N34: 0
A35: 8 | B35: 1915 | C35: Office Furniture & Equipment (10 years) | E35: ='App.2-B_Fixed Asset Conti 2009'!H35 -> 0 | H35: 0 | J35: ='App.2-B_Fixed Asset Conti 2009'!M35 -> 0 | M35: 0 | N35: 0
A36: 8 | B36: 1915 | C36: Office Furniture & Equipment (5 years) | E36: ='App.2-B_Fixed Asset Conti 2009'!H36 -> 0 | H36: 0 | J36: ='App.2-B_Fixed Asset Conti 2009'!M36 -> 0 | M36: 0 | N36: 0
A37: 10 | B37: 1920 | C37: Computer Equipment - Hardware | E37: ='App.2-B_Fixed Asset Conti 2009'!H37 -> 0 | H37: 0 | J37: ='App.2-B_Fixed Asset Conti 2009'!M37 -> 0 | M37: 0 | N37: 0
A38: 45 | B38: 1920 | C38: Computer Equip.-Hardware(Post Mar. 22/04) | E38: ='App.2-B_Fixed Asset Conti 2009'!H38 -> 0 | H38: 0 | J38: ='App.2-B_Fixed Asset Conti 2009'!M38 -> 0 | M38: 0 | N38: 0
A39: 45.1 | B39: 1920 | C39: Computer Equip.-Hardware(Post Mar. 19/07) | E39: ='App.2-B_Fixed Asset Conti 2009'!H39 -> 0 | H39: 0 | J39: ='App.2-B_Fixed Asset Conti 2009'!M39 -> 0 | M39: 0 | N39: 0
A40: 10 | B40: 1930 | C40: Transportation Equipment | E40: ='App.2-B_Fixed Asset Conti 2009'!H40 -> 0 | H40: 0 | J40: ='App.2-B_Fixed Asset Conti 2009'!M40 -> 0 | M40: 0 | N40: 0
A41: 8 | B41: 1935 | C41: Stores Equipment | E41: ='App.2-B_Fixed Asset Conti 2009'!H41 -> 0 | H41: 0 | J41: ='App.2-B_Fixed Asset Conti 2009'!M41 -> 0 | M41: 0 | N41: 0
A42: 8 | B42: 1940 | C42: Tools, Shop & Garage Equipment | E42: ='App.2-B_Fixed Asset Conti 2009'!H42 -> 0 | H42: 0 | J42: ='App.2-B_Fixed Asset Conti 2009'!M42 -> 0 | M42: 0 | N42: 0
A43: 8 | B43: 1945 | C43: Measurement & Testing Equipment | E43: ='App.2-B_Fixed Asset Conti 2009'!H43 -> 0 | H43: 0 | J43: ='App.2-B_Fixed Asset Conti 2009'!M43 -> 0 | M43: 0 | N43: 0
A44: 8 | B44: 1950 | C44: Power Operated Equipment | E44: ='App.2-B_Fixed Asset Conti 2009'!H44 -> 0 | H44: 0 | J44: ='App.2-B_Fixed Asset Conti 2009'!M44 -> 0 | M44: 0 | N44: 0
A45: 8 | B45: 1955 | C45: Communications Equipment | E45: ='App.2-B_Fixed Asset Conti 2009'!H45 -> 0 | H45: 0 | J45: ='App.2-B_Fixed Asset Conti 2009'!M45 -> 0 | M45: 0 | N45: 0
A46: 8 | B46: 1955 | C46: Communication Equipment (Smart Meters) | E46: ='App.2-B_Fixed Asset Conti 2009'!H46 -> 0 | H46: 0 | J46: ='App.2-B_Fixed Asset Conti 2009'!M46 -> 0 | M46: 0 | N46: 0
A47: 8 | B47: 1960 | C47: Miscellaneous Equipment | E47: ='App.2-B_Fixed Asset Conti 2009'!H47 -> 82385 | H47: 82385 | J47: ='App.2-B_Fixed Asset Conti 2009'!M47 -> -65908 | K47: -16477 | M47: -82385 | N47: 0
B48: 1970 | C48: Load Management Controls Customer Premises | E48: ='App.2-B_Fixed Asset Conti 2009'!H48 -> 1633219 | H48: 1633219 | J48: ='App.2-B_Fixed Asset Conti 2009'!M48 -> -1537213 | K48: -17841 | M48: -1555054 | N48: 78165
A49: 47 | B49: 1975 | C49: Load Management Controls Utility Premises | E49: ='App.2-B_Fixed Asset Conti 2009'!H49 -> 0 | H49: 0 | J49: ='App.2-B_Fixed Asset Conti 2009'!M49 -> 0 | M49: 0 | N49: 0
A50: 47 | B50: 1980 | C50: System Supervisor Equipment | E50: ='App.2-B_Fixed Asset Conti 2009'!H50 -> 0 | H50: 0 | J50: ='App.2-B_Fixed Asset Conti 2009'!M50 -> 0 | M50: 0 | N50: 0
A51: 47 | B51: 1985 | C51: Miscellaneous Fixed Assets | E51: ='App.2-B_Fixed Asset Conti 2009'!H51 -> 0 | H51: 0 | J51: ='App.2-B_Fixed Asset Conti 2009'!M51 -> 0 | M51: 0 | N51: 0
A52: 47 | B52: 1995 | C52: Contributions & Grants | E52: ='App.2-B_Fixed Asset Conti 2009'!H52 -> -9084756 | F52: -1448545 | H52: -10533301 | J52: ='App.2-B_Fixed Asset Conti 2009'!M52 -> 0 | M52: 0 | N52: -10533301
C53: Sub-total | E53: =SUM(E16:E52) -> 70178533 | F53: =SUM(F16:F52) -> 5346430 | G53: -1380993 | H53: 74143970 | J53: =SUM(J16:J52) -> -26568257 | K53: -3325168 | L53: 273974 | M53: -29619451 | N53: 44524519
B54: 2055 | C54: Contract work in progress-electric | E54: ='App.2-B_Fixed Asset Conti 2009'!H54 -> 4790094 | F54: 5486295 | G54: =-6794975 -> -6794975 | H54: 3481414 | M54: 0 | N54: 3481414
C55: Total | E55: =E53+E54 -> 74968627 | F55: =F53+F54 -> 10832725 | G55: -8175968 | H55: 77625384 | J55: =J53+J54 -> -26568257 | K55: -3325168 | L55: 273974 | M55: -29619451 | N55: 48005933
J57: Less: Fully Allocated Depreciation
A58: 10 | C58: Transportation | J58: Transportation
A59: 8 | C59: Stores Equipment | J59: Stores Equipment
J60: Net Depreciation | L60: =K55+SUM(L58:L59) -> -3325168
A62: Notes:
A64: 1 | B64: Tables in the format outlined above covering all fixed asset accounts should be submitted for the Test Year, Bridge Year and all relevant historical years. At a minimum , the applicant must provide data for the earlier of: 1) all historical years back to its last rebasing; or 2) at least three years of historical actuals, in addition to Bridge Year and Test Year forecasts.
A67: 2 | B67: The "CCA Class" for fixed assets should agree with the CCA Class used for tax purposes in Tax Returns. Fixed Assets sub-components may be used where the underlying asset components are classified under multiple CCA Classes for tax purposes. If an applicant uses any different classes from those shown in the table, an explanation should be provided. (also see note 3 below).
A70: 3 | B70: The table may need to be customized for a utility's asset categories or for any new asset accounts announced or authorized by the Board.
A72: 4 | B72: The depreciation column (D) is not required as the relevant information will be provided in the following 2-C series of appendices.

Sheet App.2-B_Fixed Asset Conti 2011
M1: File Number: | N1: ='LDC Info'!$E$18 -> EB-2012-0160
M2: Exhibit: | N2: 2
M3: Tab: | N3: 2
M4: Schedule: | N4: 1
M5: Page: | N5: 2-21
M7: Date:
A9: Appendix 2-B
A10: Fixed Asset Continuity Schedule
F12: Year | G12: 2011
E14: Cost | K14: Accumulated Depreciation
A15: CCA Class | B15: OEB | C15: Description | D15: Depreciation Rate | E15: Opening Balance | F15: Additions | G15: Disposals | H15: Closing Balance | J15: Opening Balance | K15: Additions | L15: Disposals | M15: Closing Balance | N15: Net Book Value
A16: 12 | B16: 1611 | C16: Computer Software (Formally known as Account 1925) | E16: ='App.2-B_Fixed Asset Conti 2010'!H16 -> 57747 | H16: =E16+F16+G16 -> 57747 | J16: ='App.2-B_Fixed Asset Conti 2010'!M16 -> -57747 | M16: =J16+K16+L16 -> -57747 | N16: =H16+M16 -> 0
A17: CEC | B17: 1612 | C17: Land Rights (Formally known as Account 1906) | E17: ='App.2-B_Fixed Asset Conti 2010'!H17 -> 0 | H17: =E17+F17+G17 -> 0 | J17: ='App.2-B_Fixed Asset Conti 2010'!M17 -> 0 | M17: =J17+K17+L17 -> 0 | N17: =H17+M17 -> 0
A18: N/A | B18: 1805 | C18: Land | E18: ='App.2-B_Fixed Asset Conti 2010'!H18 -> 134968 | H18: =E18+F18+G18 -> 134968 | J18: ='App.2-B_Fixed Asset Conti 2010'!M18 -> 0 | M18: =J18+K18+L18 -> 0 | N18: =H18+M18 -> 134968
A19: 47 | B19: 1808 | C19: Buildings | E19: ='App.2-B_Fixed Asset Conti 2010'!H19 -> 411558 | F19: 33257 | H19: =E19+F19+G19 -> 444815 | J19: ='App.2-B_Fixed Asset Conti 2010'!M19 -> -63437 | K19: -10770 | M19: =J19+K19+L19 -> -74207 | N19: =H19+M19 -> 370608
A20: 13 | B20: 1810 | C20: Leasehold Improvements | E20: ='App.2-B_Fixed Asset Conti 2010'!H20 -> 0 | H20: 0 | J20: ='App.2-B_Fixed Asset Conti 2010'!M20 -> 0 | M20: 0 | N20: 0
A21: 47 | B21: 1815 | C21: Transformer Station Equipment >50 kV | E21: ='App.2-B_Fixed Asset Conti 2010'!H21 -> 0 | H21: 0 | J21: ='App.2-B_Fixed Asset Conti 2010'!M21 -> 0 | M21: 0 | N21: 0
A22: 47 | B22: 1820 | C22: Distribution Station Equipment <50 kV | E22: ='App.2-B_Fixed Asset Conti 2010'!H22 -> 3455930 | F22: 10321 | H22: 3466251 | J22: ='App.2-B_Fixed Asset Conti 2010'!M22 -> -1028400 | K22: =-81652-50197 -> -131849 | M22: -1160249 | N22: 2306002
A23: 47 | B23: 1825 | C23: Storage Battery Equipment | E23: ='App.2-B_Fixed Asset Conti 2010'!H23 -> 0 | H23: 0 | J23: ='App.2-B_Fixed Asset Conti 2010'!M23 -> 0 | M23: 0 | N23: 0
A24: 47 | B24: 1830 | C24: Poles, Towers & Fixtures | E24: ='App.2-B_Fixed Asset Conti 2010'!H24 -> 21577605 | F24: 1162945 | H24: 22740550 | J24: ='App.2-B_Fixed Asset Conti 2010'!M24 -> -8974850 | K24: -980155 | M24: -9955005 | N24: 12785545
A25: 47 | B25: 1835 | C25: Overhead Conductors & Devices | E25: ='App.2-B_Fixed Asset Conti 2010'!H25 -> 7919256 | F25: 1246554 | H25: 9165810 | J25: ='App.2-B_Fixed Asset Conti 2010'!M25 -> -1867792 | K25: -341743 | M25: -2209535 | N25: 6956275
A26: 47 | B26: 1840 | C26: Underground Conduit | E26: ='App.2-B_Fixed Asset Conti 2010'!H26 -> 14269729 | F26: 762011 | H26: 15031740 | J26: ='App.2-B_Fixed Asset Conti 2010'!M26 -> -5040482 | K26: -606382 | M26: -5646864 | N26: 9384876
A27: 47 | B27: 1845 | C27: Underground Conductors & Devices | E27: ='App.2-B_Fixed Asset Conti 2010'!H27 -> 4613930 | F27: 544162 | H27: 5158092 | J27: ='App.2-B_Fixed Asset Conti 2010'!M27 -> -585077 | K27: -134226 | M27: -719303 | N27: 4438789
A28: 47 | B28: 1850 | C28: Line Transformers | E28: ='App.2-B_Fixed Asset Conti 2010'!H28 -> 17515720 | F28: 1056375 | H28: 18572095 | J28: ='App.2-B_Fixed Asset Conti 2010'!M28 -> -6696515 | K28: =-888603+135700 -> -752903 | M28: -7449418 | N28: 11122677
A29: 47 | B29: 1855 | C29: Services (Overhead & Underground) | E29: ='App.2-B_Fixed Asset Conti 2010'!H29 -> 12473871 | F29: 1072528 | H29: 13546399 | J29: ='App.2-B_Fixed Asset Conti 2010'!M29 -> -3345795 | K29: -414053 | M29: -3759848 | N29: 9786551
A30: 47 | B30: 1860 | C30: Meters | E30: ='App.2-B_Fixed Asset Conti 2010'!H30 -> 531353 | F30: 379911 | H30: 911264 | J30: ='App.2-B_Fixed Asset Conti 2010'!M30 -> -321917 | K30: =-86650+50197 -> -36453 | M30: -358370 | N30: 552894
A31: 47 | B31: 1860 | C31: Meters (Smart Meters) | E31: ='App.2-B_Fixed Asset Conti 2010'!H31 -> 0 | H31: 0 | J31: ='App.2-B_Fixed Asset Conti 2010'!M31 -> 0 | M31: 0 | N31: 0
A32: N/A | B32: 1905 | C32: Land | E32: ='App.2-B_Fixed Asset Conti 2010'!H32 -> 0 | H32: 0 | J32: ='App.2-B_Fixed Asset Conti 2010'!M32 -> 0 | M32: 0 | N32: 0
A33: 47 | B33: 1908 | C33: Buildings & Fixtures | E33: ='App.2-B_Fixed Asset Conti 2010'!H33 -> 0 | H33: 0 | J33: ='App.2-B_Fixed Asset Conti 2010'!M33 -> 0 | M33: 0 | N33: 0
A34: 13 | B34: 1910 | C34: Leasehold Improvements | E34: ='App.2-B_Fixed Asset Conti 2010'!H34 -> 0 | H34: 0 | J34: ='App.2-B_Fixed Asset Conti 2010'!M34 -> 0 | M34: 0 | N34: 0
A35: 8 | B35: 1915 | C35: Office Furniture & Equipment (10 years) | E35: ='App.2-B_Fixed Asset Conti 2010'!H35 -> 0 | H35: 0 | J35: ='App.2-B_Fixed Asset Conti 2010'!M35 -> 0 | M35: 0 | N35: 0
A36: 8 | B36: 1915 | C36: Office Furniture & Equipment (5 years) | E36: ='App.2-B_Fixed Asset Conti 2010'!H36 -> 0 | H36: 0 | J36: ='App.2-B_Fixed Asset Conti 2010'!M36 -> 0 | M36: 0 | N36: 0
A37: 10 | B37: 1920 | C37: Computer Equipment - Hardware | E37: ='App.2-B_Fixed Asset Conti 2010'!H37 -> 0 | H37: 0 | J37: ='App.2-B_Fixed Asset Conti 2010'!M37 -> 0 | M37: 0 | N37: 0
A38: 45 | B38: 1920 | C38: Computer Equip.-Hardware(Post Mar. 22/04) | E38: ='App.2-B_Fixed Asset Conti 2010'!H38 -> 0 | H38: 0 | J38: ='App.2-B_Fixed Asset Conti 2010'!M38 -> 0 | M38: 0 | N38: 0
A39: 45.1 | B39: 1920 | C39: Computer Equip.-Hardware(Post Mar. 19/07) | E39: ='App.2-B_Fixed Asset Conti 2010'!H39 -> 0 | H39: 0 | J39: ='App.2-B_Fixed Asset Conti 2010'!M39 -> 0 | M39: 0 | N39: 0
A40: 10 | B40: 1930 | C40: Transportation Equipment | E40: ='App.2-B_Fixed Asset Conti 2010'!H40 -> 0 | H40: 0 | J40: ='App.2-B_Fixed Asset Conti 2010'!M40 -> 0 | M40: 0 | N40: 0
A41: 8 | B41: 1935 | C41: Stores Equipment | E41: ='App.2-B_Fixed Asset Conti 2010'!H41 -> 0 | H41: 0 | J41: ='App.2-B_Fixed Asset Conti 2010'!M41 -> 0 | M41: 0 | N41: 0
A42: 8 | B42: 1940 | C42: Tools, Shop & Garage Equipment | E42: ='App.2-B_Fixed Asset Conti 2010'!H42 -> 0 | H42: 0 | J42: ='App.2-B_Fixed Asset Conti 2010'!M42 -> 0 | M42: 0 | N42: 0
A43: 8 | B43: 1945 | C43: Measurement & Testing Equipment | E43: ='App.2-B_Fixed Asset Conti 2010'!H43 -> 0 | H43: 0 | J43: ='App.2-B_Fixed Asset Conti 2010'!M43 -> 0 | M43: 0 | N43: 0
A44: 8 | B44: 1950 | C44: Power Operated Equipment | E44: ='App.2-B_Fixed Asset Conti 2010'!H44 -> 0 | H44: 0 | J44: ='App.2-B_Fixed Asset Conti 2010'!M44 -> 0 | M44: 0 | N44: 0
A45: 8 | B45: 1955 | C45: Communications Equipment | E45: ='App.2-B_Fixed Asset Conti 2010'!H45 -> 0 | H45: 0 | J45: ='App.2-B_Fixed Asset Conti 2010'!M45 -> 0 | M45: 0 | N45: 0
A46: 8 | B46: 1955 | C46: Communication Equipment (Smart Meters) | E46: ='App.2-B_Fixed Asset Conti 2010'!H46 -> 0 | H46: 0 | J46: ='App.2-B_Fixed Asset Conti 2010'!M46 -> 0 | M46: 0 | N46: 0
A47: 8 | B47: 1960 | C47: Miscellaneous Equipment | E47: ='App.2-B_Fixed Asset Conti 2010'!H47 -> 82385 | H47: 82385 | J47: ='App.2-B_Fixed Asset Conti 2010'!M47 -> -82385 | M47: -82385 | N47: 0
B48: 1970 | C48: Load Management Controls Customer Premises | E48: ='App.2-B_Fixed Asset Conti 2010'!H48 -> 1633219 | H48: 1633219 | J48: ='App.2-B_Fixed Asset Conti 2010'!M48 -> -1555054 | K48: -15927 | M48: -1570981 | N48: 62238
A49: 47 | B49: 1975 | C49: Load Management Controls Utility Premises | E49: ='App.2-B_Fixed Asset Conti 2010'!H49 -> 0 | H49: 0 | J49: ='App.2-B_Fixed Asset Conti 2010'!M49 -> 0 | M49: 0 | N49: 0
A50: 47 | B50: 1980 | C50: System Supervisor Equipment | E50: ='App.2-B_Fixed Asset Conti 2010'!H50 -> 0 | H50: 0 | J50: ='App.2-B_Fixed Asset Conti 2010'!M50 -> 0 | M50: 0 | N50: 0
A51: 47 | B51: 1985 | C51: Miscellaneous Fixed Assets | E51: ='App.2-B_Fixed Asset Conti 2010'!H51 -> 0 | H51: 0 | J51: ='App.2-B_Fixed Asset Conti 2010'!M51 -> 0 | M51: 0 | N51: 0
A52: 47 | B52: 1995 | C52: Contributions & Grants | E52: ='App.2-B_Fixed Asset Conti 2010'!H52 -> -10533301 | F52: -1410810 | H52: -11944111 | J52: ='App.2-B_Fixed Asset Conti 2010'!M52 -> 0 | M52: 0 | N52: -11944111
C53: Sub-total | E53: =SUM(E16:E52) -> 74143970 | F53: =SUM(F16:F52) -> 4857254 | G53: 0 | H53: 79001224 | J53: =SUM(J16:J52) -> -29619451 | K53: -3424461 | L53: 0 | M53: -33043912 | N53: 45957312
B54: 2055 | C54: Contract work in progress-electric | E54: ='App.2-B_Fixed Asset Conti 2010'!H54 -> 3481414 | F54: 6203278 | G54: =-6268063 -> -6268063 | H54: 3416629 | M54: 0 | N54: 3416629
C55: Total | E55: =E53+E54 -> 77625384 | F55: =F53+F54 -> 11060532 | G55: -6268063 | H55: 82417853 | J55: =J53+J54 -> -29619451 | K55: -3424461 | L55: 0 | M55: -33043912 | N55: 49373941
J57: Less: Fully Allocated Depreciation
C58: Transfer Smart Meters from 1555 to Various Accounts | H58: =451964+5702472+44877 -> 6199313 | J58: Transfer Smart Meters from 1555 | M58: -1551124
C60: Revised Closing Balance Forward | H60: =H55+H58 -> 88617166 | J60: Revised Closing Balance Forward | M60: =M55+M58 -> -34595036
A62: Notes:
A64: 1 | B64: Tables in the format outlined above covering all fixed asset accounts should be submitted for the Test Year, Bridge Year and all relevant historical years. At a minimum , the applicant must provide data for the earlier of: 1) all historical years back to its last rebasing; or 2) at least three years of historical actuals, in addition to Bridge Year and Test Year forecasts.
A67: 2 | B67: The "CCA Class" for fixed assets should agree with the CCA Class used for tax purposes in Tax Returns. Fixed Assets sub-components may be used where the underlying asset components are classified under multiple CCA Classes for tax purposes. If an applicant uses any different classes from those shown in the table, an explanation should be provided. (also see note 3 below).
A70: 3 | B70: The table may need to be customized for a utility's asset categories or for any new asset accounts announced or authorized by the Board.
A72: 4 | B72: The depreciation column (D) is not required as the relevant information will be provided in the following 2-C series of appendices.

Sheet App.2-B_F Asset CGAAP 2012
M1: File Number: | N1: ='LDC Info'!$E$18 -> EB-2012-0160
M2: Exhibit: | N2: 2
M3: Tab: | N3: 2
M4: Schedule: | N4: 1
M5: Page: | N5: 2-21
M7: Date:
A9: Appendix 2-B
A10: Fixed Asset Continuity Schedule - CGAAP
F12: Year | G12: 2012 | H12: Actual
E14: Cost | K14: Accumulated Depreciation
A15: CCA Class | B15: OEB | C15: Description | D15: Depreciation Rate | E15: Opening Balance | F15: Additions | G15: Disposals | H15: Closing Balance | J15: Opening Balance | K15: Additions | L15: Disposals | M15: Closing Balance | N15: Net Book Value
A16: 12 | B16: 1611 | C16: Computer Software (Formally known as Account 1925) | E16: ='App.2-B_Fixed Asset Conti 2011'!H16+451964 -> 509711 | F16: =1118042-451964 -> 666078 | H16: =E16+F16+G16 -> 1175789 | J16: ='App.2-B_Fixed Asset Conti 2011'!M16-304136 -> -361883 | K16: =-441138+304136 -> -137002 | M16: =J16+K16+L16 -> -498885 | N16: =H16+M16 -> 676904
A17: CEC | B17: 1612 | C17: Land Rights (Formally known as Account 1906) | E17: ='App.2-B_Fixed Asset Conti 2011'!H17 -> 0 | H17: =E17+F17+G17 -> 0 | J17: ='App.2-B_Fixed Asset Conti 2011'!M17 -> 0 | M17: =J17+K17+L17 -> 0 | N17: =H17+M17 -> 0
A18: N/A | B18: 1805 | C18: Land | E18: ='App.2-B_Fixed Asset Conti 2011'!H18 -> 134968 | H18: =E18+F18+G18 -> 134968 | J18: ='App.2-B_Fixed Asset Conti 2011'!M18 -> 0 | M18: =J18+K18+L18 -> 0 | N18: =H18+M18 -> 134968
A19: 47 | B19: 1808 | C19: Buildings | E19: ='App.2-B_Fixed Asset Conti 2011'!H19 -> 444815 | F19: 91270 | H19: =E19+F19+G19 -> 536085 | J19: ='App.2-B_Fixed Asset Conti 2011'!M19 -> -74207 | K19: -11683 | M19: =J19+K19+L19 -> -85890 | N19: =H19+M19 -> 450195
A20: 13 | B20: 1810 | C20: Leasehold Improvements | E20: ='App.2-B_Fixed Asset Conti 2011'!H20 -> 0 | H20: 0 | J20: ='App.2-B_Fixed Asset Conti 2011'!M20 -> 0 | M20: 0 | N20: 0
A21: 47 | B21: 1815 | C21: Transformer Station Equipment >50 kV | E21: ='App.2-B_Fixed Asset Conti 2011'!H21 -> 0 | H21: 0 | J21: ='App.2-B_Fixed Asset Conti 2011'!M21 -> 0 | M21: 0 | N21: 0
A22: 47 | B22: 1820 | C22: Distribution Station Equipment <50 kV | E22: ='App.2-B_Fixed Asset Conti 2011'!H22 -> 3466251 | F22: =48883+25394 -> 74277 | H22: 3540528 | J22: ='App.2-B_Fixed Asset Conti 2011'!M22 -> -1160249 | K22: -132664 | M22: -1292913 | N22: 2247615
A23: 47 | B23: 1825 | C23: Storage Battery Equipment | E23: ='App.2-B_Fixed Asset Conti 2011'!H23 -> 0 | H23: 0 | J23: ='App.2-B_Fixed Asset Conti 2011'!M23 -> 0 | M23: 0 | N23: 0
A24: 47 | B24: 1830 | C24: Poles, Towers & Fixtures | E24: ='App.2-B_Fixed Asset Conti 2011'!H24 -> 22740550 | F24: 1033419 | H24: 23773969 | J24: ='App.2-B_Fixed Asset Conti 2011'!M24 -> -9955005 | K24: -999841 | M24: -10954846 | N24: 12819123
A25: 47 | B25: 1835 | C25: Overhead Conductors & Devices | E25: ='App.2-B_Fixed Asset Conti 2011'!H25 -> 9165810 | F25: 1134725 | H25: 10300535 | J25: ='App.2-B_Fixed Asset Conti 2011'!M25 -> -2209535 | K25: -362770 | M25: -2572305 | N25: 7728230
A26: 47 | B26: 1840 | C26: Underground Conduit | E26: ='App.2-B_Fixed Asset Conti 2011'!H26 -> 15031740 | F26: 900206 | H26: 15931946 | J26: ='App.2-B_Fixed Asset Conti 2011'!M26 -> -5646864 | K26: -633917 | M26: -6280781 | N26: 9651165
A27: 47 | B27: 1845 | C27: Underground Conductors & Devices | E27: ='App.2-B_Fixed Asset Conti 2011'!H27 -> 5158092 | F27: 511530 | H27: 5669622 | J27: ='App.2-B_Fixed Asset Conti 2011'!M27 -> -719303 | K27: -138997 | M27: -858300 | N27: 4811322
A28: 47 | B28: 1850 | C28: Line Transformers | E28: ='App.2-B_Fixed Asset Conti 2011'!H28 -> 18572095 | F28: 1419018 | H28: 19991113 | J28: ='App.2-B_Fixed Asset Conti 2011'!M28 -> -7449418 | K28: =-934399+95245 -> -839154 | M28: -8288572 | N28: 11702541
A29: 47 | B29: 1855 | C29: Services (Overhead & Underground) | E29: ='App.2-B_Fixed Asset Conti 2011'!H29 -> 13546399 | F29: 1527873 | H29: 15074272 | J29: ='App.2-B_Fixed Asset Conti 2011'!M29 -> -3759848 | K29: -435403 | M29: -4195251 | N29: 10879021
A30: 47 | B30: 1860 | C30: Meters | E30: ='App.2-B_Fixed Asset Conti 2011'!H30 -> 911264 | F30: =497086+15376-25394 -> 487068 | H30: 1398332 | J30: ='App.2-B_Fixed Asset Conti 2011'!M30 -> -358370 | K30: =-46350-192 -> -46542 | M30: -404912 | N30: 993420
A31: 47 | B31: 1860 | C31: Meters (Smart Meters) | E31: ='App.2-B_Fixed Asset Conti 2011'!H31+5702472 -> 5702472 | H31: 5702472 | J31: ='App.2-B_Fixed Asset Conti 2011'!M31-1221004 -> -1221004 | K31: =-1601168+1221004 -> -380164 | M31: -1601168 | N31: 4101304
A32: N/A | B32: 1905 | C32: Land | E32: ='App.2-B_Fixed Asset Conti 2011'!H32 -> 0 | H32: 0 | J32: ='App.2-B_Fixed Asset Conti 2011'!M32 -> 0 | M32: 0 | N32: 0
A33: 47 | B33: 1908 | C33: Buildings & Fixtures | E33: ='App.2-B_Fixed Asset Conti 2011'!H33 -> 0 | H33: 0 | J33: ='App.2-B_Fixed Asset Conti 2011'!M33 -> 0 | M33: 0 | N33: 0
A34: 13 | B34: 1910 | C34: Leasehold Improvements | E34: ='App.2-B_Fixed Asset Conti 2011'!H34 -> 0 | H34: 0 | J34: ='App.2-B_Fixed Asset Conti 2011'!M34 -> 0 | M34: 0 | N34: 0
A35: 8 | B35: 1915 | C35: Office Furniture & Equipment (10 years) | E35: ='App.2-B_Fixed Asset Conti 2011'!H35 -> 0 | H35: 0 | J35: ='App.2-B_Fixed Asset Conti 2011'!M35 -> 0 | M35: 0 | N35: 0
A36: 8 | B36: 1915 | C36: Office Furniture & Equipment (5 years) | E36: ='App.2-B_Fixed Asset Conti 2011'!H36 -> 0 | H36: 0 | J36: ='App.2-B_Fixed Asset Conti 2011'!M36 -> 0 | M36: 0 | N36: 0
A37: 10 | B37: 1920 | C37: Computer Equipment - Hardware | E37: ='App.2-B_Fixed Asset Conti 2011'!H37 -> 0 | H37: 0 | J37: ='App.2-B_Fixed Asset Conti 2011'!M37 -> 0 | M37: 0 | N37: 0
A38: 45 | B38: 1920 | C38: Computer Equip.-Hardware(Post Mar. 22/04) | E38: ='App.2-B_Fixed Asset Conti 2011'!H38 -> 0 | H38: 0 | J38: ='App.2-B_Fixed Asset Conti 2011'!M38 -> 0 | M38: 0 | N38: 0
A39: 45.1 | B39: 1920 | C39: Computer Equip.-Hardware(Post Mar. 19/07) | E39: ='App.2-B_Fixed Asset Conti 2011'!H39+44877 -> 44877 | H39: 44877 | J39: ='App.2-B_Fixed Asset Conti 2011'!M39-25984 -> -25984 | K39: =-34960+25984 -> -8976 | M39: -34960 | N39: 9917
A40: 10 | B40: 1930 | C40: Transportation Equipment | E40: ='App.2-B_Fixed Asset Conti 2011'!H40 -> 0 | H40: 0 | J40: ='App.2-B_Fixed Asset Conti 2011'!M40 -> 0 | M40: 0 | N40: 0
A41: 8 | B41: 1935 | C41: Stores Equipment | E41: ='App.2-B_Fixed Asset Conti 2011'!H41 -> 0 | H41: 0 | J41: ='App.2-B_Fixed Asset Conti 2011'!M41 -> 0 | M41: 0 | N41: 0
A42: 8 | B42: 1940 | C42: Tools, Shop & Garage Equipment | E42: ='App.2-B_Fixed Asset Conti 2011'!H42 -> 0 | H42: 0 | J42: ='App.2-B_Fixed Asset Conti 2011'!M42 -> 0 | M42: 0 | N42: 0
A43: 8 | B43: 1945 | C43: Measurement & Testing Equipment | E43: ='App.2-B_Fixed Asset Conti 2011'!H43 -> 0 | H43: 0 | J43: ='App.2-B_Fixed Asset Conti 2011'!M43 -> 0 | M43: 0 | N43: 0
A44: 8 | B44: 1950 | C44: Power Operated Equipment | E44: ='App.2-B_Fixed Asset Conti 2011'!H44 -> 0 | H44: 0 | J44: ='App.2-B_Fixed Asset Conti 2011'!M44 -> 0 | M44: 0 | N44: 0
A45: 8 | B45: 1955 | C45: Communications Equipment | E45: ='App.2-B_Fixed Asset Conti 2011'!H45 -> 0 | H45: 0 | J45: ='App.2-B_Fixed Asset Conti 2011'!M45 -> 0 | M45: 0 | N45: 0
A46: 8 | B46: 1955 | C46: Communication Equipment (Smart Meters) | E46: ='App.2-B_Fixed Asset Conti 2011'!H46 -> 0 | H46: 0 | J46: ='App.2-B_Fixed Asset Conti 2011'!M46 -> 0 | M46: 0 | N46: 0
A47: 8 | B47: 1960 | C47: Miscellaneous Equipment | E47: ='App.2-B_Fixed Asset Conti 2011'!H47 -> 82385 | H47: 82385 | J47: ='App.2-B_Fixed Asset Conti 2011'!M47 -> -82385 | M47: -82385 | N47: 0
B48: 1970 | C48: Load Management Controls Customer Premises | E48: ='App.2-B_Fixed Asset Conti 2011'!H48 -> 1633219 | H48: 1633219 | J48: ='App.2-B_Fixed Asset Conti 2011'!M48 -> -1570981 | K48: -15735 | M48: -1586716 | N48: 46503
A49: 47 | B49: 1975 | C49: Load Management Controls Utility Premises | E49: ='App.2-B_Fixed Asset Conti 2011'!H49 -> 0 | H49: 0 | J49: ='App.2-B_Fixed Asset Conti 2011'!M49 -> 0 | M49: 0 | N49: 0
A50: 47 | B50: 1980 | C50: System Supervisor Equipment | E50: ='App.2-B_Fixed Asset Conti 2011'!H50 -> 0 | H50: 0 | J50: ='App.2-B_Fixed Asset Conti 2011'!M50 -> 0 | M50: 0 | N50: 0
A51: 47 | B51: 1985 | C51: Miscellaneous Fixed Assets | E51: ='App.2-B_Fixed Asset Conti 2011'!H51 -> 0 | H51: 0 | J51: ='App.2-B_Fixed Asset Conti 2011'!M51 -> 0 | M51: 0 | N51: 0
A52: 47 | B52: 1995 | C52: Contributions & Grants | E52: ='App.2-B_Fixed Asset Conti 2011'!H52 -> -11944111 | F52: -1671900 | H52: -13616011 | J52: ='App.2-B_Fixed Asset Conti 2011'!M52 -> 0 | M52: 0 | N52: -13616011
C53: Sub-total | E53: =SUM(E16:E52) -> 85200537 | F53: 6173564 | G53: 0 | H53: 91374101 | J53: =SUM(J16:J52) -> -34595036 | K53: -4142848 | L53: 0 | M53: -38737884 | N53: 52636217
B54: 2055 | C54: Contract work in progress-electric | E54: ='App.2-B_Fixed Asset Conti 2011'!H54 -> 3416629 | F54: 2043052 | G54: -3416629 | H54: 2043052 | M54: 0 | N54: 2043052
C55: Total | E55: =E53+E54 -> 88617166 | F55: 8216616 | G55: -3416629 | H55: 93417153 | J55: =J53+J54 -> -34595036 | K55: -4142848 | L55: 0 | M55: -38737884 | N55: 54679269
J57: Less: Fully Allocated Depreciation
A58: 10 | C58: Transportation | J58: stranded meters adj | L58: -588380
A59: 8 | C59: Stores Equipment
J60: Net Depreciation | L60: =K55+SUM(L58:L59) -> -4731228
A62: Notes:
A64: 1 | B64: Tables in the format outlined above covering all fixed asset accounts should be submitted for the Test Year, Bridge Year and all relevant historical years. At a minimum , the applicant must provide data for the earlier of: 1) all historical years back to its last rebasing; or 2) at least three years of historical actuals, in addition to Bridge Year and Test Year forecasts.
A67: 2 | B67: The "CCA Class" for fixed assets should agree with the CCA Class used for tax purposes in Tax Returns. Fixed Assets sub-components may be used where the underlying asset components are classified under multiple CCA Classes for tax purposes. If an applicant uses any different classes from those shown in the table, an explanation should be provided. (also see note 3 below).
A70: 3 | B70: The table may need to be customized for a utility's asset categories or for any new asset accounts announced or authorized by the Board.
A72: 4 | B72: The depreciation column (D) is not required as the relevant information will be provided in the following 2-C series of appendices.

Sheet App.2-B_F Asset Conti 2013
M1: File Number: | N1: ='LDC Info'!$E$18 -> EB-2012-0160
M2: Exhibit: | N2: 2
M3: Tab: | N3: 2
M4: Schedule: | N4: 1
M5: Page: | N5: 2-21
A6: Appendix 2-B
A7: Fixed Asset Continuity Schedule
F9: Year | G9: 2013 | H9: CGAAP Kinetrics useful life
E11: Cost | K11: Accumulated Depreciation
A12: CCA Class | B12: OEB | C12: Description | D12: Depreciation Rate | E12: Opening Balance | F12: Additions | G12: Disposals | H12: Closing Balance | J12: Opening Balance | K12: Additions | L12: Disposals | M12: Closing Balance | N12: Net Book Value
A13: 12 | B13: 1611 | C13: Computer Software (Formally known as Account 1925) | E13: ='App.2-B_F Asset CGAAP 2012'!H16 -> 1175789 | H13: =E13+F13+G13 -> 1175789 | J13: ='App.2-B_F Asset CGAAP 2012'!M16 -> -498885 | K13: -203609 | M13: =J13+K13+L13 -> -702494 | N13: =H13+M13 -> 473295
A14: CEC | B14: 1612 | C14: Land Rights (Formally known as Account 1906) | E14: ='App.2-B_F Asset CGAAP 2012'!H17 -> 0 | H14: =E14+F14+G14 -> 0 | J14: ='App.2-B_F Asset CGAAP 2012'!M17 -> 0 | M14: =J14+K14+L14 -> 0 | N14: =H14+M14 -> 0
A15: N/A | B15: 1805 | C15: Land | E15: ='App.2-B_F Asset CGAAP 2012'!H18 -> 134968 | H15: =E15+F15+G15 -> 134968 | J15: ='App.2-B_F Asset CGAAP 2012'!M18 -> 0 | M15: =J15+K15+L15 -> 0 | N15: =H15+M15 -> 134968
A16: 47 | B16: 1808 | C16: Buildings | E16: ='App.2-B_F Asset CGAAP 2012'!H19 -> 536085 | F16: =40000-5000 -> 35000 | H16: =E16+F16+G16 -> 571085 | J16: ='App.2-B_F Asset CGAAP 2012'!M19 -> -85890 | K16: =-10877+50 -> -10827 | M16: =J16+K16+L16 -> -96717 | N16: =H16+M16 -> 474368
A17: 13 | B17: 1810 | C17: Leasehold Improvements | E17: ='App.2-B_F Asset CGAAP 2012'!H20 -> 0 | H17: 0 | J17: ='App.2-B_F Asset CGAAP 2012'!M20 -> 0 | M17: 0 | N17: 0
A18: 47 | B18: 1815 | C18: Transformer Station Equipment >50 kV | E18: ='App.2-B_F Asset CGAAP 2012'!H21 -> 0 | H18: 0 | J18: ='App.2-B_F Asset CGAAP 2012'!M21 -> 0 | M18: 0 | N18: 0
A19: 47 | B19: 1820 | C19: Distribution Station Equipment <50 kV | E19: ='App.2-B_F Asset CGAAP 2012'!H22 -> 3540528 | F19: =75000-60000 -> 15000 | H19: 3555528 | J19: ='App.2-B_F Asset CGAAP 2012'!M22 -> -1292913 | K19: =-139753+667 -> -139086 | M19: -1431999 | N19: 2123529
A20: 47 | B20: 1825 | C20: Storage Battery Equipment | E20: ='App.2-B_F Asset CGAAP 2012'!H23 -> 0 | H20: 0 | J20: ='App.2-B_F Asset CGAAP 2012'!M23 -> 0 | M20: 0 | N20: 0
A21: 47 | B21: 1830 | C21: Poles, Towers & Fixtures | E21: ='App.2-B_F Asset CGAAP 2012'!H24 -> 23773969 | F21: =229515+535535-139000 -> 626050 | H21: 24400019 | J21: ='App.2-B_F Asset CGAAP 2012'!M24 -> -10954846 | K21: =-547865+1739 -> -546126 | M21: -11500972 | N21: 12899047
A22: 47 | B22: 1835 | C22: Overhead Conductors & Devices | E22: ='App.2-B_F Asset CGAAP 2012'!H25 -> 10300535 | F22: =434070+166950+1001700+66780-472000 -> 1197500 | H22: 11498035 | J22: ='App.2-B_F Asset CGAAP 2012'!M25 -> -2572305 | K22: =-196929+4271 -> -192658 | M22: -2764963 | N22: 8733072
A23: 47 | B23: 1840 | C23: Underground Conduit | E23: ='App.2-B_F Asset CGAAP 2012'!H26 -> 15931946 | F23: =193812+37512+112536+112536+168804+818000 -> 1443200 | H23: 17375146 | J23: ='App.2-B_F Asset CGAAP 2012'!M26 -> -6280781 | K23: =-322718-5034 -> -327752 | M23: -6608533 | N23: 10766613
A24: 47 | B24: 1845 | C24: Underground Conductors & Devices | E24: ='App.2-B_F Asset CGAAP 2012'!H27 -> 5669622 | F24: =80640+161280+10080+282000 -> 534000 | H24: 6203622 | J24: ='App.2-B_F Asset CGAAP 2012'!M27 -> -858300 | K24: =-92927-1886 -> -94813 | M24: -953113 | N24: 5250509
A25: 47 | B25: 1850 | C25: Line Transformers | E25: ='App.2-B_F Asset CGAAP 2012'!H28 -> 19991113 | F25: =969750+380500 -> 1350250 | H25: 21341363 | J25: ='App.2-B_F Asset CGAAP 2012'!M28 -> -8288572 | K25: =-481324-1682 -> -483006 | M25: -8771578 | N25: 12569785
A26: 47 | B26: 1855 | C26: Services (Overhead & Underground) | E26: ='App.2-B_F Asset CGAAP 2012'!H29 -> 15074272 | F26: =330000+704000-75000 -> 959000 | H26: 16033272 | J26: ='App.2-B_F Asset CGAAP 2012'!M29 -> -4195251 | K26: =-224254+833 -> -223421 | M26: -4418672 | N26: 11614600
A27: 47 | B27: 1860 | C27: Meters | E27: ='App.2-B_F Asset CGAAP 2012'!H30 -> 1398332 | F27: 205000 | H27: 1603332 | J27: ='App.2-B_F Asset CGAAP 2012'!M30 -> -404912 | K27: -60328 | M27: -465240 | N27: 1138092
A28: 47 | B28: 1860 | C28: Meters (Smart Meters) | E28: ='App.2-B_F Asset CGAAP 2012'!H31 -> 5702472 | H28: 5702472 | J28: ='App.2-B_F Asset CGAAP 2012'!M31 -> -1601168 | K28: -380163 | M28: -1981331 | N28: 3721141
A29: N/A | B29: 1905 | C29: Land | E29: ='App.2-B_F Asset CGAAP 2012'!H32 -> 0 | H29: 0 | J29: ='App.2-B_F Asset CGAAP 2012'!M32 -> 0 | M29: 0 | N29: 0
A30: 47 | B30: 1908 | C30: Buildings & Fixtures | E30: ='App.2-B_F Asset CGAAP 2012'!H33 -> 0 | H30: 0 | J30: ='App.2-B_F Asset CGAAP 2012'!M33 -> 0 | M30: 0 | N30: 0
A31: 13 | B31: 1910 | C31: Leasehold Improvements | E31: ='App.2-B_F Asset CGAAP 2012'!H34 -> 0 | H31: 0 | J31: ='App.2-B_F Asset CGAAP 2012'!M34 -> 0 | M31: 0 | N31: 0
A32: 8 | B32: 1915 | C32: Office Furniture & Equipment (10 years) | E32: ='App.2-B_F Asset CGAAP 2012'!H35 -> 0 | H32: 0 | J32: ='App.2-B_F Asset CGAAP 2012'!M35 -> 0 | M32: 0 | N32: 0
A33: 8 | B33: 1915 | C33: Office Furniture & Equipment (5 years) | E33: ='App.2-B_F Asset CGAAP 2012'!H36 -> 0 | H33: 0 | J33: ='App.2-B_F Asset CGAAP 2012'!M36 -> 0 | M33: 0 | N33: 0
A34: 10 | B34: 1920 | C34: Computer Equipment - Hardware | E34: ='App.2-B_F Asset CGAAP 2012'!H37 -> 0 | H34: 0 | J34: ='App.2-B_F Asset CGAAP 2012'!M37 -> 0 | M34: 0 | N34: 0
A35: 45 | B35: 1920 | C35: Computer Equip.-Hardware(Post Mar. 22/04) | E35: ='App.2-B_F Asset CGAAP 2012'!H38 -> 0 | H35: 0 | J35: ='App.2-B_F Asset CGAAP 2012'!M38 -> 0 | M35: 0 | N35: 0
A36: 45.1 | B36: 1920 | C36: Computer Equip.-Hardware(Post Mar. 19/07) | E36: ='App.2-B_F Asset CGAAP 2012'!H39 -> 44877 | H36: 44877 | J36: ='App.2-B_F Asset CGAAP 2012'!M39 -> -34960 | K36: -6735 | M36: -41695 | N36: 3182
A37: 10 | B37: 1930 | C37: Transportation Equipment | E37: ='App.2-B_F Asset CGAAP 2012'!H40 -> 0 | H37: 0 | J37: ='App.2-B_F Asset CGAAP 2012'!M40 -> 0 | M37: 0 | N37: 0
A38: 8 | B38: 1935 | C38: Stores Equipment | E38: ='App.2-B_F Asset CGAAP 2012'!H41 -> 0 | H38: 0 | J38: ='App.2-B_F Asset CGAAP 2012'!M41 -> 0 | M38: 0 | N38: 0
A39: 8 | B39: 1940 | C39: Tools, Shop & Garage Equipment | E39: ='App.2-B_F Asset CGAAP 2012'!H42 -> 0 | H39: 0 | J39: ='App.2-B_F Asset CGAAP 2012'!M42 -> 0 | M39: 0 | N39: 0
A40: 8 | B40: 1945 | C40: Measurement & Testing Equipment | E40: ='App.2-B_F Asset CGAAP 2012'!H43 -> 0 | H40: 0 | J40: ='App.2-B_F Asset CGAAP 2012'!M43 -> 0 | M40: 0 | N40: 0
A41: 8 | B41: 1950 | C41: Power Operated Equipment | E41: ='App.2-B_F Asset CGAAP 2012'!H44 -> 0 | H41: 0 | J41: ='App.2-B_F Asset CGAAP 2012'!M44 -> 0 | M41: 0 | N41: 0
A42: 8 | B42: 1955 | C42: Communications Equipment | E42: ='App.2-B_F Asset CGAAP 2012'!H45 -> 0 | H42: 0 | J42: ='App.2-B_F Asset CGAAP 2012'!M45 -> 0 | M42: 0 | N42: 0
A43: 8 | B43: 1955 | C43: Communication Equipment (Smart Meters) | E43: ='App.2-B_F Asset CGAAP 2012'!H46 -> 0 | H43: 0 | J43: ='App.2-B_F Asset CGAAP 2012'!M46 -> 0 | M43: 0 | N43: 0
A44: 8 | B44: 1960 | C44: Miscellaneous Equipment | E44: ='App.2-B_F Asset CGAAP 2012'!H47 -> 82385 | H44: 82385 | J44: ='App.2-B_F Asset CGAAP 2012'!M47 -> -82385 | M44: -82385 | N44: 0
B45: 1970 | C45: Load Management Controls Customer Premises | E45: ='App.2-B_F Asset CGAAP 2012'!H48 -> 1633219 | H45: 1633219 | J45: ='App.2-B_F Asset CGAAP 2012'!M48 -> -1586716 | K45: -3549 | M45: -1590265 | N45: 42954
A46: 47 | B46: 1975 | C46: Load Management Controls Utility Premises | E46: ='App.2-B_F Asset CGAAP 2012'!H49 -> 0 | H46: 0 | J46: ='App.2-B_F Asset CGAAP 2012'!M49 -> 0 | M46: 0 | N46: 0
A47: 47 | B47: 1980 | C47: System Supervisor Equipment | E47: ='App.2-B_F Asset CGAAP 2012'!H50 -> 0 | H47: 0 | J47: ='App.2-B_F Asset CGAAP 2012'!M50 -> 0 | M47: 0 | N47: 0
A48: 47 | B48: 1985 | C48: Miscellaneous Fixed Assets | E48: ='App.2-B_F Asset CGAAP 2012'!H51 -> 0 | H48: 0 | J48: ='App.2-B_F Asset CGAAP 2012'!M51 -> 0 | M48: 0 | N48: 0
A49: 47 | B49: 1995 | C49: Contributions & Grants | E49: ='App.2-B_F Asset CGAAP 2012'!H52 -> -13616011 | F49: =-1180000-713000 -> -1893000 | H49: -15509011 | J49: ='App.2-B_F Asset CGAAP 2012'!M52 -> 0 | M49: 0 | N49: -15509011
C50: Sub-total | E50: =SUM(E13:E49) -> 91374101 | F50: 4472000 | G50: 0 | H50: 95846101 | J50: ='App.2-B_F Asset CGAAP 2012'!M53 -> -38737884 | K50: =SUM(K13:K49) -> -2672073 | L50: 0 | M50: -41409957 | N50: 54436144
B51: 2055 | C51: Contract work in progress-electric | E51: ='App.2-B_F Asset CGAAP 2012'!H54 -> 2043052 | F51: =1271000+130000 -> 1401000 | G51: -2043052 | H51: 1401000 | M51: 0 | N51: 1401000
C52: Total | E52: =E50+E51 -> 93417153 | F52: 5873000 | G52: -2043052 | H52: 97247101 | J52: =J50+J51 -> -38737884 | K52: -2672073 | L52: 0 | M52: -41409957 | N52: 55837144
J54: Less: Fully Allocated Depreciation
A55: 10 | C55: Transportation | J55: Transportation
A56: 8 | C56: Stores Equipment | J56: Stores Equipment
J57: Deferred PP&E
J58: Net Depreciation | L58: =K52-L55-L57 -> -2672073
A60: Notes:
A62: 1 | B62: Tables in the format outlined above covering all fixed asset accounts should be submitted for the Test Year, Bridge Year and all relevant historical years. At a minimum , the applicant must provide data for the earlier of: 1) all historical years back to its last rebasing; or 2) at least three years of historical actuals, in addition to Bridge Year and Test Year forecasts.
A65: 2 | B65: The "CCA Class" for fixed assets should agree with the CCA Class used for tax purposes in Tax Returns. Fixed Assets sub-components may be used where the underlying asset components are classified under multiple CCA Classes for tax purposes. If an applicant uses any different classes from those shown in the table, an explanation should be provided. (also see note 3 below).
A68: 3 | B68: The table may need to be customized for a utility's asset categories or for any new asset accounts announced or authorized by the Board.
A70: 4 | B70: The depreciation column (D) is not required as the relevant information will be provided in the following 2-C series of appendices.

Sheet App.2-CE_CGAAP_DepExp_2011
L1: File Number: | M1: ='LDC Info'!$E$18 -> EB-2012-0160
L2: Exhibit: | M2: 4
L3: Tab: | M3: 2
L4: Schedule: | M4: 7
L5: Page: | M5: 2-21
B6: Appendix 2-CE
B7: Depreciation and Amortization Expense
D9: Year | E9: 2011 | F9: CGAAP
B11: Account | C11: Description | D11: Opening Regulatory Gross PP&E as at Jan 1, 2011 | E11: Less Fully Depreciated | F11: Net for Depreciation | G11: Additions | H11: Total for Depreciation | I11: Years | J11: Depn Rate | K11: 2011 Depreciation Expense | L11: 2011 Depreciation Expense per Appendix 2-B Fixed Assets, Column K (l) | M11: Variance 2
D12: (a) | E12: (b) | F12: (c) | G12: (d) | H12: (e) = (c) + ½ x (d) 1 | I12: (f) | J12: (g) = 1 / (f) | K12: (h) = (e) / (f) | M12: (m) = (h) - (l)
B13: 1611 | C13: Computer Software (Formally known as Account 1925) | D13: ='App.2-B_Fixed Asset Conti 2011'!E16 -> 57747 | E13: 57747 | F13: =D13-E13 -> 0 | G13: ='App.2-B_Fixed Asset Conti 2011'!F16 -> 0 | H13: =F13+0.5*G13 -> 0 | J13: =IF(I13=0,"",1/I13) ->  | K13: =IF(I13=0,0,H13/I13)*-1 -> 0 | L13: ='App.2-B_Fixed Asset Conti 2011'!K16 -> 0 | M13: =IF(ISERROR(+K13-L13), "", +K13-L13) -> 0
B14: 1612 | C14: Land Rights (Formally known as Account 1906) | D14: ='App.2-B_Fixed Asset Conti 2011'!E17 -> 0 | F14: =D14-E14 -> 0 | G14: ='App.2-B_Fixed Asset Conti 2011'!F17 -> 0 | H14: =F14+0.5*G14 -> 0 | K14: 0 | L14: ='App.2-B_Fixed Asset Conti 2011'!K17 -> 0 | M14: =IF(ISERROR(+K14-L14), "", +K14-L14) -> 0
B15: 1805 | C15: Land | D15: ='App.2-B_Fixed Asset Conti 2011'!E18 -> 134968 | F15: 134968 | G15: ='App.2-B_Fixed Asset Conti 2011'!F18 -> 0 | H15: 134968 | K15: =IF(I15=0,0,H15/I15)*-1 -> 0 | L15: ='App.2-B_Fixed Asset Conti 2011'!K18 -> 0 | M15: 0
B16: 1808 | C16: Buildings | D16: ='App.2-B_Fixed Asset Conti 2011'!E19 -> 411558 | F16: 411558 | G16: ='App.2-B_Fixed Asset Conti 2011'!F19 -> 33257 | H16: 428186.5 | I16: 50 | J16: 0.02 | K16: =IF(I16=0,0,H16/I16)*-1 -> -8563.73 | L16: ='App.2-B_Fixed Asset Conti 2011'!K19 -> -10770 | M16: 2206.27
B17: 1810 | C17: Leasehold Improvements | D17: ='App.2-B_Fixed Asset Conti 2011'!E20 -> 0 | F17: 0 | G17: ='App.2-B_Fixed Asset Conti 2011'!F20 -> 0 | H17: 0 | I17: =IF(H17=0,0,H17/L17)*-1 -> 0 | K17: =IF(I17=0,0,H17/I17)*-1 -> 0 | L17: ='App.2-B_Fixed Asset Conti 2011'!K20 -> 0 | M17: 0
B18: 1815 | C18: Transformer Station Equipment >50 kV | D18: ='App.2-B_Fixed Asset Conti 2011'!E21 -> 0 | F18: 0 | G18: ='App.2-B_Fixed Asset Conti 2011'!F21 -> 0 | H18: 0 | I18: 0 | K18: 0 | L18: ='App.2-B_Fixed Asset Conti 2011'!K21 -> 0 | M18: 0
B19: 1820 | C19: Distribution Station Equipment <50 kV | D19: ='App.2-B_Fixed Asset Conti 2011'!E22 -> 3455930 | F19: 3455930 | G19: ='App.2-B_Fixed Asset Conti 2011'!F22 -> 10321 | H19: 3461090.5 | I19: 30 | J19: 0.03333333333 | K19: =IF(I19=0,0,H19/I19)*-1 -> -115369.6833 | L19: ='App.2-B_Fixed Asset Conti 2011'!K22 -> -131849 | M19: 16479.31667
B20: 1825 | C20: Storage Battery Equipment | D20: ='App.2-B_Fixed Asset Conti 2011'!E23 -> 0 | F20: 0 | G20: ='App.2-B_Fixed Asset Conti 2011'!F23 -> 0 | H20: 0 | I20: 0 | K20: 0 | L20: ='App.2-B_Fixed Asset Conti 2011'!K23 -> 0 | M20: 0
B21: 1830 | C21: Poles, Towers & Fixtures | D21: ='App.2-B_Fixed Asset Conti 2011'!E24 -> 21577605 | F21: 21577605 | G21: ='App.2-B_Fixed Asset Conti 2011'!F24 -> 1162945 | H21: 22159077.5 | I21: 23.2 | J21: 0.04310344828 | K21: =IF(I21=0,0,H21/I21)*-1 -> -955132.6509 | L21: ='App.2-B_Fixed Asset Conti 2011'!K24 -> -980155 | M21: 25022.34914
B22: 1835 | C22: Overhead Conductors & Devices | D22: ='App.2-B_Fixed Asset Conti 2011'!E25 -> 7919256 | F22: 7919256 | G22: ='App.2-B_Fixed Asset Conti 2011'!F25 -> 1246554 | H22: 8542533 | I22: 25 | J22: 0.04 | K22: -341701.32 | L22: ='App.2-B_Fixed Asset Conti 2011'!K25 -> -341743 | M22: 41.68
B23: 1840 | C23: Underground Conduit | D23: ='App.2-B_Fixed Asset Conti 2011'!E26 -> 14269729 | F23: 14269729 | G23: ='App.2-B_Fixed Asset Conti 2011'!F26 -> 762011 | H23: 14650734.5 | I23: 25 | J23: 0.04 | K23: -586029.38 | L23: ='App.2-B_Fixed Asset Conti 2011'!K26 -> -606382 | M23: 20352.62
B24: 1845 | C24: Underground Conductors & Devices | D24: ='App.2-B_Fixed Asset Conti 2011'!E27 -> 4613930 | F24: 4613930 | G24: ='App.2-B_Fixed Asset Conti 2011'!F27 -> 544162 | H24: 4886011 | I24: 25 | J24: 0.04 | K24: -195440.44 | L24: ='App.2-B_Fixed Asset Conti 2011'!K27 -> -134226 | M24: -61214.44
B25: 1850 | C25: Line Transformers | D25: ='App.2-B_Fixed Asset Conti 2011'!E28 -> 17515720 | F25: 17515720 | G25: ='App.2-B_Fixed Asset Conti 2011'!F28 -> 1056375 | H25: 18043907.5 | I25: 23.5 | J25: 0.04255319149 | K25: -767825.8511 | L25: ='App.2-B_Fixed Asset Conti 2011'!K28 -> -752903 | M25: -14922.85106
B26: 1855 | C26: Services (Overhead & Underground) | D26: ='App.2-B_Fixed Asset Conti 2011'!E29 -> 12473871 | F26: 12473871 | G26: ='App.2-B_Fixed Asset Conti 2011'!F29 -> 1072528 | H26: 13010135 | I26: 25 | J26: 0.04 | K26: -520405.4 | L26: ='App.2-B_Fixed Asset Conti 2011'!K29 -> -414053 | M26: -106352.4
B27: 1860 | C27: Meters | D27: ='App.2-B_Fixed Asset Conti 2011'!E30 -> 531353 | F27: 531353 | G27: ='App.2-B_Fixed Asset Conti 2011'!F30 -> 379911 | H27: 721308.5 | I27: 19.78735632 | J27: 0.0505373221 | K27: -36453 | L27: ='App.2-B_Fixed Asset Conti 2011'!K30 -> -36453 | M27: 0
B28: 1860 | C28: Meters (Smart Meters) | D28: ='App.2-B_Fixed Asset Conti 2011'!E31 -> 0 | F28: 0 | G28: ='App.2-B_Fixed Asset Conti 2011'!F31 -> 0 | H28: 0 | I28: 0 | K28: 0 | L28: ='App.2-B_Fixed Asset Conti 2011'!K31 -> 0 | M28: 0
B29: 1905 | C29: Land | D29: ='App.2-B_Fixed Asset Conti 2011'!E32 -> 0 | F29: 0 | G29: ='App.2-B_Fixed Asset Conti 2011'!F32 -> 0 | H29: 0 | I29: 0 | K29: 0 | L29: ='App.2-B_Fixed Asset Conti 2011'!K32 -> 0 | M29: 0
B30: 1908 | C30: Buildings & Fixtures | D30: ='App.2-B_Fixed Asset Conti 2011'!E33 -> 0 | F30: 0 | G30: ='App.2-B_Fixed Asset Conti 2011'!F33 -> 0 | H30: 0 | I30: 0 | K30: 0 | L30: ='App.2-B_Fixed Asset Conti 2011'!K33 -> 0 | M30: 0
B31: 1910 | C31: Leasehold Improvements | D31: ='App.2-B_Fixed Asset Conti 2011'!E34 -> 0 | F31: 0 | G31: ='App.2-B_Fixed Asset Conti 2011'!F34 -> 0 | H31: 0 | I31: 0 | K31: 0 | L31: ='App.2-B_Fixed Asset Conti 2011'!K34 -> 0 | M31: 0
B32: 1915 | C32: Office Furniture & Equipment (10 years) | D32: ='App.2-B_Fixed Asset Conti 2011'!E35 -> 0 | F32: 0 | G32: ='App.2-B_Fixed Asset Conti 2011'!F35 -> 0 | H32: 0 | I32: 0 | K32: 0 | L32: ='App.2-B_Fixed Asset Conti 2011'!K35 -> 0 | M32: 0
B33: 1915 | C33: Office Furniture & Equipment (5 years) | D33: ='App.2-B_Fixed Asset Conti 2011'!E36 -> 0 | F33: 0 | G33: ='App.2-B_Fixed Asset Conti 2011'!F36 -> 0 | H33: 0 | I33: 0 | K33: 0 | L33: ='App.2-B_Fixed Asset Conti 2011'!K36 -> 0 | M33: 0
B34: 1920 | C34: Computer Equipment - Hardware | D34: ='App.2-B_Fixed Asset Conti 2011'!E37 -> 0 | F34: 0 | G34: ='App.2-B_Fixed Asset Conti 2011'!F37 -> 0 | H34: 0 | I34: 0 | K34: 0 | L34: ='App.2-B_Fixed Asset Conti 2011'!K37 -> 0 | M34: 0
B35: 1920 | C35: Computer Equip.-Hardware(Post Mar. 22/04) | D35: ='App.2-B_Fixed Asset Conti 2011'!E38 -> 0 | F35: 0 | G35: ='App.2-B_Fixed Asset Conti 2011'!F38 -> 0 | H35: 0 | I35: 0 | K35: 0 | L35: ='App.2-B_Fixed Asset Conti 2011'!K38 -> 0 | M35: 0
B36: 1920 | C36: Computer Equip.-Hardware(Post Mar. 19/07) | D36: ='App.2-B_Fixed Asset Conti 2011'!E39 -> 0 | F36: 0 | G36: ='App.2-B_Fixed Asset Conti 2011'!F39 -> 0 | H36: 0 | I36: 0 | K36: 0 | L36: ='App.2-B_Fixed Asset Conti 2011'!K39 -> 0 | M36: 0
B37: 1930 | C37: Transportation Equipment | D37: ='App.2-B_Fixed Asset Conti 2011'!E40 -> 0 | F37: 0 | G37: ='App.2-B_Fixed Asset Conti 2011'!F40 -> 0 | H37: 0 | I37: 0 | K37: 0 | L37: ='App.2-B_Fixed Asset Conti 2011'!K40 -> 0 | M37: 0
B38: 1935 | C38: Stores Equipment | D38: ='App.2-B_Fixed Asset Conti 2011'!E41 -> 0 | F38: 0 | G38: ='App.2-B_Fixed Asset Conti 2011'!F41 -> 0 | H38: 0 | I38: 0 | K38: 0 | L38: ='App.2-B_Fixed Asset Conti 2011'!K41 -> 0 | M38: 0
B39: 1940 | C39: Tools, Shop & Garage Equipment | D39: ='App.2-B_Fixed Asset Conti 2011'!E42 -> 0 | F39: 0 | G39: ='App.2-B_Fixed Asset Conti 2011'!F42 -> 0 | H39: 0 | I39: 0 | K39: 0 | L39: ='App.2-B_Fixed Asset Conti 2011'!K42 -> 0 | M39: 0
B40: 1945 | C40: Measurement & Testing Equipment | D40: ='App.2-B_Fixed Asset Conti 2011'!E43 -> 0 | F40: 0 | G40: ='App.2-B_Fixed Asset Conti 2011'!F43 -> 0 | H40: 0 | I40: 0 | K40: 0 | L40: ='App.2-B_Fixed Asset Conti 2011'!K43 -> 0 | M40: 0
B41: 1950 | C41: Power Operated Equipment | D41: ='App.2-B_Fixed Asset Conti 2011'!E44 -> 0 | F41: 0 | G41: ='App.2-B_Fixed Asset Conti 2011'!F44 -> 0 | H41: 0 | I41: 0 | K41: 0 | L41: ='App.2-B_Fixed Asset Conti 2011'!K44 -> 0 | M41: 0
B42: 1955 | C42: Communications Equipment | D42: ='App.2-B_Fixed Asset Conti 2011'!E45 -> 0 | F42: 0 | G42: ='App.2-B_Fixed Asset Conti 2011'!F45 -> 0 | H42: 0 | I42: 0 | K42: 0 | L42: ='App.2-B_Fixed Asset Conti 2011'!K45 -> 0 | M42: 0
B43: 1955 | C43: Communication Equipment (Smart Meters) | D43: ='App.2-B_Fixed Asset Conti 2011'!E46 -> 0 | F43: 0 | G43: ='App.2-B_Fixed Asset Conti 2011'!F46 -> 0 | H43: 0 | I43: 0 | K43: 0 | L43: ='App.2-B_Fixed Asset Conti 2011'!K46 -> 0 | M43: 0
B44: 1960 | C44: Miscellaneous Equipment | D44: ='App.2-B_Fixed Asset Conti 2011'!E47 -> 82385 | E44: 82385 | F44: 0 | G44: ='App.2-B_Fixed Asset Conti 2011'!F47 -> 0 | H44: 0 | I44: 0 | K44: 0 | L44: ='App.2-B_Fixed Asset Conti 2011'!K47 -> 0 | M44: 0
B45: 1970 | C45: Load Management Controls Customer Premises | D45: ='App.2-B_Fixed Asset Conti 2011'!E48 -> 1633219 | E45: 1475871 | F45: =D45-E45 -> 157348 | G45: ='App.2-B_Fixed Asset Conti 2011'!F48 -> 0 | H45: 157348 | I45: 10 | J45: =IF(I45=0,"",1/I45) -> 0.1 | K45: -15734.8 | L45: ='App.2-B_Fixed Asset Conti 2011'!K48 -> -15927 | M45: =IF(ISERROR(+K45-L45), "", +K45-L45) -> 192.2
B46: 1975 | C46: Load Management Controls Utility Premises | D46: ='App.2-B_Fixed Asset Conti 2011'!E49 -> 0 | F46: 0 | G46: ='App.2-B_Fixed Asset Conti 2011'!F49 -> 0 | H46: 0 | I46: 0 | K46: 0 | L46: ='App.2-B_Fixed Asset Conti 2011'!K49 -> 0 | M46: 0
B47: 1980 | C47: System Supervisor Equipment | D47: ='App.2-B_Fixed Asset Conti 2011'!E50 -> 0 | F47: 0 | G47: ='App.2-B_Fixed Asset Conti 2011'!F50 -> 0 | H47: =F47+0.5*G47 -> 0 | I47: 0 | K47: 0 | L47: ='App.2-B_Fixed Asset Conti 2011'!K50 -> 0 | M47: 0
B48: 1985 | C48: Miscellaneous Fixed Assets | D48: ='App.2-B_Fixed Asset Conti 2011'!E51 -> 0 | F48: 0 | G48: ='App.2-B_Fixed Asset Conti 2011'!F51 -> 0 | H48: 0 | I48: 0 | K48: 0 | L48: ='App.2-B_Fixed Asset Conti 2011'!K51 -> 0 | M48: 0
B49: 1995 | C49: Contributions & Grants | D49: ='App.2-B_Fixed Asset Conti 2011'!E52 -> -10533301 | F49: -10533301 | G49: ='App.2-B_Fixed Asset Conti 2011'!F52 -> -1410810 | H49: -11238706 | K49: 0 | L49: ='App.2-B_Fixed Asset Conti 2011'!K52 -> 0 | M49: 0
C50: Sub-total | D50: =SUM(D13:D49) -> 74143970 | E50: =SUM(E13:E49) -> 1616003 | F50: 72527967 | G50: 4857254 | H50: 74956594 | K50: =SUM(K13:K49) -> -3542656.255 | L50: =SUM(L13:L49) -> -3424461 | M50: -118195.2553
B51: 2055 | C51: Contract work in progress-electric
C52: Total | D52: =D50+D51 -> 74143970 | E52: =E50+E51 -> 1616003 | F52: 72527967 | G52: 4857254 | H52: 74956594 | K52: =K50+K51 -> -3542656.255 | L52: =L50+L51 -> -3424461 | M52: -118195.2553
B54: Notes:
B55: 1 | C55: Board policy of the "half-year" rule - the applicant must ensure that additions in the year attract a half-year depreciation expense in the first year. Deviations from this standard practice must be supported in the application.
B56: 2 | C56: The applicant must provide an explanation of material variances in evidence
B57: General: | C57: Applicants must provide a breakdown of depreciation and amortization expense in the above format for all relevant accounts. Asset Retirement Obligations (AROs), depreciation and accretion expense should be disclosed separately consistent with the Notes of historical Audited Financial Statements.

Sheet App.2-CF_CGAAP_DepExp_2012
K1: File Number: | L1: ='LDC Info'!$E$18 -> EB-2012-0160
K2: Exhibit: | L2: 4
K3: Tab: | L3: 2
K4: Schedule: | L4: 7
K5: Page:
K7: Date:
A9: Appendix 2-CF
A10: Depreciation and Amortization Expense
C12: Year | D12: 2012 | E12: CGAAP
A14: Account | B14: Description | C14: Opening Regulatory Gross PP&E as at Jan 1, 2012 | D14: Less Fully Depreciated | E14: Net for Depreciation | F14: Additions | G14: Total for Depreciation | H14: Years | I14: Depreciation Rate | J14: 2012 Depreciation Expense | K14: 2012 Depreciation Expense per Appendix 2-B Fixed Assets, Column K (l) | L14: Variance 2
C15: (a) | D15: (b) | E15: (c) | F15: (d) | G15: (e) = (c) + ½ x (d) 1 | H15: (f) | I15: (g) = 1 / (f) | J15: (h) = (e) / (f) | L15: (m) = (h) - (l)
A16: 1611 | B16: Computer Software (Formally known as Account 1925) | C16: ='App.2-B_Fixed Asset Conti 2011'!H16+451964 -> 509711 | D16: =57747+99997 -> 157744 | E16: =C16-D16 -> 351967 | F16: ='App.2-B_F Asset CGAAP 2012'!F16 -> 666078 | G16: =E16+0.5*F16 -> 685006 | H16: 5 | I16: =IF(H16=0,0,1/H16) -> 0.2 | J16: =IF(H16=0,0,G16/H16)*-1 -> -137001.2 | K16: ='App.2-B_F Asset CGAAP 2012'!K16 -> -137002 | L16: =IF(ISERROR(+J16-K16), 0, +J16-K16) -> 0.8
A17: 1612 | B17: Land Rights (Formally known as Account 1906) | C17: ='App.2-B_Fixed Asset Conti 2011'!H17 -> 0 | E17: =C17-D17 -> 0 | F17: ='App.2-B_F Asset CGAAP 2012'!F17 -> 0 | G17: =E17+0.5*F17 -> 0 | K17: ='App.2-B_F Asset CGAAP 2012'!K17 -> 0 | L17: 0
A18: 1805 | B18: Land | C18: ='App.2-B_Fixed Asset Conti 2011'!H18 -> 134968 | E18: 134968 | F18: ='App.2-B_F Asset CGAAP 2012'!F18 -> 0 | G18: 134968 | K18: ='App.2-B_F Asset CGAAP 2012'!K18 -> 0 | L18: 0
A19: 1808 | B19: Buildings | C19: ='App.2-B_Fixed Asset Conti 2011'!H19 -> 444815 | E19: 444815 | F19: ='App.2-B_F Asset CGAAP 2012'!F19 -> 91270 | G19: 490450 | H19: 50 | I19: 0.02 | J19: =IF(H19=0,0,G19/H19)*-1 -> -9809 | K19: ='App.2-B_F Asset CGAAP 2012'!K19 -> -11683 | L19: 1874
A20: 1810 | B20: Leasehold Improvements | C20: ='App.2-B_Fixed Asset Conti 2011'!H20 -> 0 | E20: 0 | F20: ='App.2-B_F Asset CGAAP 2012'!F20 -> 0 | G20: 0 | H20: =G20/K20*-1 ->  | K20: ='App.2-B_F Asset CGAAP 2012'!K20 -> 0 | L20: 0
A21: 1815 | B21: Transformer Station Equipment >50 kV | C21: ='App.2-B_Fixed Asset Conti 2011'!H21 -> 0 | E21: 0 | F21: ='App.2-B_F Asset CGAAP 2012'!F21 -> 0 | G21: 0 | K21: ='App.2-B_F Asset CGAAP 2012'!K21 -> 0 | L21: 0
A22: 1820 | B22: Distribution Station Equipment <50 kV | C22: ='App.2-B_Fixed Asset Conti 2011'!H22 -> 3466251 | E22: 3466251 | F22: ='App.2-B_F Asset CGAAP 2012'!F22 -> 74277 | G22: 3503389.5 | H22: 30 | I22: 0.03333333333 | J22: =IF(H22=0,0,G22/H22)*-1 -> -116779.65 | K22: ='App.2-B_F Asset CGAAP 2012'!K22 -> -132664 | L22: 15884.35
A23: 1825 | B23: Storage Battery Equipment | C23: ='App.2-B_Fixed Asset Conti 2011'!H23 -> 0 | E23: 0 | F23: ='App.2-B_F Asset CGAAP 2012'!F23 -> 0 | G23: 0 | K23: ='App.2-B_F Asset CGAAP 2012'!K23 -> 0 | L23: 0
A24: 1830 | B24: Poles, Towers & Fixtures | C24: ='App.2-B_Fixed Asset Conti 2011'!H24 -> 22740550 | E24: 22740550 | F24: ='App.2-B_F Asset CGAAP 2012'!F24 -> 1033419 | G24: 23257259.5 | H24: 23.2 | I24: 0.04310344828 | J24: =IF(H24=0,0,G24/H24)*-1 -> -1002468.082 | K24: ='App.2-B_F Asset CGAAP 2012'!K24 -> -999841 | L24: -2627.081897
A25: 1835 | B25: Overhead Conductors & Devices | C25: ='App.2-B_Fixed Asset Conti 2011'!H25 -> 9165810 | E25: 9165810 | F25: ='App.2-B_F Asset CGAAP 2012'!F25 -> 1134725 | G25: 9733172.5 | H25: 25 | I25: 0.04 | J25: -389326.9 | K25: ='App.2-B_F Asset CGAAP 2012'!K25 -> -362770 | L25: -26556.9
A26: 1840 | B26: Underground Conduit | C26: ='App.2-B_Fixed Asset Conti 2011'!H26 -> 15031740 | E26: 15031740 | F26: ='App.2-B_F Asset CGAAP 2012'!F26 -> 900206 | G26: 15481843 | H26: 25 | I26: 0.04 | J26: -619273.72 | K26: ='App.2-B_F Asset CGAAP 2012'!K26 -> -633917 | L26: 14643.28
A27: 1845 | B27: Underground Conductors & Devices | C27: ='App.2-B_Fixed Asset Conti 2011'!H27 -> 5158092 | E27: 5158092 | F27: ='App.2-B_F Asset CGAAP 2012'!F27 -> 511530 | G27: 5413857 | H27: 25 | I27: 0.04 | J27: -216554.28 | K27: ='App.2-B_F Asset CGAAP 2012'!K27 -> -138997 | L27: -77557.28
A28: 1850 | B28: Line Transformers | C28: ='App.2-B_Fixed Asset Conti 2011'!H28 -> 18572095 | E28: 18572095 | F28: ='App.2-B_F Asset CGAAP 2012'!F28 -> 1419018 | G28: 19281604 | H28: 23.5 | I28: 0.04255319149 | J28: -820493.7872 | K28: ='App.2-B_F Asset CGAAP 2012'!K28 -> -839154 | L28: 18660.21277
A29: 1855 | B29: Services (Overhead & Underground) | C29: ='App.2-B_Fixed Asset Conti 2011'!H29 -> 13546399 | E29: 13546399 | F29: ='App.2-B_F Asset CGAAP 2012'!F29 -> 1527873 | G29: 14310335.5 | H29: 25 | I29: 0.04 | J29: -572413.42 | K29: ='App.2-B_F Asset CGAAP 2012'!K29 -> -435403 | L29: -137010.42
A30: 1860 | B30: Meters | C30: ='App.2-B_Fixed Asset Conti 2011'!H30 -> 911264 | E30: 911264 | F30: ='App.2-B_F Asset CGAAP 2012'!F30 -> 487068 | G30: 1154798 | H30: 19.8 | I30: 0.05050505051 | J30: -58323.13131 | K30: ='App.2-B_F Asset CGAAP 2012'!K30 -> -46542 | L30: -11781.13131
A31: 1860 | B31: Meters (Smart Meters) | C31: ='App.2-B_Fixed Asset Conti 2011'!H31+5702472 -> 5702472 | E31: 5702472 | F31: ='App.2-B_F Asset CGAAP 2012'!F31 -> 0 | G31: 5702472 | H31: =G31/K31*-1 -> 15.00003157 | I31: 0.06666652638 | J31: -380164 | K31: ='App.2-B_F Asset CGAAP 2012'!K31 -> -380164 | L31: 0
A32: 1905 | B32: Land | C32: ='App.2-B_Fixed Asset Conti 2011'!H32 -> 0 | E32: 0 | F32: ='App.2-B_F Asset CGAAP 2012'!F32 -> 0 | G32: 0 | K32: ='App.2-B_F Asset CGAAP 2012'!K32 -> 0 | L32: 0
A33: 1908 | B33: Buildings & Fixtures | C33: ='App.2-B_Fixed Asset Conti 2011'!H33 -> 0 | E33: 0 | F33: ='App.2-B_F Asset CGAAP 2012'!F33 -> 0 | G33: 0 | K33: ='App.2-B_F Asset CGAAP 2012'!K33 -> 0 | L33: 0
A34: 1910 | B34: Leasehold Improvements | C34: ='App.2-B_Fixed Asset Conti 2011'!H34 -> 0 | E34: 0 | F34: ='App.2-B_F Asset CGAAP 2012'!F34 -> 0 | G34: 0 | K34: ='App.2-B_F Asset CGAAP 2012'!K34 -> 0 | L34: 0
A35: 1915 | B35: Office Furniture & Equipment (10 years) | C35: ='App.2-B_Fixed Asset Conti 2011'!H35 -> 0 | E35: 0 | F35: ='App.2-B_F Asset CGAAP 2012'!F35 -> 0 | G35: 0 | K35: ='App.2-B_F Asset CGAAP 2012'!K35 -> 0 | L35: 0
A36: 1915 | B36: Office Furniture & Equipment (5 years) | C36: ='App.2-B_Fixed Asset Conti 2011'!H36 -> 0 | E36: 0 | F36: ='App.2-B_F Asset CGAAP 2012'!F36 -> 0 | G36: 0 | K36: ='App.2-B_F Asset CGAAP 2012'!K36 -> 0 | L36: 0
A37: 1920 | B37: Computer Equipment - Hardware | C37: ='App.2-B_Fixed Asset Conti 2011'!H37 -> 0 | E37: 0 | F37: ='App.2-B_F Asset CGAAP 2012'!F37 -> 0 | G37: 0 | K37: ='App.2-B_F Asset CGAAP 2012'!K37 -> 0 | L37: 0
A38: 1920 | B38: Computer Equip.-Hardware(Post Mar. 22/04) | C38: ='App.2-B_Fixed Asset Conti 2011'!H38 -> 0 | E38: 0 | F38: ='App.2-B_F Asset CGAAP 2012'!F38 -> 0 | G38: 0 | K38: ='App.2-B_F Asset CGAAP 2012'!K38 -> 0 | L38: 0
A39: 1920 | B39: Computer Hardware(Post Mar. 19/07) | C39: ='App.2-B_Fixed Asset Conti 2011'!H39+44877 -> 44877 | E39: 44877 | F39: ='App.2-B_F Asset CGAAP 2012'!F39 -> 0 | G39: 44877 | H39: =G39/K39*-1 -> 4.999665775 | I39: 0.2000133699 | J39: =IF(H39=0,0,G39/H39)*-1 -> -8976 | K39: ='App.2-B_F Asset CGAAP 2012'!K39 -> -8976 | L39: 0
A40: 1930 | B40: Transportation Equipment | C40: ='App.2-B_Fixed Asset Conti 2011'!H40 -> 0 | E40: 0 | F40: ='App.2-B_F Asset CGAAP 2012'!F40 -> 0 | G40: 0 | K40: ='App.2-B_F Asset CGAAP 2012'!K40 -> 0 | L40: 0
A41: 1935 | B41: Stores Equipment | C41: ='App.2-B_Fixed Asset Conti 2011'!H41 -> 0 | E41: 0 | F41: ='App.2-B_F Asset CGAAP 2012'!F41 -> 0 | G41: 0 | K41: ='App.2-B_F Asset CGAAP 2012'!K41 -> 0 | L41: 0
A42: 1940 | B42: Tools, Shop & Garage Equipment | C42: ='App.2-B_Fixed Asset Conti 2011'!H42 -> 0 | E42: 0 | F42: ='App.2-B_F Asset CGAAP 2012'!F42 -> 0 | G42: 0 | K42: ='App.2-B_F Asset CGAAP 2012'!K42 -> 0 | L42: 0
A43: 1945 | B43: Measurement & Testing Equipment | C43: ='App.2-B_Fixed Asset Conti 2011'!H43 -> 0 | E43: 0 | F43: ='App.2-B_F Asset CGAAP 2012'!F43 -> 0 | G43: 0 | K43: ='App.2-B_F Asset CGAAP 2012'!K43 -> 0 | L43: 0
A44: 1950 | B44: Power Operated Equipment | C44: ='App.2-B_Fixed Asset Conti 2011'!H44 -> 0 | E44: 0 | F44: ='App.2-B_F Asset CGAAP 2012'!F44 -> 0 | G44: 0 | K44: ='App.2-B_F Asset CGAAP 2012'!K44 -> 0 | L44: 0
A45: 1955 | B45: Communications Equipment | C45: ='App.2-B_Fixed Asset Conti 2011'!H45 -> 0 | E45: 0 | F45: ='App.2-B_F Asset CGAAP 2012'!F45 -> 0 | G45: 0 | K45: ='App.2-B_F Asset CGAAP 2012'!K45 -> 0 | L45: 0
A46: 1955 | B46: Communication Equipment (Smart Meters) | C46: ='App.2-B_Fixed Asset Conti 2011'!H46 -> 0 | E46: 0 | F46: ='App.2-B_F Asset CGAAP 2012'!F46 -> 0 | G46: 0 | K46: ='App.2-B_F Asset CGAAP 2012'!K46 -> 0 | L46: 0
A47: 1960 | B47: Miscellaneous Equipment | C47: ='App.2-B_Fixed Asset Conti 2011'!H47 -> 82385 | D47: 82385 | E47: 0 | F47: ='App.2-B_F Asset CGAAP 2012'!F47 -> 0 | G47: 0 | K47: ='App.2-B_F Asset CGAAP 2012'!K47 -> 0 | L47: 0
A48: 1970 | B48: Load Management Controls Customer Premises | C48: ='App.2-B_Fixed Asset Conti 2011'!H48 -> 1633219 | D48: 1481819 | E48: =C48-D48 -> 151400 | F48: ='App.2-B_F Asset CGAAP 2012'!F48 -> 0 | G48: =E48+0.5*F48 -> 151400 | H48: 10 | I48: =IF(H48=0,0,1/H48) -> 0.1 | J48: =IF(H48=0,0,G48/H48)*-1 -> -15140 | K48: ='App.2-B_F Asset CGAAP 2012'!K48 -> -15735 | L48: =IF(ISERROR(+J48-K48), 0, +J48-K48) -> 595
A49: 1975 | B49: Load Management Controls Utility Premises | C49: ='App.2-B_Fixed Asset Conti 2011'!H49 -> 0 | E49: 0 | F49: ='App.2-B_F Asset CGAAP 2012'!F49 -> 0 | G49: 0 | K49: ='App.2-B_F Asset CGAAP 2012'!K49 -> 0 | L49: 0
A50: 1980 | B50: System Supervisor Equipment | C50: ='App.2-B_Fixed Asset Conti 2011'!H50 -> 0 | E50: 0 | F50: ='App.2-B_F Asset CGAAP 2012'!F50 -> 0 | G50: 0 | K50: ='App.2-B_F Asset CGAAP 2012'!K50 -> 0 | L50: 0
A51: 1985 | B51: Miscellaneous Fixed Assets | C51: ='App.2-B_Fixed Asset Conti 2011'!H51 -> 0 | E51: 0 | F51: ='App.2-B_F Asset CGAAP 2012'!F51 -> 0 | G51: 0 | K51: ='App.2-B_F Asset CGAAP 2012'!K51 -> 0 | L51: 0
A52: 1995 | B52: Contributions & Grants | C52: ='App.2-B_Fixed Asset Conti 2011'!H52 -> -11944111 | E52: -11944111 | F52: ='App.2-B_F Asset CGAAP 2012'!F52 -> -1671900 | G52: -12780061 | K52: ='App.2-B_F Asset CGAAP 2012'!K52 -> 0 | L52: 0
B53: Sub-total | C53: =SUM(C16:C52) -> 85200537 | D53: =SUM(D16:D52) -> 1721948 | E53: 83478589 | F53: 6173564 | G53: 86565371 | J53: =SUM(J16:J52) -> -4346723.17 | K53: -4142848 | L53: -203875.1704
A54: 2055 | B54: Contract work in progress-electric
B55: Total | C55: =C53+C54 -> 85200537 | D55: =D53+D54 -> 1721948 | E55: 83478589 | F55: 6173564 | G55: 86565371 | J55: =J53+J54 -> -4346723.17 | K55: =K53+K54 -> -4142848 | L55: =L53+L54 -> -203875.1704
A57: Notes:
A58: 1 | B58: Board policy of the "half-year" rule - the applicant must ensure that additions in the year attract a half-year depreciation expense in the first year. Deviations from this standard practice must be supported in the application.
A59: 2 | B59: The applicant must provide an explanation of material variances in evidence
A61: General: | B61: Applicants must provide a breakdown of depreciation and amortization expense in the above format for all relevant accounts. Asset Retirement Obligations (AROs), depreciation and accretion expense should be disclosed separately consistent with the Notes of historical Audited Financial Statements.

Sheet App.2-CI _CGAAP DepExp 2013
K1: File Number: | L1: ='LDC Info'!$E$18 -> EB-2012-0160
K2: Exhibit: | L2: 4
K3: Tab: | L3: 2
K4: Schedule: | L4: 7
A6: Appendix 2-CI
A7: Depreciation and Amortization Expense
C9: Year | D9: 2013 | E9: CGAAP | F9: Kinetrics Useful Life
A11: Account | B11: Description | C11: Opening NBV as at Jan 1, 2013 5 | D11: Additions | E11: Average Remaining Life of Opening NBV 4 | F11: Years (new additions only) 3 | G11: Depreciation Rate on New Additions | H11: Depreciation Expense on Opening NBV | I11: Depreciation Expense on Additions 1 | J11: 2013 Depreciation Expense | K11: 2013 Depreciation Expense per Appendix 2-B Fixed Assets, Column K (l) | L11: Variance 2
C12: (a) | D12: (d) | E12: (i) | F12: (f) | G12: (g) = 1 / (f) | H12: (j) = (a) / (i) | I12: (h)=((d)*0.5)/(f) | J12: (k) = (j) + (h) | L12: (m) = (k) - (l)
A13: 1611 | B13: Computer Software (Formally known as Account 1925) | C13: =+'App.2-B_F Asset CGAAP 2012'!N16 -> 676904 | D13: ='App.2-B_F Asset Conti 2013'!F13 -> 0 | E13: 3.3 | F13: 5 | G13: =IF(F13=0,0,1/F13) -> 0.2 | H13: =IF(E13=0,0,+C13/E13)*-1 -> -205122.4242 | I13: =IF(F13=0,0,+(D13*0.5)/F13)*-1 -> 0 | J13: =IF(ISERROR(+H13+I13), 0, +H13+I13) -> -205122.4242 | K13: ='App.2-B_F Asset Conti 2013'!K13 -> -203609 | L13: =IF(ISERROR(+J13-K13), 0, +J13-K13) -> -1513.424242
A14: 1612 | B14: Land Rights (Formally known as Account 1906) | C14: =+'App.2-B_F Asset CGAAP 2012'!N17 -> 0 | D14: ='App.2-B_F Asset Conti 2013'!F14 -> 0 | G14: 0 | H14: =IF(E14=0,0,+C14/E14)*-1 -> 0 | I14: =IF(F14=0,0,+(D14*0.5)/F14)*-1 -> 0 | J14: =IF(ISERROR(+H14+I14), 0, +H14+I14) -> 0 | K14: ='App.2-B_F Asset Conti 2013'!K14 -> 0 | L14: 0
A15: 1805 | B15: Land | C15: =+'App.2-B_F Asset CGAAP 2012'!N18 -> 134968 | D15: ='App.2-B_F Asset Conti 2013'!F15 -> 0 | G15: 0 | H15: 0 | I15: 0 | J15: 0 | K15: ='App.2-B_F Asset Conti 2013'!K15 -> 0 | L15: 0
A16: 1808 | B16: Buildings | C16: =+'App.2-B_F Asset CGAAP 2012'!N19 -> 450195 | D16: ='App.2-B_F Asset Conti 2013'!F16 -> 35000 | E16: 41.9 | F16: 50 | G16: 0.02 | H16: -10744.51074 | I16: -350 | J16: -11094.51074 | K16: ='App.2-B_F Asset Conti 2013'!K16 -> -10827 | L16: -267.5107399
A17: 1810 | B17: Leasehold Improvements | C17: =+'App.2-B_F Asset CGAAP 2012'!N20 -> 0 | D17: ='App.2-B_F Asset Conti 2013'!F17 -> 0 | G17: 0 | H17: 0 | I17: 0 | J17: 0 | K17: ='App.2-B_F Asset Conti 2013'!K17 -> 0 | L17: 0
A18: 1815 | B18: Transformer Station Equipment >50 kV | C18: =+'App.2-B_F Asset CGAAP 2012'!N21 -> 0 | D18: ='App.2-B_F Asset Conti 2013'!F18 -> 0 | G18: 0 | H18: 0 | I18: 0 | J18: 0 | K18: ='App.2-B_F Asset Conti 2013'!K18 -> 0 | L18: 0
A19: 1820 | B19: Distribution Station Equipment <50 kV | C19: =+'App.2-B_F Asset CGAAP 2012'!N22 -> 2247615 | D19: ='App.2-B_F Asset Conti 2013'!F19 -> 15000 | E19: 16.8 | F19: 45 | G19: 0.02222222222 | H19: -133786.6071 | I19: -166.6666667 | J19: -133953.2738 | K19: ='App.2-B_F Asset Conti 2013'!K19 -> -139086 | L19: 5132.72619
A20: 1825 | B20: Storage Battery Equipment | C20: =+'App.2-B_F Asset CGAAP 2012'!N23 -> 0 | D20: ='App.2-B_F Asset Conti 2013'!F20 -> 0 | G20: 0 | H20: 0 | I20: 0 | J20: 0 | K20: ='App.2-B_F Asset Conti 2013'!K20 -> 0 | L20: 0
A21: 1830 | B21: Poles, Towers & Fixtures | C21: =+'App.2-B_F Asset CGAAP 2012'!N24 -> 12819123 | D21: ='App.2-B_F Asset Conti 2013'!F21 -> 626050 | E21: 23.6 | F21: 45 | G21: 0.02222222222 | H21: -543183.178 | I21: -6956.111111 | J21: -550139.2891 | K21: ='App.2-B_F Asset Conti 2013'!K21 -> -546126 | L21: -4013.289077
A22: 1835 | B22: Overhead Conductors & Devices | C22: =+'App.2-B_F Asset CGAAP 2012'!N25 -> 7728230 | D22: ='App.2-B_F Asset Conti 2013'!F22 -> 1197500 | E22: 42.5 | F22: 48 | G22: 0.02083333333 | H22: -181840.7059 | I22: -12473.95833 | J22: -194314.6642 | K22: ='App.2-B_F Asset Conti 2013'!K22 -> -192658 | L22: -1656.664216
A23: 1840 | B23: Underground Conduit | C23: =+'App.2-B_F Asset CGAAP 2012'!N26 -> 9651165 | D23: ='App.2-B_F Asset Conti 2013'!F23 -> 1443200 | E23: 30 | F23: 44 | G23: 0.02272727273 | H23: -321705.5 | I23: -16400 | J23: -338105.5 | K23: ='App.2-B_F Asset Conti 2013'!K23 -> -327752 | L23: -10353.5
A24: 1845 | B24: Underground Conductors & Devices | C24: =+'App.2-B_F Asset CGAAP 2012'!N27 -> 4811322 | D24: ='App.2-B_F Asset Conti 2013'!F24 -> 534000 | E24: 25 | F24: 35 | G24: 0.02857142857 | H24: -192452.88 | I24: -7628.571429 | J24: -200081.4514 | K24: ='App.2-B_F Asset Conti 2013'!K24 -> -94813 | L24: -105268.4514
A25: 1850 | B25: Line Transformers | C25: =+'App.2-B_F Asset CGAAP 2012'!N28 -> 11702541 | D25: ='App.2-B_F Asset Conti 2013'!F25 -> 1350250 | E25: 24 | F25: 44 | G25: 0.02272727273 | H25: -487605.875 | I25: -15343.75 | J25: -502949.625 | K25: ='App.2-B_F Asset Conti 2013'!K25 -> -483006 | L25: -19943.625
A26: 1855 | B26: Services (Overhead & Underground) | C26: =+'App.2-B_F Asset CGAAP 2012'!N29 -> 10879021 | D26: ='App.2-B_F Asset Conti 2013'!F26 -> 959000 | E26: 30 | F26: 45 | G26: 0.02222222222 | H26: -362634.0333 | I26: -10655.55556 | J26: -373289.5889 | K26: ='App.2-B_F Asset Conti 2013'!K26 -> -223421 | L26: -149868.5889
A27: 1860 | B27: Meters | C27: =+'App.2-B_F Asset CGAAP 2012'!N30 -> 993420 | D27: ='App.2-B_F Asset Conti 2013'!F27 -> 205000 | E27: 16 | F27: 25 | G27: 0.04 | H27: -62088.75 | I27: -4100 | J27: -66188.75 | K27: ='App.2-B_F Asset Conti 2013'!K27 -> -60328 | L27: -5860.75
A28: 1860 | B28: Meters (Smart Meters) | C28: =+'App.2-B_F Asset CGAAP 2012'!N31 -> 4101304 | D28: ='App.2-B_F Asset Conti 2013'!F28 -> 0 | E28: 10.5 | F28: 15 | G28: 0.06666666667 | H28: -390600.381 | I28: 0 | J28: -390600.381 | K28: ='App.2-B_F Asset Conti 2013'!K28 -> -380163 | L28: -10437.38095
A29: 1905 | B29: Land | C29: =+'App.2-B_F Asset CGAAP 2012'!N32 -> 0 | D29: ='App.2-B_F Asset Conti 2013'!F29 -> 0 | G29: 0 | H29: 0 | I29: 0 | J29: 0 | K29: ='App.2-B_F Asset Conti 2013'!K29 -> 0 | L29: 0
A30: 1908 | B30: Buildings & Fixtures | C30: =+'App.2-B_F Asset CGAAP 2012'!N33 -> 0 | D30: ='App.2-B_F Asset Conti 2013'!F30 -> 0 | G30: 0 | H30: 0 | I30: 0 | J30: 0 | K30: ='App.2-B_F Asset Conti 2013'!K30 -> 0 | L30: 0
A31: 1910 | B31: Leasehold Improvements | C31: =+'App.2-B_F Asset CGAAP 2012'!N34 -> 0 | D31: ='App.2-B_F Asset Conti 2013'!F31 -> 0 | G31: 0 | H31: 0 | I31: 0 | J31: 0 | K31: ='App.2-B_F Asset Conti 2013'!K31 -> 0 | L31: 0
A32: 1915 | B32: Office Furniture & Equipment (10 years) | C32: =+'App.2-B_F Asset CGAAP 2012'!N35 -> 0 | D32: ='App.2-B_F Asset Conti 2013'!F32 -> 0 | G32: 0 | H32: 0 | I32: 0 | J32: 0 | K32: ='App.2-B_F Asset Conti 2013'!K32 -> 0 | L32: 0
A33: 1915 | B33: Office Furniture & Equipment (5 years) | C33: =+'App.2-B_F Asset CGAAP 2012'!N36 -> 0 | D33: ='App.2-B_F Asset Conti 2013'!F33 -> 0 | G33: 0 | H33: 0 | I33: 0 | J33: 0 | K33: ='App.2-B_F Asset Conti 2013'!K33 -> 0 | L33: 0
A34: 1920 | B34: Computer Equipment - Hardware | C34: =+'App.2-B_F Asset CGAAP 2012'!N37 -> 0 | D34: ='App.2-B_F Asset Conti 2013'!F34 -> 0 | G34: 0 | H34: 0 | I34: 0 | J34: 0 | K34: ='App.2-B_F Asset Conti 2013'!K34 -> 0 | L34: 0
A35: 1920 | B35: Computer Equip.-Hardware(Post Mar. 22/04) | C35: =+'App.2-B_F Asset CGAAP 2012'!N38 -> 0 | D35: ='App.2-B_F Asset Conti 2013'!F35 -> 0 | G35: 0 | H35: 0 | I35: 0 | J35: 0 | K35: ='App.2-B_F Asset Conti 2013'!K35 -> 0 | L35: 0
A36: 1920 | B36: Computer Equip.-Hardware(Post Mar. 19/07) | C36: =+'App.2-B_F Asset CGAAP 2012'!N39 -> 9917 | D36: ='App.2-B_F Asset Conti 2013'!F36 -> 0 | E36: =-C36/K36 -> 1.472457313 | G36: 0 | H36: -6735 | I36: 0 | J36: -6735 | K36: ='App.2-B_F Asset Conti 2013'!K36 -> -6735 | L36: 0
A37: 1930 | B37: Transportation Equipment | C37: =+'App.2-B_F Asset CGAAP 2012'!N40 -> 0 | D37: ='App.2-B_F Asset Conti 2013'!F37 -> 0 | G37: 0 | H37: 0 | I37: 0 | J37: 0 | K37: ='App.2-B_F Asset Conti 2013'!K37 -> 0 | L37: 0
A38: 1935 | B38: Stores Equipment | C38: =+'App.2-B_F Asset CGAAP 2012'!N41 -> 0 | D38: ='App.2-B_F Asset Conti 2013'!F38 -> 0 | G38: 0 | H38: 0 | I38: 0 | J38: 0 | K38: ='App.2-B_F Asset Conti 2013'!K38 -> 0 | L38: 0
A39: 1940 | B39: Tools, Shop & Garage Equipment | C39: =+'App.2-B_F Asset CGAAP 2012'!N42 -> 0 | D39: ='App.2-B_F Asset Conti 2013'!F39 -> 0 | G39: 0 | H39: 0 | I39: 0 | J39: 0 | K39: ='App.2-B_F Asset Conti 2013'!K39 -> 0 | L39: 0
A40: 1945 | B40: Measurement & Testing Equipment | C40: =+'App.2-B_F Asset CGAAP 2012'!N43 -> 0 | D40: ='App.2-B_F Asset Conti 2013'!F40 -> 0 | G40: 0 | H40: 0 | I40: 0 | J40: 0 | K40: ='App.2-B_F Asset Conti 2013'!K40 -> 0 | L40: 0
A41: 1950 | B41: Power Operated Equipment | C41: =+'App.2-B_F Asset CGAAP 2012'!N44 -> 0 | D41: ='App.2-B_F Asset Conti 2013'!F41 -> 0 | G41: 0 | H41: 0 | I41: 0 | J41: 0 | K41: ='App.2-B_F Asset Conti 2013'!K41 -> 0 | L41: 0
A42: 1955 | B42: Communications Equipment | C42: =+'App.2-B_F Asset CGAAP 2012'!N45 -> 0 | D42: ='App.2-B_F Asset Conti 2013'!F42 -> 0 | G42: 0 | H42: 0 | I42: 0 | J42: 0 | K42: ='App.2-B_F Asset Conti 2013'!K42 -> 0 | L42: 0
A43: 1955 | B43: Communication Equipment (Smart Meters) | C43: =+'App.2-B_F Asset CGAAP 2012'!N46 -> 0 | D43: ='App.2-B_F Asset Conti 2013'!F43 -> 0 | G43: 0 | H43: 0 | I43: 0 | J43: 0 | K43: ='App.2-B_F Asset Conti 2013'!K43 -> 0 | L43: 0
A44: 1960 | B44: Miscellaneous Equipment | C44: =+'App.2-B_F Asset CGAAP 2012'!N47 -> 0 | D44: ='App.2-B_F Asset Conti 2013'!F44 -> 0 | G44: 0 | H44: 0 | I44: 0 | J44: 0 | K44: ='App.2-B_F Asset Conti 2013'!K44 -> 0 | L44: 0
A45: 1970 | B45: Load Management Controls Customer Premises | C45: =+'App.2-B_F Asset CGAAP 2012'!N48 -> 46503 | D45: ='App.2-B_F Asset Conti 2013'!F45 -> 0 | E45: 13 | F45: 20 | G45: 0.05 | H45: -3577.153846 | I45: 0 | J45: -3577.153846 | K45: ='App.2-B_F Asset Conti 2013'!K45 -> -3549 | L45: -28.15384615
A46: 1975 | B46: Load Management Controls Utility Premises | C46: =+'App.2-B_F Asset CGAAP 2012'!N49 -> 0 | D46: ='App.2-B_F Asset Conti 2013'!F46 -> 0 | G46: 0 | I46: 0 | J46: 0 | K46: ='App.2-B_F Asset Conti 2013'!K46 -> 0 | L46: 0
A47: 1980 | B47: System Supervisor Equipment | C47: =+'App.2-B_F Asset CGAAP 2012'!N50 -> 0 | D47: ='App.2-B_F Asset Conti 2013'!F47 -> 0 | G47: 0 | I47: 0 | J47: 0 | K47: ='App.2-B_F Asset Conti 2013'!K47 -> 0 | L47: 0
A48: 1985 | B48: Miscellaneous Fixed Assets | C48: =+'App.2-B_F Asset CGAAP 2012'!N51 -> 0 | D48: ='App.2-B_F Asset Conti 2013'!F48 -> 0 | G48: 0 | I48: 0 | J48: 0 | K48: ='App.2-B_F Asset Conti 2013'!K48 -> 0 | L48: 0
A49: 1995 | B49: Contributions & Grants | C49: =+'App.2-B_F Asset CGAAP 2012'!N52 -> -13616011 | D49: ='App.2-B_F Asset Conti 2013'!F49 -> -1893000 | G49: 0 | H49: 0 | I49: 0 | J49: 0 | K49: ='App.2-B_F Asset Conti 2013'!K49 -> 0 | L49: 0
B50: Sub-total | C50: =SUM(C13:C49) -> 52636217 | D50: =SUM(D13:D49) -> 4472000 | E50: =C50/(-K50-D50/F50/2) -> 20.1799752 | F50: =AVERAGE(F13:F45) -> 35.08333333 | H50: =SUM(H13:H49) -> -2902076.999 | I50: -74074.6131 | J50: -2976151.612 | K50: -2672073 | L50: -304078.6122
A51: 2055 | B51: Contract work in progress-electric | C51: =+'App.2-B_F Asset CGAAP 2012'!N54 -> 2043052 | G51: 0 | H51: =IF(E51=0,0,+C51/E51) -> 0 | I51: 0 | J51: =IF(ISERROR(+H51+I51), 0, +H51+I51) -> 0 | K51: 0 | L51: 0
B52: Total | C52: =C50+C51 -> 54679269 | D52: =D50+D51 -> 4472000 | H52: =H50+H51 -> -2902076.999 | I52: -74074.6131 | J52: -2976151.612 | K52: -2672073 | L52: -304078.6122
A54: Notes:
A56: 1 | B56: Board policy of the "half-year" rule - the applicant must ensure that additions in the year attract a half-year depreciation expense in the first year. Deviations from this standard practice must be supported in the application.
A57: 2 | B57: The applicant must provide an explanation of material variances in evidence
A58: 3 | B58: The applicant should ensure that the years for new additions of assets are the asset useful lives determined by management in accordance with IFRS.
A59: 4 | B59: A recalculation should be performed to determine the average remaining life of opening balance of assets (i.e. excluding 2012 additions) under IFRS. For example, Asset A had a useful life of 20 years under CGAAP. On January 1, 2012, the date of transition, Asset A was 3 years depreciated. As a result, Asset A would have a remaining service life of 17 years (20 years less 3 years) under CGAAP as of January 1, 2012. Due to the transition to IFRS, management re-assessed the asset useful lives under IFRS principles and concluded that the revised useful life of Asset A is now 30 years. Therefore, the average remaining useful life of opening balance of Asset A is determined to be 27 years (30 years less 3 years) under IFRS as of January 1, 2012.
A60: 5 | B60: NBV must exclude assets still on the books but which have been fully amortized or depreciated.
A61: 6 | B61: This column refers to the calculated full year depreciation but excludes the depreciation expense on assets fully depreciated during the year. This column is used for the purpose of calculating depreciation expense in the following year on the next worksheet.
A63: General: | B63: Applicants must provide a breakdown of depreciation and amortization expense in the above format for all relevant accounts. Asset Retirement Obligations (AROs), depreciation and accretion expense should be disclosed separately consistent with the Notes of historical Audited Financial Statements.

Sheet App.2-D_Overhead
L1: File Number: | M1: ='LDC Info'!$E$18 -> EB-2012-0160
L2: Exhibit: | M2: 2
L3: Tab: | M3: 1
L4: Schedule: | M4: 4
L5: Page:
L7: Date:
A9: Appendix 2-D
A10: Overhead Expense
A12: The following table should be completed based on the information requested below. An explanation should be provided for any blank entries. The entries should include overhead costs that are currently capitalized on self-constructed assets under MIFRS or an alternate accounting standard.
E13: (A) 1 | F13: (B) | G13: (C) | H13: (D) | I13: (E) 1 | J13: (F) | K13: (G)
A14: Nature of the Overhead Costs | E14: Dollar | F14: Dollar | G14: Dollar | H14: Dollar Impact - | I14: Dollar Impact - | J14: Directly | K14: Reasons why the overhead costs are allowed to be
F15: Impact on PP&E | G15: Impact on PP&E | H15: PP&E Variance | I15: PP&E Variance | J15: Attributable? | K15: capitalized under MIFRS or an alternate accounting
F16: Bridge Year | G16: Test Year | H16: Test versus Bridge | I16: Test versus Historic | J16: (Y/N) | K16: standard given limitations on capitalized overhead
A17: employee benefits | H17: =+G17-F17 -> 0
A18: costs of site preparation | H18: 0
A19: initial delivery and handling costs | H19: 0
A20: costs of testing whether the asset is functioning properly | H20: 0
A21: professional fees | H21: 0
H22: 0
A23: costs of opening a new facility | H23: 0
A24: costs of introducing a new product or service (including costs of advertising and promotional activities) | H24: 0
A25: costs of conducting business in a new location or with a new class of customer (including costs of staff training) | H25: 0
A26: administration and other general overhead costs | F26: 901927 | G26: 0 | H26: -901927 | J26: N | K26: Capitalized in 2012 under CGAAP
H27: 0
H28: 0
H29: 0
A30: Insert description of additional item(s) and new rows if needed. | H30: 0
A31: Total | E31: =SUM(E17:E30) -> 0 | F31: =SUM(F17:F30) -> 901927 | G31: =SUM(G17:G30) -> 0 | H31: =SUM(H17:H30) -> -901927 | I31: =SUM(I17:I30) -> 0
A34: The following table should be completed based on the information requested below. An explanation should be provided for any blank entries. The entries should include overhead costs that were capitalized on self-constructed assets under CGAAP but are no longer capitalized under MIFRS or an alternate accounting standard and are included in OM&A.
E35: (A) 1 | F35: (B) | G35: (C) | H35: (D) | I35: (E) 1 | J35: (F) | K35: (G)
A36: Nature of the Overhead Costs | E36: Dollar | F36: Dollar | G36: Dollar | H36: Dollar Impact - | I36: Dollar Impact - | J36: Directly | K36: Reasons why the overhead costs are not allowed to be
E37: Impact on OM&A | F37: Impact on OM&A | G37: Impact on OM&A | H37: OM&A Variance | I37: OM&A Variance | J37: Attributable? | K37: capitalized under MIFRS or an alternate accounting
E38: Historic Year | F38: Bridge Year | G38: Test Year | H38: Test versus Bridge | I38: Test versus Historic | J38: (Y/N) | K38: standard given limitations on capitalized overhead
A39: employee benefits | H39: =+G39-F39 -> 0
A40: costs of site preparation | H40: =+G40-F40 -> 0
A41: initial delivery and handling costs | H41: =+G41-F41 -> 0
A42: costs of testing whether the asset is functioning properly | H42: =+G42-F42 -> 0
A43: professional fees | H43: =+G43-F43 -> 0
A45: costs of opening a new facility | H45: =+G45-F45 -> 0
A46: costs of introducing a new product or service (including costs of advertising and promotional activities) | H46: 0
A47: costs of conducting business in a new location or with a new class of customer (including costs of staff training) | H47: 0
A48: administration and other general overhead costs | F48: 0 | G48: 950363 | H48: 950363 | J48: N | K48: No longer capitalized with MIFRS policy under CGAAP
H49: 0
H50: 0
H51: 0
A52: Insert description of additional item(s) and new rows if needed. | H52: 0
A53: Total | E53: =SUM(E39:E52) -> 0 | F53: =SUM(F39:F52) -> 0 | G53: =SUM(G39:G52) -> 950363 | H53: =SUM(H39:H52) -> 950363 | I53: =SUM(I39:I52) -> 0
A55: Notes:
A56: 1 | B56: If the applicant chooses to adopt IFRS or an alternate accounting standard for financial reporting purposes in 2013, the applicant does not need to complete Columns A, E. If the applicant adopts IFRS or an alternate accounting standard for financial reporting purposes in 2012, the applicant must complete all columns.

Sheet App.2-F_Other_Oper_Rev
I1: File Number: | J1: ='LDC Info'!$E$18 -> EB-2012-0160
I2: Exhibit: | J2: 3
I3: Tab: | J3: 1
I4: Schedule: | J4: 1
I5: Date:
B7: Appendix 2-F
B8: Table 3-30 Other Operating Revenue
B10: USoA # | C10: USoA Description | D10: =H11-3 & " Actual" -> 2009 Actual | E10: =H11-2 & " Actual" -> 2010 Actual | F10: =H11-1 & " Actual"& CHAR(178) -> 2011 Actual² | G10: =H11-1 & " Actual"& CHAR(178) -> 2011 Actual² | H10: ="Bridge Year" & CHAR(179) -> Bridge Year³ | I10: 2012 Actual | J10: 2013 Test Year
H11: ='LDC Info'!E26 -> 2012
C12: Reporting Basis | D12: CGAAP | E12: CGAAP | F12: CGAAP | H12: CGAAP | I12: CGAAP | J12: CGAAP
B13: 4235 | C13: Specific Service Charges | D13: 731535 | E13: 712961 | F13: 620946 | H13: =480000+164000 -> 644000 | I13: 699723 | J13: =650000+50000+3434 -> 703434
B14: 4225 | C14: Late Payment Charges | D14: 203845 | E14: 203072 | F14: 207858 | H14: 200000 | I14: 197951 | J14: 200000
B15: 4082 | C15: Retail Services Revenues | D15: 34566 | E15: 34326 | F15: 27299 | H15: 22000 | I15: 21030 | J15: 22000
B16: 4084 | C16: STR Revenue | D16: 19532 | E16: 20769 | F16: 15678 | H16: 11000 | I16: 10605 | J16: 11000
B17: 4086 | C17: SSS Administration Revenue | D17: 89560 | E17: 91279 | F17: 95183 | H17: 95000 | I17: 99140 | J17: =95000+5800 -> 100800 | M17: historically reported in account 4080
B18: 4210 | C18: Rent from Electric Property | D18: 216325 | E18: 204294 | F18: 210681 | H18: 210000 | I18: 211206 | J18: 210000
B19: 4405 | C19: Interest & Dividend Income | D19: =D53 -> 10836 | E19: =E53 -> 82940 | F19: 75551 | H19: =H53 -> 82000 | I19: =I53 -> 80172 | J19: =J53 -> 75000
B23: Specific Service Charges | D23: =D13 -> 731535 | E23: 712961 | F23: 620946 | G23: =G13 -> 0 | H23: 644000 | I23: 699723 | J23: =J13 -> 703434
B24: Late Payment Charges | D24: 203845 | E24: 203072 | F24: 207858 | G24: =G14 -> 0 | H24: 200000 | I24: 197951 | J24: =J14 -> 200000
B25: Other Operating Revenues | D25: =SUM(D15:D18) -> 359983 | E25: =SUM(E15:E18) -> 350668 | F25: 348841 | G25: 0 | H25: 338000 | I25: 341981 | J25: =SUM(J15:J18) -> 343800
B26: Other Income or Deductions | D26: =D19 -> 10836 | E26: =E19 -> 82940 | F26: 75551 | G26: 0 | H26: 82000 | I26: 80172 | J26: =J19 -> 75000
B27: Total | D27: =SUM(D23:D26) -> 1306199 | E27: 1349641 | F27: 1253196 | G27: 0 | H27: 1264000 | I27: 1319827 | J27: 1322234
O28: 0
B29: Description | D29: Account(s)
B30: Specific Service Charges: | D30: 4235
B31: Late Payment Charges: | D31: 4225
B32: Other Distribution Revenues: | D32: 4080, 4082, 4084, 4090, 4205, 4210, 4215, 4220, 4240, 4245
B33: Other Income and Expenses: | D33: 4305, 4310, 4315, 4320, 4325, 4330, 4335, 4340, 4345, 4350, 4355, 4360, 4365, 4370, 4375, 4380, 4385, 4390, 4395, 4398, 4405, 4415
B36: Note: Add all applicable accounts listed above to the table and include all relevant information.
B37: The above table assumes adoption of MIFRS as of January 1, 2013. If the adoption year differs, please adjust the table accordingly.
B40: Account Breakdown Details
B42: For each "Other Operating Revenue" and "Other Income or Deductions" Account, a detailed breakdown of the account components is required. See the example below for Account 4405, Interest and Dividend Income.
B45: Account 4405 - Interest and Dividend Income
D46: =D10 -> 2009 Actual | E46: =E10 -> 2010 Actual | F46: =F10 -> 2011 Actual² | G46: =G10 -> 2011 Actual² | H46: Bridge Year | I46: 2012 Actual | J46: Test Year
B47: Reporting Basis | D47: =IF(ISBLANK(D12), "", D12) -> CGAAP | E47: CGAAP | F47: CGAAP | H47: CGAAP | I47: CGAAP | J47: CGAAP
B48: Short-term Investment Interest
B49: Bank Deposit Interest | D49: 8789 | E49: 70541 | F49: 75551 | H49: 82000 | I49: 80172 | J49: 75000
B50: Miscellaneous Interest Revenue | D50: 2047 | E50: 12399
B51: etc.1
B53: Total | D53: =SUM(D48:D52) -> 10836 | E53: 82940 | F53: 75551 | G53: 0 | H53: 82000 | I53: 80172 | J53: 75000
B56: Notes:
B57: 1 | C57: List and specify any other interest revenue
B58: 2 | C58: If the applicant is adopting IFRS or an alternate accounting standard as of January 1, 2012 for financial reporting purposes, 2011 must be presented on both a CGAAP and MIFRS (or alternate accounting standard) basis.
B59: 3 | C59: If the applicant is adopting IFRS or an alternate accounting standard as of January 1, 2013 for financial reporting purposes, 2012 must be presented on both a CGAAP and MIFRS (or alternate accounting standard) basis.

Sheet App.2-G_Detailed_OM&A_Expenses
H1: File Number: | I1: ='LDC Info'!$E$18 -> EB-2012-0160
H2: Exhibit: | I2: 4
H3: Tab: | I3: 2
H4: Schedule: | I4: 2
B9: Appendix 2-G
B10: Detailed, Account by Account, OM&A Expense Table
B11: (excluding Depreciation and Amortization)
B14: Account | C14: Description | D14: ="Last Rebasing Year (" & 'LDC Info'!E30 & " Actuals)" -> Last Rebasing Year (2009 Actuals) | E14: ='LDC Info'!E26-2 & " Actual" -> 2010 Actual | F14: ='LDC Info'!E26-1 & " Actual" & CHAR(178) -> 2011 Actual² | G14: ='LDC Info'!E26-1 & " Actual"& CHAR(178) -> 2011 Actual² | H14: 2012 Actual | I14: Test Year 2013 - MIFRS Asset policies under
B15: Reporting Basis | D15: CGAAP | E15: CGAAP | F15: CGAAP | H15: CGAAP | I15: CGAAP
B16: Operations
B17: 5005 | C17: Operation Supervision and Engineering | D17: 44039.48 | E17: 25430 | F17: 85050 | H17: 109131 | I17: 121247
B18: 5010 | C18: Load Dispatching | D18: 270056.02 | E18: 366423 | F18: 328055 | H18: 333966 | I18: 332563
B19: 5012 | C19: Station Buildings and Fixtures Expense | D19: 124526.76 | E19: 124582 | F19: 97716 | H19: 143796 | I19: 73504
B20: 5014 | C20: Transformer Station Equipment - Operation Labour | D20: 0 | E20: 0 | F20: 0 | H20: 0 | I20: 0
B21: 5015 | C21: Transformer Station Equipment - Operation Supplies and Expenses | D21: 0 | E21: 0 | F21: 0 | H21: 0 | I21: 0
B22: 5016 | C22: Distribution Station Equipment - Operation Labour | D22: 61221.01 | E22: 101742 | F22: 118330 | H22: 132893 | I22: 181492
B23: 5017 | C23: Distribution Station Equipment - Operation Supplies and Expenses | D23: 110009 | E23: 112921 | F23: 124859 | H23: 108271 | I23: 141100
B24: 5020 | C24: Overhead Distribution Lines and Feeders - Operation Labour | D24: 20622.25 | E24: 17056 | F24: 25972 | H24: 46181 | I24: 51767
B25: 5025 | C25: Overhead Distribution Lines and Feeders - Operation Supplies and Expenses | D25: 10659.41 | E25: 7511 | F25: 19854 | H25: 17155 | I25: 23800
B26: 5030 | C26: Overhead Sub-transmission Feeders - Operation | D26: 16389.46 | E26: 20576 | F26: 16471 | H26: 21608 | I26: 28684
B27: 5035 | C27: Overhead Distribution Transformers - Operation | D27: 79239.48 | E27: 1852 | F27: 1103 | H27: 193 | I27: 9685
B28: 5040 | C28: Underground Distribution Lines and Feeders - Operation Labour | D28: 85020.23 | E28: 129882 | F28: 164292 | H28: 140460 | I28: 166303
B29: 5045 | C29: Underground Distribution Lines and Feeders - Operation Supplies and Expenses | D29: 20575.87 | E29: 19997 | F29: 58971 | H29: 33111 | I29: 67500
B30: 5050 | C30: Underground Sub-transmission Feeders - Operation | D30: 0 | E30: 0 | F30: 0 | H30: 0 | I30: 0
B31: 5055 | C31: Underground Distribution Transformers - Operation | D31: 17765.78 | E31: 730 | F31: 1669 | H31: 141 | I31: 12060
B32: 5060 | C32: Street Lighting and Signal System Expense | D32: 0 | E32: 0 | F32: 0 | H32: 0 | I32: 0
B33: 5065 | C33: Meter Expense | D33: 148256.63 | E33: 193889 | F33: 200185 | H33: 220009 | I33: 335758
B34: 5070 | C34: Customer Premises - Operation Labour | D34: 1064.36 | E34: 620 | F34: 0 | H34: 0 | I34: 0
B35: 5075 | C35: Customer Premises - Operation Materials and Expenses | D35: 1865.81 | E35: 0 | F35: 0 | H35: 0 | I35: 0
B36: 5085 | C36: Miscellaneous Distribution Expenses | D36: 473363.2 | E36: 238042 | F36: 222179 | H36: 229998 | I36: 394047
B37: 5090 | C37: Underground Distribution Lines and Feeders - Rental Paid | D37: 0 | E37: 0 | F37: 0 | H37: 0 | I37: 0
B38: 5095 | C38: Overhead Distribution Lines and Feeders - Rental Paid | D38: 0 | E38: 0 | F38: 0 | H38: 0 | I38: 0
B39: 5096 | C39: Other Rent | D39: 0 | E39: 0 | F39: 0 | H39: 0 | I39: -167691
B40: Total - Operations | D40: =SUM(D17:D39) -> 1484674.75 | E40: =SUM(E17:E39) -> 1361253 | F40: =SUM(F17:F39) -> 1464706 | G40: =SUM(G17:G39) -> 0 | H40: 1536913 | I40: =SUM(I17:I39) -> 1771819
B43: Account | C43: Description | D43: =D14 -> Last Rebasing Year (2009 Actuals) | E43: 2010 Actual | F43: 2011 Actual² | G43: 2011 Actual² | H43: 2012 Actual | I43: Test Year 2013 - MIFRS Asset policies under
B44: Reporting Basis | D44: CGAAP | E44: CGAAP | F44: CGAAP | H44: CGAAP | I44: CGAAP
B45: Maintenance
B46: 5105 | C46: Maintenance Supervision and Engineering | D46: 0 | E46: 0 | F46: 0 | H46: 0 | I46: 0
B47: 5110 | C47: Maintenance of Buildings and Fixtures - Distribution Stations | D47: 4346.1 | E47: 12485 | F47: 34717 | H47: 26561 | I47: 37833
B48: 5112 | C48: Maintenance of Transformer Station Equipment | D48: 0 | E48: 0 | F48: 0 | H48: 0 | I48: 0
B49: 5114 | C49: Maintenance of Distribution Station Equipment | D49: 0 | E49: 0 | F49: 0 | H49: 0 | I49: 0
B50: 5120 | C50: Maintenance of Poles, Towers and Fixtures | D50: 0 | E50: 0 | F50: 0 | H50: 0 | I50: 0
B51: 5125 | C51: Maintenance of Overhead Conductors and Devices | D51: 363559.81 | E51: 323021 | F51: 628345 | H51: 505057 | I51: 480690
B52: 5130 | C52: Maintenance of Overhead Services | D52: 140532.29 | E52: 227515 | F52: 251086 | H52: 228873 | I52: 209982
B53: 5135 | C53: Overhead Distribution Lines and Feeders - Right of Way | D53: 233412.9 | E53: 74990 | F53: 175650 | H53: 328593 | I53: 260938
B54: 5145 | C54: Maintenance of Underground Conduit | D54: 0 | E54: 0 | F54: 0 | H54: 0 | I54: 0
B55: 5150 | C55: Maintenance of Underground Conductors and Devices | D55: 100921.12 | E55: 79095 | F55: 54381 | H55: 61649 | I55: 123877
B56: 5155 | C56: Maintenance of Underground Services | D56: 125491.31 | E56: 130531 | F56: 197492 | H56: 180666 | I56: 193237
B57: 5160 | C57: Maintenance of Line Transformers | D57: 121267.72 | E57: 129247 | F57: 145848 | H57: 93102 | I57: 132485
B58: 5165 | C58: Maintenance of Street Lighting and Signal Systems | D58: 0 | E58: 0 | F58: 0 | H58: 0 | I58: 0
B59: 5170 | C59: Sentinel Lights - Labour | D59: 0 | E59: 0 | F59: 0 | H59: 0 | I59: 0
B60: 5172 | C60: Sentinel Lights - Materials and Expenses | D60: 0 | E60: 0 | F60: 0 | H60: 0 | I60: 0
B61: 5175 | C61: Maintenance of Meters | D61: 2405.05 | E61: 0 | F61: 0 | H61: 0 | I61: 1781
B62: 5178 | C62: Customer Installations Expenses - Leased Property | D62: 0 | E62: 0 | F62: 0 | H62: 0 | I62: 0
B63: 5195 | C63: Maintenance of Other Installations on Customer Premises | D63: 0 | E63: 0 | F63: 0 | H63: 0 | I63: -124574
B64: Total - Maintenance | D64: =SUM(D46:D63) -> 1091936.3 | E64: =SUM(E46:E63) -> 976884 | F64: =SUM(F46:F63) -> 1487519 | G64: =SUM(G46:G63) -> 0 | H64: 1424501 | I64: =SUM(I46:I63) -> 1316249
B67: Account | C67: Description | D67: =D43 -> Last Rebasing Year (2009 Actuals) | E67: =E43 -> 2010 Actual | F67: =F43 -> 2011 Actual² | G67: =G43 -> 2011 Actual² | H67: 2012 Actual | I67: =I43 -> Test Year 2013 - MIFRS Asset policies under
B68: Reporting Basis | D68: CGAAP | E68: CGAAP | F68: CGAAP | H68: CGAAP | I68: CGAAP
B69: Billing and Collecting
B70: 5305 | C70: Supervision | D70: 240914 | E70: 251449 | F70: 273856 | H70: 270977 | I70: 253267
B71: 5310 | C71: Meter Reading Expense
B72: 5315 | C72: Customer Billing | D72: 879119 | E72: 764253 | F72: 789587 | H72: 1186363 | I72: 1080326
B73: 5320 | C73: Collecting | D73: 779596 | E73: 677734 | F73: 681754 | H73: 666380 | I73: 880874
B74: 5325 | C74: Collecting - Cash Over and Short | D74: -37 | E74: -55 | F74: -8 | H74: -27
B75: 5330 | C75: Collection Charges
B76: 5335 | C76: Bad Debt Expense | D76: 232960 | E76: 165760 | F76: 155097 | H76: 162459 | I76: 260000
B77: 5340 | C77: Miscellaneous Customer Accounts Expenses | I77: -213944
B78: Total - Billing and Collecting | D78: =SUM(D70:D77) -> 2132552 | E78: =SUM(E70:E77) -> 1859141 | F78: =SUM(F70:F77) -> 1900286 | G78: =SUM(G70:G77) -> 0 | H78: 2286152 | I78: =SUM(I70:I77) -> 2260523
B81: Account | C81: Description | D81: =D67 -> Last Rebasing Year (2009 Actuals) | E81: =E67 -> 2010 Actual | F81: =F67 -> 2011 Actual² | G81: =G67 -> 2011 Actual² | H81: 2012 Actual | I81: =I67 -> Test Year 2013 - MIFRS Asset policies under
B82: Community Relations
B83: 5405 | C83: Supervision
B84: 5410 | C84: Community Relations - Sundry
B85: 5415 | C85: Energy Conservation
B86: 5420 | C86: Community Safety Program
B87: 5425 | C87: Miscellaneous Customer Service and Informational Expenses
B88: 5505 | C88: Supervision
B89: 5510 | C89: Demonstrating and Selling Expense
B90: 5515 | C90: Advertising Expenses
B91: 5520 | C91: Miscellaneous Sales Expense
B92: Total - Community Relations | D92: =SUM(D83:D91) -> 0 | E92: =SUM(E83:E91) -> 0 | F92: =SUM(F83:F91) -> 0 | G92: =SUM(G83:G91) -> 0 | H92: =SUM(H83:H91) -> 0 | I92: =SUM(I83:I91) -> 0
B93: Account | C93: Description | D93: =D81 -> Last Rebasing Year (2009 Actuals) | E93: =E81 -> 2010 Actual | F93: =F81 -> 2011 Actual² | G93: =G81 -> 2011 Actual² | H93: 2012 Actual | I93: =I81 -> Test Year 2013 - MIFRS Asset policies under
B94: Reporting Basis | D94: CGAAP | E94: CGAAP | F94: CGAAP | H94: CGAAP | I94: CGAAP
B95: Administrative and General Expenses
B96: 5605 | C96: Executive Salaries and Expenses | D96: 174457 | E96: 221186 | F96: 229546 | H96: 213014 | I96: 221609
B97: 5610 | C97: Management Salaries and Expenses | F97: 0 | I97: 0
B98: 5615 | C98: General Administrative Salaries and Expenses | D98: 471249 | E98: 561423 | F98: 572290 | H98: 463309 | I98: 1800642
B99: 5620 | C99: Office Supplies and Expenses | F99: 0 | I99: 0
B100: 5625 | C100: Administrative Expense Transferred - Credit
B101: 5630 | C101: Outside Services Employed | D101: 163250 | E101: 162461 | F101: 178731 | H101: 169387 | I101: 190689
B102: 5635 | C102: Property Insurance | D102: 82362 | E102: 67448 | F102: 91294 | H102: 89864 | I102: 110000
B103: 5640 | C103: Injuries and Damages | F103: 0 | I103: 0
B104: 5645 | C104: OMERS Pensions and Benefits | F104: 0 | I104: 0
B105: 5646 | C105: Employee Pensions and OPEB | F105: 0 | I105: 0
B106: 5647 | C106: Employee Sick Leave | F106: 0 | I106: 0
B107: 5650 | C107: Franchise Requirements | F107: 0 | I107: 0
B108: 5655 | C108: Regulatory Expenses | D108: 93936 | E108: 93227 | F108: 115143 | H108: 105506 | I108: 121250
B109: 5660 | C109: General Advertising Expenses | D109: 107382 | E109: 108432 | F109: 72655 | H109: 63368 | I109: 62000
B110: 5665 | C110: Miscellaneous General Expenses | D110: 78657 | E110: 69291 | F110: 78868 | H110: 58758 | I110: 103802
B111: 5670 | C111: Rent | D111: 681977 | E111: 683293 | F111: 667651 | H111: 626595 | I111: 739000
B112: 5672 | C112: Lease Payment Charge | F112: 0 | I112: 0
B113: 5675 | C113: Maintenance of General Plant | F113: 0 | I113: 0
B114: 5680 | C114: Electrical Safety Authority Fees | D114: 0 | E114: 14553 | F114: 14841 | H114: 15329 | I114: 15000
B115: 5681 | C115: Special Purpose Charge Expense | D115: 0 | E115: 187168 | F115: 130179 | I115: 0
B116: 5685 | C116: Independent Electricity System Operator Fees and Penalties | F116: 0 | I116: 0
B117: 5695 | C117: OM&A Contra Account | F117: 0 | I117: -292582
B118: 6205 | C118: Donations | F118: 0 | I118: 0
B119: 6205 | C119: Donations, Sub-account LEAP Funding | D119: 0 | E119: 0 | F119: 19505 | H119: 19505 | I119: 20000
B120: Total - Administrative and General Expenses | D120: =SUM(D96:D119) -> 1853270 | E120: =SUM(E96:E119) -> 2168482 | F120: 2170703 | G120: 0 | H120: 1824635 | I120: 3091410
B123: Total OM&A | D123: =D40+D64+D78+D92+D120 -> 6562433.05 | E123: =E40+E64+E78+E92+E120 -> 6365760 | F123: =F40+F64+F78+F92+F120 -> 7023214 | G123: =G40+G64+G78+G92+G120 -> 0 | H123: 7072201 | I123: =I40+I64+I78+I92+I120-1 -> 8440000
B124: Adjustments for non-recoverable items
B125: 5681 | C125: Special Purpose Charge Expense | D125: =D115 -> 0 | E125: =E115 -> 187168 | F125: =F115 -> 130179 | H125: 0 | I125: 0
B126: 6205 | C126: Donations1
B130: Total Recoverable OM&A | D130: =D123-SUM(D125:D129) -> 6562433.05 | E130: =E123-SUM(E125:E129) -> 6178592 | F130: 6893035 | G130: 0 | H130: 7072201 | I130: 8440000
B134: 1 Account 6205 - Donations is generally non-recoverable. However, the sub-account LEAP funding of account 6205 is generally recoverable.
B136: Note:
B137: 1 | C137: If it has been more than three years since the applicant last filed a cost of service application, additional years of historical actuals should be incorporated into the table, as necessary, to go back to the last cost of service application. If the applicant last filed a cost of service application less than three years ago, a minimum of three years of actual information is required.
B138: 2 | C138: If the applicant is adopting IFRS or an alternate accounting standard as of January 1, 2012 for financial reporting purposes, 2011 must be presented on both a CGAAP and MIFRS (or alternate accounting standard) basis.
B139: 3 | C139: If the applicant is adopting IFRS or an alternate accounting standard as of January 1, 2013 for financial reporting purposes, 2012 must be presented on both a CGAAP and MIFRS (or alternate accounting standard) basis.

Sheet App.2-H_OM&A_Detailed_Analysis
I1: File Number: | J1: ='LDC Info'!$E$18 -> EB-2012-0160
I2: Exhibit: | J2: 4
I3: Tab: | J3: 2
I4: Schedule: | J4: 3
I5: Page:
I7: Date:
B9: Appendix 2-H
B10: OM&A Detailed Variance Analysis
B11: (excluding Depreciation and Amortization)
B14: Account | C14: Description | D14: Last Board-approved Rebasing Year (2009 Year)3 | E14: Most Current Actuals Year 2011 | F14: ="Test Year " & 'LDC Info'!E28 -> Test Year 2013 | G14: Test Year Versus Last Rebasing | I14: Test Year Versus Most Current Actuals
G15: Variance ($) | H15: Percentage Change (%) | I15: Variance ($) | J15: Percentage Change (%)
B16: Reporting Basis | D16: CGAAP | E16: CGAAP | F16: CGAAP
B17: Operations
B18: 5005 | C18: Operation Supervision and Engineering | D18: 79985 | E18: ='App.2-G_Detailed_OM&A_Expenses'!F17 -> 85050 | F18: ='App.2-G_Detailed_OM&A_Expenses'!I17 -> 121247 | G18: =F18-D18 -> 41262 | H18: =IF(D18=0,"",(F18/D18)-1) -> 0.5158717259 | I18: =F18-E18 -> 36197 | J18: =IF(E18=0,"",(F18/E18)-1) -> 0.4255967078
B19: 5010 | C19: Load Dispatching | D19: 224105 | E19: ='App.2-G_Detailed_OM&A_Expenses'!F18 -> 328055 | F19: ='App.2-G_Detailed_OM&A_Expenses'!I18 -> 332563 | G19: =F19-D19 -> 108458 | H19: =IF(D19=0,"",(F19/D19)-1) -> 0.4839606434 | I19: =F19-E19 -> 4508 | J19: =IF(E19=0,"",(F19/E19)-1) -> 0.01374159821
B20: 5012 | C20: Station Buildings and Fixtures Expense | D20: 86595 | E20: ='App.2-G_Detailed_OM&A_Expenses'!F19 -> 97716 | F20: ='App.2-G_Detailed_OM&A_Expenses'!I19 -> 73504 | G20: -13091 | H20: -0.1511750101 | I20: -24212 | J20: -0.2477792787
B21: 5014 | C21: Transformer Station Equipment - Operation Labour | D21: 0 | E21: ='App.2-G_Detailed_OM&A_Expenses'!F20 -> 0 | F21: ='App.2-G_Detailed_OM&A_Expenses'!I20 -> 0 | G21: 0 | I21: 0
B22: 5015 | C22: Transformer Station Equipment - Operation Supplies and Expenses | D22: 0 | E22: ='App.2-G_Detailed_OM&A_Expenses'!F21 -> 0 | F22: ='App.2-G_Detailed_OM&A_Expenses'!I21 -> 0 | G22: 0 | I22: 0
B23: 5016 | C23: Distribution Station Equipment - Operation Labour | D23: 72747.85104 | E23: ='App.2-G_Detailed_OM&A_Expenses'!F22 -> 118330 | F23: ='App.2-G_Detailed_OM&A_Expenses'!I22 -> 181492 | G23: 108744.149 | H23: 1.494809089 | I23: 63162 | J23: 0.5337784163
B24: 5017 | C24: Distribution Station Equipment - Operation Supplies and Expenses | D24: 69200.14896 | E24: ='App.2-G_Detailed_OM&A_Expenses'!F23 -> 124859 | F24: ='App.2-G_Detailed_OM&A_Expenses'!I23 -> 141100 | G24: 71899.85104 | H24: 1.039012952 | I24: 16241 | J24: 0.1300747243
B25: 5020 | C25: Overhead Distribution Lines and Feeders - Operation Labour | D25: 109404.6201 | E25: ='App.2-G_Detailed_OM&A_Expenses'!F24 -> 25972 | F25: ='App.2-G_Detailed_OM&A_Expenses'!I24 -> 51767 | G25: -57637.62013 | H25: -0.5268298547 | I25: 25795 | J25: 0.9931849684
B26: 5025 | C26: Overhead Distribution Lines and Feeders - Operation Supplies and Expenses | D26: 14400.37987 | E26: ='App.2-G_Detailed_OM&A_Expenses'!F25 -> 19854 | F26: ='App.2-G_Detailed_OM&A_Expenses'!I25 -> 23800 | G26: 9399.620128 | H26: 0.6527341787 | I26: 3946 | J26: 0.1987508814
B27: 5030 | C27: Overhead Sub-transmission Feeders - Operation | D27: 33070 | E27: ='App.2-G_Detailed_OM&A_Expenses'!F26 -> 16471 | F27: ='App.2-G_Detailed_OM&A_Expenses'!I26 -> 28684 | G27: -4386 | H27: -0.1326277593 | I27: 12213 | J27: 0.7414850343
B28: 5035 | C28: Overhead Distribution Transformers - Operation | D28: 89807 | E28: ='App.2-G_Detailed_OM&A_Expenses'!F27 -> 1103 | F28: ='App.2-G_Detailed_OM&A_Expenses'!I27 -> 9685 | G28: -80122 | H28: -0.8921576269 | I28: 8582 | J28: 7.780598368
B29: 5040 | C29: Underground Distribution Lines and Feeders - Operation Labour | D29: 80031.61958 | E29: ='App.2-G_Detailed_OM&A_Expenses'!F28 -> 164292 | F29: ='App.2-G_Detailed_OM&A_Expenses'!I28 -> 166303 | G29: 86271.38042 | H29: 1.077966195 | I29: 2011 | J29: 0.01224040124
B30: 5045 | C30: Underground Distribution Lines and Feeders - Operation Supplies and Expenses | D30: 33000.38042 | E30: ='App.2-G_Detailed_OM&A_Expenses'!F29 -> 58971 | F30: ='App.2-G_Detailed_OM&A_Expenses'!I29 -> 67500 | G30: 34499.61958 | H30: 1.045430966 | I30: 8529 | J30: 0.1446304116
B31: 5050 | C31: Underground Sub-transmission Feeders - Operation | D31: 0 | E31: ='App.2-G_Detailed_OM&A_Expenses'!F30 -> 0 | F31: ='App.2-G_Detailed_OM&A_Expenses'!I30 -> 0 | G31: 0 | I31: 0
B32: 5055 | C32: Underground Distribution Transformers - Operation | D32: 11919 | E32: ='App.2-G_Detailed_OM&A_Expenses'!F31 -> 1669 | F32: ='App.2-G_Detailed_OM&A_Expenses'!I31 -> 12060 | G32: 141 | H32: 0.0118298515 | I32: 10391 | J32: 6.225883763
B33: 5060 | C33: Street Lighting and Signal System Expense | D33: 0 | E33: ='App.2-G_Detailed_OM&A_Expenses'!F32 -> 0 | F33: ='App.2-G_Detailed_OM&A_Expenses'!I32 -> 0 | G33: 0 | I33: 0
B34: 5065 | C34: Meter Expense | D34: 296955 | E34: ='App.2-G_Detailed_OM&A_Expenses'!F33 -> 200185 | F34: ='App.2-G_Detailed_OM&A_Expenses'!I33 -> 335758 | G34: 38803 | H34: 0.1306696301 | I34: 135573 | J34: 0.6772385543
B35: 5070 | C35: Customer Premises - Operation Labour | D35: 0 | E35: ='App.2-G_Detailed_OM&A_Expenses'!F34 -> 0 | F35: ='App.2-G_Detailed_OM&A_Expenses'!I34 -> 0 | G35: 0 | I35: 0
B36: 5075 | C36: Customer Premises - Operation Materials and Expenses | D36: 0 | E36: ='App.2-G_Detailed_OM&A_Expenses'!F35 -> 0 | F36: ='App.2-G_Detailed_OM&A_Expenses'!I35 -> 0 | G36: 0 | I36: 0
B37: 5085 | C37: Miscellaneous Distribution Expenses | D37: 19565 | E37: ='App.2-G_Detailed_OM&A_Expenses'!F36 -> 222179 | F37: ='App.2-G_Detailed_OM&A_Expenses'!I36 -> 394047 | G37: 374482 | H37: 19.14040378 | I37: 171868 | J37: 0.7735564567
B38: 5090 | C38: Underground Distribution Lines and Feeders - Rental Paid | D38: 0 | E38: ='App.2-G_Detailed_OM&A_Expenses'!F37 -> 0 | F38: ='App.2-G_Detailed_OM&A_Expenses'!I37 -> 0 | G38: 0 | I38: 0
B39: 5095 | C39: Overhead Distribution Lines and Feeders - Rental Paid | D39: 0 | E39: ='App.2-G_Detailed_OM&A_Expenses'!F38 -> 0 | F39: ='App.2-G_Detailed_OM&A_Expenses'!I38 -> 0 | G39: 0 | I39: 0
B40: 5096 | C40: Other Rent | D40: 0 | E40: ='App.2-G_Detailed_OM&A_Expenses'!F39 -> 0 | F40: ='App.2-G_Detailed_OM&A_Expenses'!I39 -> -167691 | G40: -167691 | I40: -167691
B41: Total - Operations | D41: =SUM(D18:D40) -> 1220786 | E41: =SUM(E18:E40) -> 1464706 | F41: =SUM(F18:F40) -> 1771819 | G41: =F41-D41 -> 551033 | H41: 0.4513755892 | I41: 307113 | J41: 0.2096755253
B44: Account | C44: Description | D44: =D$14 -> Last Board-approved Rebasing Year (2009 Year)3 | E44: =E$14 -> Most Current Actuals Year 2011 | F44: =F$14 -> Test Year 2013 | G44: Test Year Versus Last Rebasing | I44: Test Year Versus Most Current Actuals
G45: Variance ($) | H45: Percentage Change (%) | I45: Variance ($) | J45: Percentage Change (%)
B46: Reporting Basis | D46: CGAAP | E46: CGAAP | F46: CGAAP
B47: Maintenance
B48: 5105 | C48: Maintenance Supervision and Engineering | D48: 0 | E48: ='App.2-G_Detailed_OM&A_Expenses'!F46 -> 0 | F48: ='App.2-G_Detailed_OM&A_Expenses'!I46 -> 0 | G48: =F48-D48 -> 0 | H48: =IF(D48=0,"",(F48/D48)-1) ->  | I48: =F48-E48 -> 0 | J48: =IF(E48=0,"",(F48/E48)-1) -> 
B49: 5110 | C49: Maintenance of Buildings and Fixtures - Distribution Stations | D49: 40087 | E49: ='App.2-G_Detailed_OM&A_Expenses'!F47 -> 34717 | F49: ='App.2-G_Detailed_OM&A_Expenses'!I47 -> 37833 | G49: -2254 | H49: -0.05622770474 | I49: 3116 | J49: 0.08975429905
B50: 5112 | C50: Maintenance of Transformer Station Equipment | D50: 0 | E50: ='App.2-G_Detailed_OM&A_Expenses'!F48 -> 0 | F50: ='App.2-G_Detailed_OM&A_Expenses'!I48 -> 0 | G50: 0 | I50: 0
B51: 5114 | C51: Maintenance of Distribution Station Equipment | D51: 0 | E51: ='App.2-G_Detailed_OM&A_Expenses'!F49 -> 0 | F51: ='App.2-G_Detailed_OM&A_Expenses'!I49 -> 0 | G51: 0 | I51: 0
B52: 5120 | C52: Maintenance of Poles, Towers and Fixtures | D52: 0 | E52: ='App.2-G_Detailed_OM&A_Expenses'!F50 -> 0 | F52: ='App.2-G_Detailed_OM&A_Expenses'!I50 -> 0 | G52: 0 | I52: 0
B53: 5125 | C53: Maintenance of Overhead Conductors and Devices | D53: 336304 | E53: ='App.2-G_Detailed_OM&A_Expenses'!F51 -> 628345 | F53: ='App.2-G_Detailed_OM&A_Expenses'!I51 -> 480690 | G53: 144386 | H53: 0.429331795 | I53: -147655 | J53: -0.2349903317
B54: 5130 | C54: Maintenance of Overhead Services | D54: 128108 | E54: ='App.2-G_Detailed_OM&A_Expenses'!F52 -> 251086 | F54: ='App.2-G_Detailed_OM&A_Expenses'!I52 -> 209982 | G54: 81874 | H54: 0.6391013832 | I54: -41104 | J54: -0.1637048661
B55: 5135 | C55: Overhead Distribution Lines and Feeders - Right of Way | D55: 198736 | E55: ='App.2-G_Detailed_OM&A_Expenses'!F53 -> 175650 | F55: ='App.2-G_Detailed_OM&A_Expenses'!I53 -> 260938 | G55: 62202 | H55: 0.3129880847 | I55: 85288 | J55: 0.4855565044
B56: 5145 | C56: Maintenance of Underground Conduit | D56: 0 | E56: ='App.2-G_Detailed_OM&A_Expenses'!F54 -> 0 | F56: ='App.2-G_Detailed_OM&A_Expenses'!I54 -> 0 | G56: 0 | I56: 0
B57: 5150 | C57: Maintenance of Underground Conductors and Devices | D57: 110080 | E57: ='App.2-G_Detailed_OM&A_Expenses'!F55 -> 54381 | F57: ='App.2-G_Detailed_OM&A_Expenses'!I55 -> 123877 | G57: 13797 | H57: 0.1253361192 | I57: 69496 | J57: 1.277946342
B58: 5155 | C58: Maintenance of Underground Services | D58: 79272 | E58: ='App.2-G_Detailed_OM&A_Expenses'!F56 -> 197492 | F58: ='App.2-G_Detailed_OM&A_Expenses'!I56 -> 193237 | G58: 113965 | H58: 1.43764507 | I58: -4255 | J58: -0.02154517651
B59: 5160 | C59: Maintenance of Line Transformers | D59: 119955 | E59: ='App.2-G_Detailed_OM&A_Expenses'!F57 -> 145848 | F59: ='App.2-G_Detailed_OM&A_Expenses'!I57 -> 132485 | G59: 12530 | H59: 0.1044558376 | I59: -13363 | J59: -0.09162278537
B60: 5165 | C60: Maintenance of Street Lighting and Signal Systems | D60: 0 | E60: ='App.2-G_Detailed_OM&A_Expenses'!F58 -> 0 | F60: ='App.2-G_Detailed_OM&A_Expenses'!I58 -> 0 | G60: 0 | I60: 0
B61: 5170 | C61: Sentinel Lights - Labour | D61: 0 | E61: ='App.2-G_Detailed_OM&A_Expenses'!F59 -> 0 | F61: ='App.2-G_Detailed_OM&A_Expenses'!I59 -> 0 | G61: 0 | I61: 0
B62: 5172 | C62: Sentinel Lights - Materials and Expenses | D62: 0 | E62: ='App.2-G_Detailed_OM&A_Expenses'!F60 -> 0 | F62: ='App.2-G_Detailed_OM&A_Expenses'!I60 -> 0 | G62: 0 | I62: 0
B63: 5175 | C63: Maintenance of Meters | D63: 1777 | E63: ='App.2-G_Detailed_OM&A_Expenses'!F61 -> 0 | F63: ='App.2-G_Detailed_OM&A_Expenses'!I61 -> 1781 | G63: 4 | H63: 0.002250984806 | I63: 1781
B64: 5178 | C64: Customer Installations Expenses - Leased Property | D64: 0 | E64: ='App.2-G_Detailed_OM&A_Expenses'!F62 -> 0 | F64: ='App.2-G_Detailed_OM&A_Expenses'!I62 -> 0 | G64: 0 | I64: 0
B65: 5195 | C65: Maintenance of Other Installations on Customer Premises | D65: 0 | E65: ='App.2-G_Detailed_OM&A_Expenses'!F63 -> 0 | F65: ='App.2-G_Detailed_OM&A_Expenses'!I63 -> -124574 | G65: -124574 | I65: -124574
B66: Total - Maintenance | D66: =SUM(D48:D65) -> 1014319 | E66: =SUM(E48:E65) -> 1487519 | F66: =SUM(F48:F65) -> 1316249 | G66: =F66-D66 -> 301930 | H66: 0.2976676963 | I66: -171270 | J66: -0.1151380251
B69: Account | C69: Description | D69: =D$14 -> Last Board-approved Rebasing Year (2009 Year)3 | E69: =E$14 -> Most Current Actuals Year 2011 | F69: =F$14 -> Test Year 2013 | G69: Test Year Versus Last Rebasing | I69: Test Year Versus Most Current Actuals
G70: Variance ($) | H70: Percentage Change (%) | I70: Variance ($) | J70: Percentage Change (%)
B71: Reporting Basis | D71: CGAAP | E71: CGAAP | F71: CGAAP
B72: Billing and Collecting
B73: 5305 | C73: Supervision | D73: 276232 | E73: ='App.2-G_Detailed_OM&A_Expenses'!F70 -> 273856 | F73: ='App.2-G_Detailed_OM&A_Expenses'!I70 -> 253267 | G73: =F73-D73 -> -22965 | H73: =IF(D73=0,"",(F73/D73)-1) -> -0.08313663877 | I73: =F73-E73 -> -20589 | J73: =IF(E73=0,"",(F73/E73)-1) -> -0.07518184739
B74: 5310 | C74: Meter Reading Expense | E74: ='App.2-G_Detailed_OM&A_Expenses'!F71 -> 0 | F74: ='App.2-G_Detailed_OM&A_Expenses'!I71 -> 0 | G74: 0 | I74: 0
B75: 5315 | C75: Customer Billing | D75: 858850 | E75: ='App.2-G_Detailed_OM&A_Expenses'!F72 -> 789587 | F75: ='App.2-G_Detailed_OM&A_Expenses'!I72 -> 1080326 | G75: 221476 | H75: 0.2578750655 | I75: 290739 | J75: 0.3682165487
B76: 5320 | C76: Collecting | D76: 761621 | E76: ='App.2-G_Detailed_OM&A_Expenses'!F73 -> 681754 | F76: ='App.2-G_Detailed_OM&A_Expenses'!I73 -> 880874 | G76: 119253 | H76: 0.156577878 | I76: 199120 | J76: 0.2920701602
B77: 5325 | C77: Collecting - Cash Over and Short | E77: ='App.2-G_Detailed_OM&A_Expenses'!F74 -> -8 | F77: ='App.2-G_Detailed_OM&A_Expenses'!I74 -> 0 | G77: 0 | I77: 8 | J77: -1
B78: 5330 | C78: Collection Charges | E78: ='App.2-G_Detailed_OM&A_Expenses'!F75 -> 0 | F78: ='App.2-G_Detailed_OM&A_Expenses'!I75 -> 0 | G78: 0 | I78: 0
B79: 5335 | C79: Bad Debt Expense | D79: 130000 | E79: ='App.2-G_Detailed_OM&A_Expenses'!F76 -> 155097 | F79: ='App.2-G_Detailed_OM&A_Expenses'!I76 -> 260000 | G79: 130000 | H79: 1 | I79: 104903 | J79: 0.6763702715
B80: 5340 | C80: Miscellaneous Customer Accounts Expenses | E80: ='App.2-G_Detailed_OM&A_Expenses'!F77 -> 0 | F80: ='App.2-G_Detailed_OM&A_Expenses'!I77 -> -213944 | G80: -213944 | I80: -213944
B81: Total - Billing and Collecting | D81: =SUM(D73:D80) -> 2026703 | E81: =SUM(E73:E80) -> 1900286 | F81: =SUM(F73:F80) -> 2260523 | G81: 233820 | H81: 0.1153696422 | I81: 360237 | J81: 0.1895698858
B84: Account | C84: Description
B85: Community Relations
B86: 5405 | C86: Supervision | G86: =F86-D86 -> 0 | H86: =IF(D86=0,"",(F86/D86)-1) ->  | I86: =F86-E86 -> 0 | J86: =IF(E86=0,"",(F86/E86)-1) -> 
B87: 5410 | C87: Community Relations - Sundry | G87: 0 | I87: 0
B88: 5415 | C88: Energy Conservation | G88: 0 | I88: 0
B89: 5420 | C89: Community Safety Program | G89: 0 | I89: 0
B90: 5425 | C90: Miscellaneous Customer Service and Informational Expenses | G90: 0 | I90: 0
B91: 5505 | C91: Supervision | G91: 0 | I91: 0
B92: 5510 | C92: Demonstrating and Selling Expense | G92: 0 | I92: 0
B93: 5515 | C93: Advertising Expenses | G93: 0 | I93: 0
B94: 5520 | C94: Miscellaneous Sales Expense | G94: 0 | I94: 0
B95: Total - Community Relations | D95: =SUM(D86:D94) -> 0 | E95: =SUM(E86:E94) -> 0 | F95: =SUM(F86:F94) -> 0 | G95: 0 | I95: 0
B98: Account | C98: Description | D98: =D$14 -> Last Board-approved Rebasing Year (2009 Year)3 | E98: =E$14 -> Most Current Actuals Year 2011 | F98: =F$14 -> Test Year 2013 | G98: Test Year Versus Last Rebasing | I98: Test Year Versus Most Current Actuals
G99: Variance ($) | H99: Percentage Change (%) | I99: Variance ($) | J99: Percentage Change (%)
B100: Reporting Basis | D100: CGAAP | E100: CGAAP | F100: CGAAP
B101: Administrative and General Expenses
B102: 5605 | C102: Executive Salaries and Expenses | D102: 48800 | E102: ='App.2-G_Detailed_OM&A_Expenses'!F96 -> 229546 | F102: ='App.2-G_Detailed_OM&A_Expenses'!I96 -> 221609 | G102: =F102-D102 -> 172809 | H102: =IF(D102=0,"",(F102/D102)-1) -> 3.541168033 | I102: =F102-E102 -> -7937 | J102: =IF(E102=0,"",(F102/E102)-1) -> -0.03457694754
B103: 5610 | C103: Management Salaries and Expenses | E103: ='App.2-G_Detailed_OM&A_Expenses'!F97 -> 0 | F103: ='App.2-G_Detailed_OM&A_Expenses'!I97 -> 0 | G103: 0 | I103: 0
B104: 5615 | C104: General Administrative Salaries and Expenses | D104: 1071464 | E104: ='App.2-G_Detailed_OM&A_Expenses'!F98 -> 572290 | F104: ='App.2-G_Detailed_OM&A_Expenses'!I98 -> 1800642 | G104: 729178 | H104: 0.68054363 | I104: 1228352 | J104: 2.146380332
B105: 5620 | C105: Office Supplies and Expenses | D105: 48000 | E105: ='App.2-G_Detailed_OM&A_Expenses'!F99 -> 0 | F105: ='App.2-G_Detailed_OM&A_Expenses'!I99 -> 0 | G105: -48000 | H105: -1 | I105: 0
B106: 5625 | C106: Administrative Expense Transferred - Credit | E106: ='App.2-G_Detailed_OM&A_Expenses'!F100 -> 0 | F106: ='App.2-G_Detailed_OM&A_Expenses'!I100 -> 0 | G106: 0 | I106: 0
B107: 5630 | C107: Outside Services Employed | D107: =260021-37500 -> 222521 | E107: ='App.2-G_Detailed_OM&A_Expenses'!F101 -> 178731 | F107: ='App.2-G_Detailed_OM&A_Expenses'!I101 -> 190689 | G107: -31832 | H107: -0.143051667 | I107: 11958 | J107: 0.06690501368
B108: 5635 | C108: Property Insurance | D108: 87000 | E108: ='App.2-G_Detailed_OM&A_Expenses'!F102 -> 91294 | F108: ='App.2-G_Detailed_OM&A_Expenses'!I102 -> 110000 | G108: 23000 | H108: 0.2643678161 | I108: 18706 | J108: 0.2048984599
B109: 5640 | C109: Injuries and Damages | E109: ='App.2-G_Detailed_OM&A_Expenses'!F103 -> 0 | F109: ='App.2-G_Detailed_OM&A_Expenses'!I103 -> 0 | G109: 0 | I109: 0
B110: 5645 | C110: OMERS Pensions and Benefits | E110: ='App.2-G_Detailed_OM&A_Expenses'!F104 -> 0 | F110: ='App.2-G_Detailed_OM&A_Expenses'!I104 -> 0 | G110: 0 | I110: 0
B111: 5646 | C111: Employee Pensions and OPEB | E111: ='App.2-G_Detailed_OM&A_Expenses'!F105 -> 0 | F111: ='App.2-G_Detailed_OM&A_Expenses'!I105 -> 0 | G111: 0 | I111: =F111-E111 -> 0 | J111: =IF(E111=0,"",(F111/E111)-1) -> 
B112: 5647 | C112: Employee Sick Leave | E112: ='App.2-G_Detailed_OM&A_Expenses'!F106 -> 0 | F112: ='App.2-G_Detailed_OM&A_Expenses'!I106 -> 0 | G112: 0 | I112: 0
B113: 5650 | C113: Franchise Requirements | E113: ='App.2-G_Detailed_OM&A_Expenses'!F107 -> 0 | F113: ='App.2-G_Detailed_OM&A_Expenses'!I107 -> 0 | G113: 0 | I113: 0
B114: 5655 | C114: Regulatory Expenses | D114: 120000 | E114: ='App.2-G_Detailed_OM&A_Expenses'!F108 -> 115143 | F114: ='App.2-G_Detailed_OM&A_Expenses'!I108 -> 121250 | G114: 1250 | H114: 0.01041666667 | I114: 6107 | J114: 0.05303839573
B115: 5660 | C115: General Advertising Expenses | D115: 40720 | E115: ='App.2-G_Detailed_OM&A_Expenses'!F109 -> 72655 | F115: ='App.2-G_Detailed_OM&A_Expenses'!I109 -> 62000 | G115: 21280 | H115: 0.5225933202 | I115: -10655 | J115: -0.1466519854
B116: 5665 | C116: Miscellaneous General Expenses | D116: 41386 | E116: ='App.2-G_Detailed_OM&A_Expenses'!F110 -> 78868 | F116: ='App.2-G_Detailed_OM&A_Expenses'!I110 -> 103802 | G116: 62416 | H116: 1.50814285 | I116: 24934 | J116: 0.3161485013
B117: 5670 | C117: Rent | D117: 732407 | E117: ='App.2-G_Detailed_OM&A_Expenses'!F111 -> 667651 | F117: ='App.2-G_Detailed_OM&A_Expenses'!I111 -> 739000 | G117: 6593 | H117: 0.009001825488 | I117: =F117-E117 -> 71349 | J117: 0.1068657128
B118: 5672 | C118: Lease Payment Charge | E118: ='App.2-G_Detailed_OM&A_Expenses'!F112 -> 0 | F118: ='App.2-G_Detailed_OM&A_Expenses'!I112 -> 0 | G118: 0 | I118: 0
B119: 5675 | C119: Maintenance of General Plant | E119: ='App.2-G_Detailed_OM&A_Expenses'!F113 -> 0 | F119: ='App.2-G_Detailed_OM&A_Expenses'!I113 -> 0 | G119: 0 | I119: 0
B120: 5680 | C120: Electrical Safety Authority Fees | E120: ='App.2-G_Detailed_OM&A_Expenses'!F114 -> 14841 | F120: ='App.2-G_Detailed_OM&A_Expenses'!I114 -> 15000 | G120: 15000 | I120: 159 | J120: 0.01071356378
B121: 5681 | C121: Special Purpose Charge Expense | E121: ='App.2-G_Detailed_OM&A_Expenses'!F115 -> 130179 | F121: ='App.2-G_Detailed_OM&A_Expenses'!I115 -> 0 | G121: 0 | I121: -130179
B122: 5685 | C122: Independent Electricity System Operator Fees and Penalties | E122: ='App.2-G_Detailed_OM&A_Expenses'!F116 -> 0 | F122: ='App.2-G_Detailed_OM&A_Expenses'!I116 -> 0 | G122: 0 | I122: 0
B123: 5695 | C123: OM&A Contra Account | E123: ='App.2-G_Detailed_OM&A_Expenses'!F117 -> 0 | F123: ='App.2-G_Detailed_OM&A_Expenses'!I117 -> -292582 | G123: -292582 | I123: -292582
B124: 6205 | C124: Donations | E124: ='App.2-G_Detailed_OM&A_Expenses'!F118 -> 0 | F124: ='App.2-G_Detailed_OM&A_Expenses'!I118 -> 0 | G124: 0 | I124: =F124-E124 -> 0 | J124: =IF(E124=0,"",(F124/E124)-1) -> 
B125: 6205 | C125: Donations, Sub-account LEAP Funding | E125: ='App.2-G_Detailed_OM&A_Expenses'!F119 -> 19505 | F125: ='App.2-G_Detailed_OM&A_Expenses'!I119 -> 20000 | G125: 20000 | I125: 495 | J125: 0.02537810818
B126: Total - Administrative and General Expenses | D126: =SUM(D102:D125) -> 2412298 | E126: =SUM(E102:E125) -> 2170703 | F126: =SUM(F102:F125) -> 3091410 | G126: 679112 | H126: 0.281520774 | I126: 920707 | J126: 0.4241515306
B128: Total OM&A | D128: =+D126+D95+D81+D66+D41 -> 6674106 | E128: =+E126+E95+E81+E66+E41 -> 7023214 | F128: 8440001 | G128: 1765895 | H128: 0.2645889951 | I128: 1416787 | J128: =IF(E128=0,"",(F128/E128)-1) -> 0.2017291514
B129: Adjustments for non-recoverable items
B130: 5681 | C130: Special Purpose Charge Expense | D130: =D121 -> 0 | E130: =E121 -> 130179 | F130: =F121 -> 0 | G130: =F130-D130 -> 0 | H130: =IF(D130=0,"",(F130/D130)-1) ->  | I130: =F130-E130 -> -130179 | J130: =IF(E130=0,"",(F130/E130)-1) -> -1
B131: 6205 | C131: Donations1 | D131: =D124 -> 0 | E131: =E124 -> 0 | F131: =F124 -> 0 | G131: =F131-D131 -> 0 | I131: =F131-E131 -> 0 | J131: =IF(E131=0,"",(F131/E131)-1) -> 
G132: =F132-D132 -> 0 | I132: =F132-E132 -> 0 | J132: =IF(E132=0,"",(F132/E132)-1) -> 
G134: =F134-D134 -> 0 | I134: =F134-E134 -> 0 | J134: =IF(E134=0,"",(F134/E134)-1) -> 
B135: Total Recoverable OM&A | D135: =D128-SUM(D130:D134) -> 6674106 | E135: =E128-SUM(E130:E134) -> 6893035 | F135: 8440001 | G135: 1765895 | H135: 0.2645889951 | I135: 1546966 | J135: =IF(E135=0,"",(F135/E135)-1) -> 0.2244245097
B137: 1 Account 6205 - Donations is generally non-recoverable. However, the sub-account LEAP funding of account 6205 is generally recoverable.
B140: Note:
B142: 1 | C142: If the applicant is adopting IFRS or an alternate accounting standard as of January 1, 2013 for financial reporting purposes, Column D "Most Current Actual Year" must be provided on CGAAP.
B143: 2 | C143: If the applicant is adopting IFRS or an alternate accounting standard as of January 1, 2012 for financial reporting purposes, Column D "Most Current Actual Year" must be provided on that standard.
B144: 3 | C144: After the 2009 Cost of Service, PDI remapped a number of accounts in Operating and Maintenance. The remapped 2009 Board Approved O&M has been provided for detailed account analysis purposes.
C145: Refer to Exhibit 1 for details

Sheet App.2-I_OM&A_Summary_Analys
K1: File Number: | L1: ='LDC Info'!$E$18 -> EB-2012-0160
K2: Exhibit: | L2: 4
K3: Tab: | L3: 1
K4: Schedule: | L4: 1
K5: Page:
K7: Date:
B9: Appendix 2-I
B10: Summary of Recoverable OM&A Expenses
C13: ="Last Rebasing Year (" & 'LDC Info'!E30 & " BA)" -> Last Rebasing Year (2009 BA) | D13: ="Last Rebasing Year (" & 'LDC Info'!E30 & " Actuals)" -> Last Rebasing Year (2009 Actuals) | E13: ='LDC Info'!E26 -2 & " Actuals" -> 2010 Actuals | F13: ='LDC Info'!E26 -1 & " Actuals" -> 2011 Actuals | G13: 2012 Actuals | H13: ='LDC Info'!E28 & " Test Year" -> 2013 Test Year
B14: Reporting Basis | C14: CGAAP | D14: CGAAP | E14: CGAAP | F14: CGAAP | G14: CGAAP | H14: CGAAP
B15: Operations | C15: ='App.2-H_OM&A_Detailed_Analysis'!D41 -> 1220786 | D15: ='App.2-G_Detailed_OM&A_Expenses'!D40 -> 1484674.75 | E15: ='App.2-G_Detailed_OM&A_Expenses'!E40 -> 1361253 | F15: ='App.2-G_Detailed_OM&A_Expenses'!F40 -> 1464706 | G15: ='App.2-G_Detailed_OM&A_Expenses'!H40 -> 1536913 | H15: ='App.2-G_Detailed_OM&A_Expenses'!I40 -> 1771819
B16: Maintenance | C16: ='App.2-H_OM&A_Detailed_Analysis'!D66 -> 1014319 | D16: ='App.2-G_Detailed_OM&A_Expenses'!D64 -> 1091936.3 | E16: ='App.2-G_Detailed_OM&A_Expenses'!E64 -> 976884 | F16: ='App.2-G_Detailed_OM&A_Expenses'!F64 -> 1487519 | G16: ='App.2-G_Detailed_OM&A_Expenses'!H64 -> 1424501 | H16: ='App.2-G_Detailed_OM&A_Expenses'!I64 -> 1316249
B17: SubTotal | C17: =SUM(C15:C16) -> 2235105 | D17: =SUM(D15:D16) -> 2576611.05 | E17: 2338137 | F17: 2952225 | G17: =SUM(G15:G16) -> 2961414 | H17: =SUM(H15:H16) -> 3088068
B18: %Change (year over year) | E18: =IF(ISERROR((E17-D17)/D17), "", (E17-D17)/D17) -> -0.09255337549 | F18: =IF(ISERROR((F17-E17)/E17), "", (F17-E17)/E17) -> 0.262639871 | G18: =IF(ISERROR((G17-F17)/F17), "", (G17-F17)/F17) -> 0.00311256764 | H18: =IF(ISERROR((H17-#REF!)/#REF!), "", (H17-#REF!)/#REF!) -> 
B19: %Change (Test Year vs Last Rebasing Year - Actual) | H19: =IF(ISERROR((H17-D17)/D17), "", (H17-D17)/D17) -> 0.1984998667
B20: Billing and Collecting | C20: ='App.2-H_OM&A_Detailed_Analysis'!D81 -> 2026703 | D20: ='App.2-G_Detailed_OM&A_Expenses'!D78 -> 2132552 | E20: ='App.2-G_Detailed_OM&A_Expenses'!E78 -> 1859141 | F20: ='App.2-G_Detailed_OM&A_Expenses'!F78 -> 1900286 | G20: ='App.2-G_Detailed_OM&A_Expenses'!H78 -> 2286152 | H20: ='App.2-G_Detailed_OM&A_Expenses'!I78 -> 2260523
B21: Community Relations
B22: Administrative and General | C22: ='App.2-H_OM&A_Detailed_Analysis'!D126 -> 2412298 | D22: ='App.2-G_Detailed_OM&A_Expenses'!D120-'App.2-G_Detailed_OM&A_Expenses'!D125 -> 1853270 | E22: ='App.2-G_Detailed_OM&A_Expenses'!E120-'App.2-G_Detailed_OM&A_Expenses'!E125 -> 1981314 | F22: ='App.2-G_Detailed_OM&A_Expenses'!F120-'App.2-G_Detailed_OM&A_Expenses'!F125 -> 2040524 | G22: ='App.2-G_Detailed_OM&A_Expenses'!H120-'App.2-G_Detailed_OM&A_Expenses'!H125 -> 1824635 | H22: ='App.2-G_Detailed_OM&A_Expenses'!I120-'App.2-G_Detailed_OM&A_Expenses'!I125 -> 3091410
B23: SubTotal | C23: =SUM(C20:C22) -> 4439001 | D23: 3985822 | E23: 3840455 | F23: 3940810 | G23: =SUM(G20:G22) -> 4110787 | H23: =SUM(H20:H22) -> 5351933
B24: %Change (year over year) | E24: =IF(ISERROR((E23-D23)/D23), "", (E23-D23)/D23) -> -0.03647102154 | F24: =IF(ISERROR((F23-E23)/E23), "", (F23-E23)/E23) -> 0.02613101833 | G24: =IF(ISERROR((G23-F23)/F23), "", (G23-F23)/F23) -> 0.04313250322 | H24: 0.3019241814
B25: %Change (Test Year vs Last Rebasing Year - Actual) | H25: =IF(ISERROR((H23-D23)/D23), "", (H23-D23)/D23) -> 0.3427426011
B26: %Change (Test Year vs Last Rebasing Year - Actual) excl Capitalized Administration | G26: =IF(ISERROR((H23-#REF!-D23)/D23), "", (H23-#REF!-D23)/D23) -> 
B27: Total | C27: =SUM(C23,C17) -> 6674106 | D27: 6562433.05 | E27: 6178592 | F27: 6893035 | G27: =SUM(G23,G17) -> 7072201 | H27: =SUM(H23,H17)-1 -> 8440000
B28: %Change (year over year) | E28: =IF(ISERROR((E27-D27)/D27), "", (E27-D27)/D27) -> -0.05849066148 | F28: =IF(ISERROR((F27-E27)/E27), "", (F27-E27)/E27) -> 0.1156320081 | G28: =IF(ISERROR((G27-F27)/F27), "", (G27-F27)/F27) -> 0.02599232414 | H28: =IF(ISERROR((H27-G27)/G27), "", (H27-G27)/G27) -> 0.1934049951
C31: =C13 -> Last Rebasing Year (2009 BA) | D31: Last Rebasing Year (2009 Actuals) | E31: 2010 Actuals | F31: 2011 Actuals | G31: =G13 -> 2012 Actuals | H31: =H13 -> 2013 Test Year
B32: Operations | C32: =C15 -> 1220786 | D32: =D15 -> 1484674.75 | E32: 1361253 | F32: 1464706 | G32: =G15 -> 1536913 | H32: =H15 -> 1771819
B33: Maintenance | C33: =C16 -> 1014319 | D33: =D16 -> 1091936.3 | E33: 976884 | F33: 1487519 | G33: =G16 -> 1424501 | H33: =H16 -> 1316249
B34: Billing and Collecting | C34: =C20 -> 2026703 | D34: =D20 -> 2132552 | E34: 1859141 | F34: 1900286 | G34: =G20 -> 2286152 | H34: 2260523
B35: Community Relations | C35: =C21 -> 0 | D35: =D21 -> 0 | E35: 0 | F35: 0 | G35: 0 | H35: 0
B36: Administrative and General | C36: =C22 -> 2412298 | D36: =D22 -> 1853270 | E36: =E22 -> 1981314 | F36: =F22 -> 2040524 | G36: 1824635 | H36: 3091410
B37: Total | C37: =SUM(C32:C36) -> 6674106 | D37: =SUM(D32:D36) -> 6562433.05 | E37: 6178592 | F37: 6893035 | G37: =SUM(G32:G36) -> 7072201 | H37: =SUM(H32:H36)-1 -> 8440000
B38: %Change (year over year) | E38: =IF(ISERROR((E37-D37)/D37), "", (E37-D37)/D37) -> -0.05849066148 | F38: =IF(ISERROR((F37-E37)/E37), "", (F37-E37)/E37) -> 0.1156320081 | G38: =IF(ISERROR((G37-F37)/F37), "", (G37-F37)/F37) -> 0.02599232414 | H38: =IF(ISERROR((H37-G37)/G37), "", (H37-G37)/G37) -> 0.1934049951
C41: =C13 -> Last Rebasing Year (2009 BA) | D41: =D13 -> Last Rebasing Year (2009 Actuals) | E41: ="Variance " & 'LDC Info'!E30 & " BA – " & 'LDC Info'!E30 & " Actuals" -> Variance 2009 BA – 2009 Actuals | F41: =E13 -> 2010 Actuals | G41: =F13 -> 2011 Actuals | H41: ="Variance " & 'LDC Info'!E26 -1 & " Actuals vs. " & 'LDC Info'!E26-2 & " Actuals" -> Variance 2011 Actuals vs. 2010 Actuals | I41: =G13 -> 2012 Actuals | J41: Variance 2012 Actuals vs. 2011 Actuals | K41: =H13 -> 2013 Test Year | L41: Variance 2013 Test Yr vs. 2012 Actuals
B42: Operations | C42: =C15 -> 1220786 | D42: 1484674.75 | E42: =C42-D42 -> -263888.75 | F42: =E15 -> 1361253 | G42: =F15 -> 1464706 | H42: =G42-F42 -> 103453 | I42: =G15 -> 1536913 | J42: =I42-G42 -> 72207 | K42: =H15 -> 1771819 | L42: =K42-I42 -> 234906
B43: Maintenance | C43: 1014319 | D43: 1091936.3 | E43: =C43-D43 -> -77617.3 | F43: =E16 -> 976884 | G43: =F16 -> 1487519 | H43: =G43-F43 -> 510635 | I43: =G16 -> 1424501 | J43: =I43-G43 -> -63018 | K43: =H16 -> 1316249 | L43: -108252
B44: Billing and Collecting | C44: =C20 -> 2026703 | D44: 2132552 | E44: -105849 | F44: =E20 -> 1859141 | G44: 1900286 | H44: =G44-F44 -> 41145 | I44: =G20 -> 2286152 | J44: 385866 | K44: =H20 -> 2260523 | L44: -25629
B45: Community Relations | C45: 0 | D45: 0 | E45: 0 | F45: 0 | G45: 0 | H45: =G45-F45 -> 0 | I45: =G21 -> 0 | J45: 0 | K45: =H21 -> 0 | L45: 0
B46: Administrative and General | C46: 2412298 | D46: 1853270 | E46: 559028 | F46: 1981314 | G46: 2040524 | H46: =G46-F46 -> 59210 | I46: =G22 -> 1824635 | J46: -215889 | K46: =H22 -> 3091410 | L46: 1266775
B47: Total OM&A Expenses | C47: =SUM(C42:C46) -> 6674106 | D47: =SUM(D42:D46) -> 6562433.05 | E47: 111672.95 | F47: 6178592 | G47: 6893035 | H47: 714443 | I47: 7072201 | J47: 179166 | K47: =SUM(K42:K46)-1 -> 8440000 | L47: =SUM(L42:L46) -> 1367800
B48: Variance from previous year | F48: =F47-D47 -> -383841.05 | G48: =G47-F47 -> 714443 | I48: =I47-G47 -> 179166 | K48: =K47-I47 -> 1367799
B49: Percent change (year over year) | F49: =IF(ISERROR(F48/D47), "", F48/D47) -> -0.05849066148 | G49: =IF(ISERROR(G48/F47), "", G48/F47) -> 0.1156320081 | I49: =IF(ISERROR(I48/G47), "", I48/G47) -> 0.02599232414 | K49: =IF(ISERROR(K48/I47), "", K48/I47) -> 0.1934049951
B50: Percent Change: Test year vs. Most Current Actual | K50: =K49 -> 0.1934049951
B51: Simple average of % variance for all years | L51: =IF(ISERROR(AVERAGE(F49,G49,I49,K49)), "", AVERAGE(F49,G49,I49,K49)) -> 0.06913466647
B52: Compound Annual Growth Rate for all years | G52: =IF(ISERROR((K48-D48)/D48), "", (K48-D48)/D48) ->  | L52: =((K47/D47)^(1/4))-1 -> 0.06492590148
B53: ="Compound Growth Rate (" & F13 & " vs. " & 'LDC Info'!E30 & " Actuals)" -> Compound Growth Rate (2011 Actuals vs. 2009 Actuals) | G53: =IF(ISERROR((G47/D47)^(1/(2010-2008)) - 1), "", (G47-D47)/D47) -> 0.05037795395
B55: Note:
B57: 1 "BA" = Board-Approved
B58: 2 If it has been more than three years since the applicant last filed a cost of service application, additional years of historical actuals should be incorporated into the table, as necessary, to go back to the last cost of service application. If the applicant last filed a cost of service application less than three years ago, a minimum of three years of actual information is required.
B60: 3 Recoverable OM&A that is included on these tables should be identical to the recoverable OM&A that is shown for the corresponding periods on Appendix 2-H.

Sheet App.2-J_OM&A_Cost _Drivers
F1: File Number: | G1: ='LDC Info'!$E$18 -> EB-2012-0160
F2: Exhibit: | G2: 4
F3: Tab: | G3: 2
F4: Schedule: | G4: 3
F5: Page:
F7: Date:
B10: Appendix 2-J
B11: OM&A Cost Driver Table
B13: OM&A | C13: ="Last Rebasing Year (" & 'LDC Info'!E30 & " Actuals)" -> Last Rebasing Year (2009 Actuals) | D13: ='LDC Info'!E26 -2 & " Actuals" -> 2010 Actuals | E13: ='LDC Info'!E26 -1 & " Actuals" -> 2011 Actuals | F13: ='LDC Info'!E26 & " Actuals" -> 2012 Actuals | G13: ='LDC Info'!E28 & " Test Year" -> 2013 Test Year
B14: Reporting Basis | C14: CGAAP | D14: CGAAP | E14: CGAAP | F14: CGAAP | G14: CGAAP
B15: Opening Balance | C15: ='App.2-H_OM&A_Detailed_Analysis'!D135 -> 6674106 | D15: =IF(ISERROR(FIND("2008", $C$13)), C46,#REF!) -> 6562433.208 | E15: =D46 -> 6178592.208 | F15: =E46 -> 6893035.208 | G15: =F46 -> 7072201.208
B16: A) Payroll and Benefits
B17: Net Change in FTE's | D17: -100000 | E17: -72000 | F17: 116000 | G17: 440400
B18: Progression and Cost of Living changes | C18: 150000 | D18: 150000 | E18: 199000 | F18: 202000 | G18: 237000
B19: Benefit Increases attributed to payroll changes
B20: OMERS/Green Shield rates less than anticipated | C20: -144000
B21: OMERS rate increase | E21: 83000 | F21: 56000 | G21: 118000
B22: B) Operating and Maintenance
B23: Meter maintenance | C23: -43000
B24: Breakdown costs | D24: 84000 | E24: 123000
B25: Tree trimming | D25: -162000 | E25: 101000
B26: Storm damage | D26: -45000 | E26: 271000 | F26: -100000 | G26: 60000
B27: PCB testing | D27: -91000
B28: Control center costs | D28: 96000
B29: Substations | D29: 50000
B30: Meter reading costs | D30: -109000
B31: Asset Management | E31: 42000
B32: Downtown Vaults | E32: 58000
B33: C) Billing and Collecting
B34: Bad debt expense | C34: 103000 | D34: -67000 | E34: -11000 | F34: 7000 | G34: 98000
B35: D) Administration
B36: Software/Equipment Rentals | C36: -41011.19254 | F36: -41000 | G36: 41000
B37: Outside Services | C37: -97000
B38: Systems support/maintenance | G38: 50000
B39: Change to capitalization of overhead | G39: 950363
B40: Allocation of Admin labour to capital projects | C40: -63000 | D40: -68280 | E40: -44000
B41: E) Other
B42: Changes in PDI's Share of PUSI costs | C42: -24572.59897 | D42: -118000 | E42: -76000 | F42: -68000 | G42: 181800
B43: Other | C43: =10411+37500 -> 47911 | D43: -3560 | E43: 40443 | F43: 7167 | G43: -9972
B44: Settlement Reduction | G44: -798792
B46: Closing Balance | C46: =SUM(C15:C45) -> 6562433.208 | D46: =SUM(D15:D45)-1 -> 6178592.208 | E46: =SUM(E15:E45) -> 6893035.208 | F46: =SUM(F15:F45)-1 -> 7072201.208 | G46: =SUM(G15:G45) -> 8440000.208
B48: Check | C48: ='App.2-G_Detailed_OM&A_Expenses'!D123-C46 -> -0.1584954485 | D48: ='App.2-G_Detailed_OM&A_Expenses'!E130-D46 -> -0.2084954483 | E48: ='App.2-G_Detailed_OM&A_Expenses'!F130-E46 -> -0.2084954483 | F48: ='App.2-G_Detailed_OM&A_Expenses'!H130-F46 -> -0.2084954483 | G48: ='App.2-G_Detailed_OM&A_Expenses'!I123-G46 -> -0.2084954493
B49: Notes:
B51: 1 | C51: For each year, a detailed explanation for each cost driver and associated amount is
C52: required.
B53: 2 | C53: The closing balance for each year becomes the opening balance for the next year.
B54: 3 | C54: If it has been more than three years since the applicant last filed a cost of service application, additional years of historical actuals should be incorporated into the table, as necessary, to go back to the last cost of service application. If the applicant last filed a cost of service application less than three years ago, a minimum of three years of actual information is required.
B58: 4 | C58: Opening Balance for "Last Rebasing Year" (cell B15) should be equal to the Board-Approved amount.

Sheet App.2-K_Employee Costs
F1: File Number: | G1: ='LDC Info'!$E$18 -> EB-2012-0160
F2: Exhibit: | G2: 4
F3: Tab: | G3: 2
F4: Schedule: | G4: 4
F5: Page:
F7: Date:
A9: Appendix 2-K
A10: Employee Costs
B12: ="Last Rebasing Year (" & 'LDC Info'!E30 & " Board-Approved)" -> Last Rebasing Year (2009 Board-Approved) | C12: ="Last Rebasing Year (" & 'LDC Info'!E30 & " Actuals)" -> Last Rebasing Year (2009 Actuals) | D12: ='LDC Info'!E26 -2 & " Actuals" -> 2010 Actuals | E12: ='LDC Info'!E26 -1 & " Actuals" -> 2011 Actuals | F12: ='LDC Info'!E26 & " Actuals" -> 2012 Actuals | G12: ='LDC Info'!E28 & " Test Year" -> 2013 Test Year
A13: Reporting Basis | B13: CGAAP | C13: CGAAP | D13: CGAAP | E13: CGAAP | F13: CGAAP | G13: CGAAP
A14: Number of Employees (FTEs including Part-Time)1
A15: Executive | B15: 2.2 | C15: 2.5 | D15: 2.4 | E15: 2.3 | F15: 2.2 | G15: 2.4
A16: Management | B16: 11.7 | C16: 11.7 | D16: 12.1 | E16: 11.5 | F16: 11.3 | G16: 12.4
A17: Non-Union | B17: 5.6 | C17: 4.8 | D17: 5.4 | E17: 4.2 | F17: 3.8 | G17: 5.7
A18: Union | B18: 45.1 | C18: 45.6 | D18: 44.5 | E18: 45.33 | F18: 44.4 | G18: 50.1
A19: Total | B19: =SUM(B15:B18) -> 64.6 | C19: 64.6 | D19: 64.4 | E19: 63.33 | F19: 61.7 | G19: 70.6
A20: Number of Part-Time Employees (Headcount)
A21: Executive
A22: Management
A23: Non-Union
A24: Union | B24: =(2*0.2)+(3*0.75) -> 2.65 | C24: =(2*0.22)+(1*0.73) -> 1.17 | D24: =(2*0.19)+(3*0.72) -> 2.54 | E24: =(2*0.18)+(4*0.7) -> 3.16 | F24: 1 | G24: =(2*0.69)+(1*0.25) -> 1.63
A25: Total | B25: =SUM(B21:B24) -> 2.65 | C25: 1.17 | D25: 2.54 | E25: 3.16 | F25: 1 | G25: 1.63
A26: Total Salary and Wages
A27: Executive | B27: 254833 | C27: 334003.8 | D27: 347794.7 | E27: 364879.5 | F27: 336844 | G27: 365856.76
A28: Management | B28: =1064975-2 -> 1064973 | C28: 1035364 | D28: 1118910 | E28: 1059581 | F28: 1093226 | G28: 1189826
A29: Non-Union | B29: 311030.8 | C29: 316589 | D29: 329258.4 | E29: 219357.7 | F29: 208120.3 | G29: 340466.3
A30: Union | B30: 2909600.04 | C30: 3105612.059 | D30: 3046590.834 | E30: 3283156.145 | F30: 3115925 | G30: 3696640.8
A31: Total | B31: =SUM(B27:B30) -> 4540436.84 | C31: 4791568.859 | D31: 4842553.934 | E31: 4926974.345 | F31: 4754115.3 | G31: 5592789.86
A32: Current Benefits
A33: Executive | B33: =B27*0.24 -> 61159.92 | C33: 46786 | D33: 51802.11 | E33: 62840.91 | F33: 72468.26 | G33: 78775.97
A34: Management | B34: =B28*0.24 -> 255593.52 | C34: 196069 | D34: 210239.4 | E34: 224633.5 | F34: 245149.7 | G34: 233373.5
A35: Non-Union | B35: =B29*0.24 -> 74647.392 | C35: 64648.92 | D35: 72240.71 | E35: 45733.41 | F35: 45758.89 | G35: 113055.4
A36: Union | B36: =B30*0.24 -> 698304.0096 | C36: 638198.1111 | D36: 625563 | E36: 702474 | F36: 750858.2 | G36: 918593.9
A37: Total | B37: =SUM(B33:B36) -> 1089704.842 | C37: 945702.0311 | D37: 959845.22 | E37: 1035681.82 | F37: 1114235.05 | G37: 1343798.77
A38: Accrued Pension and Post-Retirement Benefits
A39: Executive
A40: Management
A41: Non-Union | B41: 39255.22059 | C41: 33828 | D41: 41138.29524 | E41: 34051.61228 | F41: 49213.164 | G41: 36232.63789
A42: Union | B42: 90790.27941 | C42: 81187.2 | D42: 91992.67026 | E42: 87561.28872 | F42: 126548.136 | G42: 88549.03211
A43: Total | B43: =SUM(B39:B42) -> 130045.5 | C43: 115015.2 | D43: 133130.9655 | E43: 121612.901 | F43: 175761.3 | G43: 124781.67
A44: Total Benefits (Current + Accrued)
A45: Executive | B45: =B33+B39 -> 61159.92 | C45: 46786 | D45: 51802.11 | E45: 62840.91 | F45: 72468.26 | G45: 78775.97
A46: Management | B46: 255593.52 | C46: 196069 | D46: 210239.4 | E46: 224633.5 | F46: 245149.7 | G46: 233373.5
A47: Non-Union | B47: 113902.6126 | C47: 98476.92 | D47: 113379.0052 | E47: 79785.02228 | F47: 94972.054 | G47: 149288.0379
A48: Union | B48: 789094.289 | C48: 719385.3111 | D48: 717555.6703 | E48: 790035.2887 | F48: 877406.336 | G48: 1007142.932
A49: Total | B49: 1219750.342 | C49: 1060717.231 | D49: 1092976.185 | E49: 1157294.721 | F49: 1289996.35 | G49: 1468580.44
A50: Total Compensation (Salary, Wages, & Benefits)
A51: Executive | B51: =B27+B45 -> 315992.92 | C51: 380789.8 | D51: 399596.81 | E51: 427720.41 | F51: 409312.26 | G51: 444632.73
A52: Management | B52: 1320566.52 | C52: 1231433 | D52: 1329149.4 | E52: 1284214.5 | F52: 1338375.7 | G52: 1423199.5
A53: Non-Union | B53: 424933.4126 | C53: 415065.92 | D53: 442637.4052 | E53: 299142.7223 | F53: 303092.354 | G53: 489754.3379
A54: Union | B54: 3698694.329 | C54: 3824997.37 | D54: 3764146.505 | E54: 4073191.433 | F54: 3993331.336 | G54: 4703783.732
A55: Total | B55: 5760187.182 | C55: 5852286.09 | D55: 5935530.12 | E55: 6084269.066 | F55: 6044111.65 | G55: 7061370.3
A56: Compensation - Average Yearly Base Wages
A57: Executive | B57: =(B27/B15)-B69 -> 110424.0909 | C57: 123304.596 | D57: 127765.7083 | E57: 138774.487 | F57: 138127.2727 | G57: 142440.3167
A58: Management | B58: 90254.10256 | C58: 87268.48547 | D58: 90489.83471 | E58: 90206.42 | F58: 94290.66814 | G58: 93615
A59: Non-Union | B59: 55273.35714 | C59: 65093.15625 | D59: 60537.85185 | E59: 51459.45238 | F59: 53813.5 | G59: 59204.61404
A60: Union | B60: 57312 | C60: 60995 | D60: =59308+2000 -> 61308 | E60: 63795 | F60: =(F30/F18)-F66 -> 62505.18694 | G60: 66739
A61: Total | B61: =SUMPRODUCT(B57:B60,B15:B18)/SUM(B15:B18) -> 64910.34056 | C61: =SUMPRODUCT(C57:C60,C15:C18)/SUM(C15:C18) -> 68469.37957 | D61: 69203.0295 | E61: 70496.00821 | F61: 70487.61994 | G61: 73424.54618
A62: Compensation - Average Yearly Overtime
A63: Executive
A64: Management
A65: Non-Union
A66: Union | B66: =262762.4/B18 -> 5826.217295 | C66: =383658/C18 -> 8413.552632 | D66: =316477/D18 -> 7111.842697 | E66: =500185/E18 -> 11034.30399 | F66: =340694.7/F18 -> 7673.304054 | G66: =289355.2/G18 -> 5775.552894
A67: Total
A68: Compensation - Average Yearly Incentive Pay
A69: Executive | B69: =11900/B15 -> 5409.090909 | C69: =25742.31/C15 -> 10296.924 | D69: =41157/D15 -> 17148.75 | E69: =45698.18/E15 -> 19868.77391 | F69: =32964/F15 -> 14983.63636 | G69: =24000/G15 -> 10000
A70: Management | B70: =9000/B16 -> 769.2307692 | C70: =14322.72/C16 -> 1224.164103 | D70: =23983/D16 -> 1982.066116 | E70: =22207.17/E16 -> 1931.058261 | F70: =27741.45/F16 -> 2454.995575 | G70: =29000/G16 -> 2338.709677
A71: Non-Union | B71: =1500/B17 -> 267.8571429 | C71: =4141.85/C17 -> 862.8854167 | D71: =2354/D17 -> 435.9259259 | E71: =3228/E17 -> 768.5714286 | F71: =3629/F17 -> 955 | G71: =3000/G17 -> 526.3157895
A72: Union | B72: 0 | C72: =12074/C18 -> 264.7807018 | D72: =240/D18 -> 5.393258427 | E72: =21977/E18 -> 484.8224134 | F72: 0 | G72: 0
A73: Total | B73: =B43/B19 -> 2013.088235 | C73: =C43/C19 -> 1780.421053 | D73: 2067.251017 | E73: 1920.304769 | F73: 2848.643436 | G73: 1767.445751
A74: Compensation - Average Yearly Benefits
A75: Executive | B75: =B45/B15 -> 27799.96364 | C75: =C45/C15 -> 18714.4 | D75: 21584.2125 | E75: 27322.13478 | F75: 32940.11818 | G75: 32823.32083
A76: Management | B76: =B46/B16 -> 21845.6 | C76: 16758.03419 | D76: 17375.15702 | E76: 19533.34783 | F76: 21694.66372 | G76: 18820.44355
A77: Non-Union | B77: =B47/B17 -> 20339.75225 | C77: 20516.025 | D77: 20996.11208 | E77: 18996.43388 | F77: 24992.64579 | G77: 26190.88384
A78: Union | B78: =B48/B18 -> 17496.54743 | C78: 15775.99366 | D78: 16124.84652 | E78: 17428.53053 | F78: 19761.40396 | G78: 20102.65334
A79: Total | B79: =B49/B19 -> 18881.58424 | C79: 16419.77138 | D79: 16971.6799 | E79: 18274.03633 | F79: 20907.55835 | G79: 20801.42266
A81: Total Compensation | B81: =SUM(B51:B54) -> 5760187.182 | C81: 5852286.09 | D81: 5935530.12 | E81: 6084269.066 | F81: 6044111.65 | G81: 7061370.3
A82: Total Compensation Capitalized (CGAAP) | B82: 2886918 | C82: 2826302.1 | D82: 2757625 | E82: 2611865 | F82: 2581945 | G82: 2121528
A83: Total Compensation Charged to OM&A (CGAAP) | B83: =B81-B82 -> 2873269.182 | C83: 3025983.99 | D83: 3177905.12 | E83: 3472404.066 | F83: 3462166.65 | G83: 4939842.3
A85: Total Compensation Capitalized (MIFRS)
A86: Total Compensation Charged to OM&A (MIFRS)
A89: 1 If an applicant wishes to use headcount, it must also file the same schedule on an FTE basis.
A91: Note:
A92: 1 Please report compensation on a CGAAP and MIFRS basis for your transition year.

Sheet App.2-L_OM&A_per_Cust_FTEE
H1: File Number: | I1: ='LDC Info'!$E$18 -> EB-2012-0160
H2: Exhibit: | I2: 4
H3: Tab: | I3: 1
H4: Schedule: | I4: 1
H5: Page:
H7: Date:
B9: Appendix 2-L
B10: Recoverable OM&A Cost per Customer and per FTEE
D12: ="Last Rebasing Year (" & 'LDC Info'!E30 & " Board-Approved)" -> Last Rebasing Year (2009 Board-Approved) | E12: ="Last Rebasing Year (" & 'LDC Info'!E30 & " Actuals)" -> Last Rebasing Year (2009 Actuals) | F12: ='LDC Info'!E26 -2 & " Actuals" -> 2010 Actuals | G12: ='LDC Info'!E26 -1 & " Actuals" -> 2011 Actuals | H12: 2012 Actuals | I12: ='LDC Info'!E28 & " Test Year" -> 2013 Test Year
B13: Reporting Basis | D13: CGAAP | E13: CGAAP | F13: CGAAP | G13: CGAAP | H13: CGAAP | I13: CGAAP
B14: Number of Customers | D14: 34890 | E14: 34508 | F14: 34764 | G14: 35095 | H14: 35303 | I14: 35697
B15: Total Recoverable OM&A from Appendix 2-I | D15: ='App.2-H_OM&A_Detailed_Analysis'!D135 -> 6674106 | E15: ='App.2-G_Detailed_OM&A_Expenses'!D130 -> 6562433.05 | F15: ='App.2-G_Detailed_OM&A_Expenses'!E130 -> 6178592 | G15: ='App.2-G_Detailed_OM&A_Expenses'!F130 -> 6893035 | H15: ='App.2-G_Detailed_OM&A_Expenses'!H130 -> 7072201 | I15: ='App.2-G_Detailed_OM&A_Expenses'!I130 -> 8440000
B16: OM&A cost per customer | D16: =IF(D14=0,"",D15/D14) -> 191.2899398 | E16: 190.171353 | F16: 177.7296053 | G16: 196.4107423 | H16: 200.3286123 | I16: 236.4344343
B17: Number of FTEEs | D17: ='App.2-K_Employee Costs'!B19 -> 64.6 | E17: ='App.2-K_Employee Costs'!C19 -> 64.6 | F17: ='App.2-K_Employee Costs'!D19 -> 64.4 | G17: ='App.2-K_Employee Costs'!E19 -> 63.33 | H17: 61.7 | I17: ='App.2-K_Employee Costs'!G19 -> 70.6
B18: Customers/FTEEs | D18: =IF(D17=0,"",D14/D17) -> 540.0928793 | E18: 534.1795666 | F18: 539.8136646 | G18: 554.1607453 | H18: 572.171799 | I18: 505.6232295
B19: OM&A Cost per FTEE | D19: =IF(D17=0,"",D15/D17) -> 103314.3344 | E19: 101585.6509 | F19: 95940.86957 | G19: 108843.1233 | H19: 114622.3825 | I19: 119546.7422
B21: Notes:
B23: 1 | C23: If it has been more than three years since the applicant last filed a cost of service application, additional years of historical actuals should be incorporated into the table, as necessary, to go back to the last cost of service application. If the applicant last filed a cost of service application less than three years ago, a minimum of three years of actual information is required.
B27: 2 | C27: The method of calculating the number of customers must be identified. number of customers in the year.
B28: 3 | C28: The method of calculating the number of FTEEs must be identified. See also Appendix 2-K
B29: 4 | C29: The number of customers and the number of FTEEs should correspond to mid-year or average of January 1 and December 31 figures.
B32: PDI Notes
B33: 2 | C33: # of customers corresponds to the number of customers reported in the load forecast and is the average number of customers in the year
B34: 3 | C34: FTEEs have been calculated based on an estimate of PDI's portion of affiliate PUSI FTEEs (average Jan 1/Dec 31)

Sheet App.2-M_Regulatory_Costs
K1: File Number: | L1: ='LDC Info'!$E$18 -> EB-2012-0160
K2: Exhibit: | L2: 4
K3: Tab: | L3: 1
K4: Schedule: | L4: 1
K5: Page:
K7: Date:
B9: Appendix 2-M
B10: Regulatory Cost Schedule
F11: On-Going
F12: One-Time
B14: Regulatory Cost Category | D14: USoA Account | E14: USoA Account Balance | F14: Ongoing or One-time Cost? 2 | G14: ="Last Rebasing Year (" & 'LDC Info'!E30 & " Board Approved)" -> Last Rebasing Year (2009 Board Approved) | H14: Most Current Actuals Year 2011 | I14: 2012 Actual | J14: Annual % Change | K14: ='LDC Info'!E28 & " Test Year Expenditures" -> 2013 Test Year Expenditures | L14: ='LDC Info'!E28 & " Test Year Requested for Recovery" -> 2013 Test Year Requested for Recovery | M14: Annual % Change
B15: (A) | D15: (B) | E15: (C ) | F15: (D) | G15: (E) | H15: (F) | I15: (G) | J15: (H) = [(G)-(F)]/(F) | K15: (I) | M15: (J) = [(I)-(G)]/(G)
B16: 1 | C16: OEB Annual Assessment | D16: 5655 | F16: On-Going | G16: 100000 | H16: =94174+800 -> 94974 | I16: 95235 | J16: =IF(H16=0,"",(I16-H16)/H16) -> 0.002748120538 | K16: 100000 | L16: =K16 -> 100000 | M16: =IF(I16=0,"",(K16-I16)/I16) -> 0.05003412611
B17: 2 | C17: OEB Section 30 Costs (Applicant-originated) | J17: =IF(H17=0,"",(I17-H17)/H17) ->  | M17: =IF(I17=0,"",(K17-I17)/I17) -> 
B18: 3 | C18: OEB Section 30 Costs (OEB-initiated) | D18: 5655 | F18: On-Going | G18: 18000 | H18: 4083 | I18: 9471 | J18: 1.319617928 | K18: 5000 | L18: =K18 -> 5000 | M18: -0.4720726428
B19: 4 | C19: Expert Witness costs for regulatory matters
B20: 5 | C20: Legal costs for regulatory matters
B21: 6 | C21: Consultants' costs for regulatory matters | D21: 5630 | F21: One-Time | G21: 120000 | K21: 175000 | L21: =K21/4 -> 43750
B22: 7 | C22: Operating expenses associated with staff resources allocated to regulatory matters
B23: 8 | C23: Operating expenses associated with other resources allocated to regulatory matters 1
B24: 9 | C24: Other regulatory agency fees or assessments
B25: 10 | C25: Any other costs for regulatory matters (Consultant costs other regulatory, not Cost of Service) | D25: 5655 | F25: On-Going | G25: 2000 | H25: 3233 | I25: 800 | J25: -0.7525518095 | K25: 10000 | L25: 10000 | M25: 11.5
B26: 11 | C26: Intervenor costs - Ongoing | D26: 5655 | F26: On-Going | H26: 12853 | I26: 0 | J26: -1
B27: 11 | C27: Intervenor costs - One-Time | D27: 5655 | F27: One-Time | K27: 25000 | L27: =K27/4 -> 6250
B28: 12 | C28: Sub-total - Ongoing Costs 3 | E28: =SUMIF($F16:$F27,$F11,E16:E27) -> 0 | G28: =SUMIF($F16:$F27,$F11,G16:G27) -> 120000 | H28: =SUMIF($F16:$F27,$F11,H16:H27) -> 115143 | I28: =SUMIF($F16:$F27,$F11,I16:I27) -> 105506 | J28: -0.08369592594 | K28: =SUMIF($F16:$F27,$F11,K16:K27) -> 115000 | L28: =SUMIF($F16:$F27,$F11,L16:L27) -> 115000 | M28: 0.08998540367
B29: 13 | C29: Sub-total - One-time Costs 4 | E29: =SUMIF($F16:$F27,$F12,E16:E27) -> 0 | G29: =SUMIF($F16:$F27,$F12,G16:G27) -> 120000 | H29: =SUMIF($F16:$F27,$F12,H16:H27) -> 0 | I29: =SUMIF($F16:$F27,$F12,I16:I27) -> 0 | K29: =SUMIF($F16:$F27,$F12,K16:K27) -> 200000 | L29: =SUMIF($F16:$F27,$F12,L16:L27) -> 50000
B30: 14 | C30: Total | E30: =E28+E29 -> 0 | G30: =G28+G29 -> 240000 | H30: =H28+H29 -> 115143 | I30: =I28+I29 -> 105506 | J30: -0.08369592594 | K30: =K28+K29 -> 315000 | L30: =L28+L29 -> 165000 | M30: 1.985612193
B33: 1 | C33: Please identify the resources involved.
B34: 2 | C34: Where a category's costs include both one-time and ongoing costs, the applicant should prove a separate breakdown between one-time and ongoing costs.
B35: 3 | C35: Sum of all ongoing costs identified in rows 1 to 11 inclusive.
B36: 4 | C36: Sum of all one-time costs identified in rows 1 to 11 inclusive.
B39: Please fill out the following table for all one-time costs related to this cost of service application
D41: Historical Year(s) | E41: =I14 -> 2012 Actual | F41: =K14 -> 2013 Test Year Expenditures
B42: 4 | C42: Expert Witness costs for regulatory matters | E42: =I19 -> 0 | F42: =K19 -> 0
B43: 6 | C43: Consultants' costs for regulatory matters | D43: 120000 | E43: =I21 -> 0 | F43: =K21 -> 175000
B44: 7 | C44: Operating expenses associated with staff resources allocated to regulatory matters | E44: =I22 -> 0 | F44: =K22 -> 0
B45: 8 | C45: Operating expenses associated with other resources allocated to regulatory matters 1 | E45: =I23 -> 0 | F45: =K23 -> 0
B46: 11 | C46: Intervenor costs | E46: =I27 -> 0 | F46: =K27 -> 25000

Sheet App.2-N_Corp_Cost_Allocation09
F1: File Number: | G1: ='LDC Info'!$E$18 -> EB-2012-0160
F2: Exhibit: | G2: 4
F3: Tab: | G3: 2
F4: Schedule: | G4: 5
F5: Page:
F7: Date:
A9: Appendix 2-N
A10: Shared Services and Corporate Cost Allocation
B12: Year: | C12: 2009
A14: Shared Servicesand Corporate Cost Allocation
A17: Name of Company | C17: Service Offered | D17: Pricing Methdology | E17: Price for the Service | F17: Cost for the Service | G17: % of Corporate Costs Allocated
A18: From | B18: To
E19: $ | F19: $ | G19: %
A20: PUSI | B20: PDI | C20: Electric Operations | D20: Cost-Based | E20: 2043804 | F20: 2043804 | G20: 0.8908971664
A21: PUSI | B21: PDI | C21: Engineering Services | D21: Cost-Based | E21: 887422 | F21: 887422 | G21: 0.5603049741
A22: PUSI | B22: PDI | C22: Field Technical Operations | D22: Cost-Based | E22: 551098 | F22: 551098 | G22: 0.9813138364
A23: PUSI | B23: PDI | C23: Vehicles | D23: Cost-Based | E23: 502616 | F23: 502616 | G23: 0.5863599244
A24: PUSI | B24: PDI | C24: Stores | D24: Cost-Based | E24: 184301 | F24: 184301 | G24: 0.7893618753
A25: PUSI | B25: PDI | C25: Customer Service | D25: Cost-Based | E25: 1387816.35 | F25: 1387816.35 | G25: 0.7319999905
A26: PUSI | B26: PDI | C26: Administration | D26: Cost-Based | E26: 519762.12 | F26: 519762.12 | G26: 0.4147009284
A27: PUSI | B27: PDI | C27: Corporate Services | D27: Cost-Based | E27: 301682.48 | F27: 301682.48 | G27: 0.8438340317
A28: PUSI | B28: PDI | C28: Finance | D28: Cost-Based | E28: 198243.09 | F28: 198243.09 | G28: 0.4914805174
A29: PUSI | B29: PDI | C29: Technology Services | D29: Cost-Based | E29: 639718.25 | F29: 639718.25 | G29: 0.219607824
A30: PUSI | B30: PDI | C30: Human Resources | D30: Cost-Based | E30: 249639.66 | F30: 249639.66 | G30: 0.3716286091
A31: PUSI | B31: PDI | C31: Purchasing | D31: Cost-Based | E31: 74613.03 | F31: 74613.03 | G31: 0.4212981894
A32: PUSI | B32: PDI | C32: Facilities Management | D32: Cost-Based | E32: 514062.09 | F32: 514062.09 | G32: 0.4877774231
A33: PUSI | B33: PDI | C33: Software & Equipment Rent | D33: Cost-Based | E33: 167914.96 | F33: 167914.96 | G33: 0.4301397894
A35: PUI | B35: PDI | C35: Settlement Services | D35: Market | E35: 41733.96 | F35: 41733.96 | G35: 0.376884787
A36: PUI | B36: PDI | C36: MDMA Services | D36: Market | E36: 51868 | F36: 51868 | G36: 0.1745180968
A37: PUI | B37: PDI | C37: MSP Services | D37: Market | E37: 11380 | F37: 11380 | G37: 0.01285232364
A41: Note:
A42: 1 | B42: This appendix must be completed in relation to each service provided or received for the Historical (actuals), Bridge and Test years.

Sheet App.2-N_Corp_Cost_Allocation10
F1: File Number: | G1: ='LDC Info'!$E$18 -> EB-2012-0160
F2: Exhibit: | G2: 4
F3: Tab: | G3: 2
F4: Schedule: | G4: 5
F5: Page:
F7: Date:
A9: Appendix 2-N
A10: Shared Services and Corporate Cost Allocation
B12: Year: | C12: 2010
A14: Shared Servicesand Corporate Cost Allocation
A17: Name of Company | C17: Service Offered | D17: Pricing Methdology | E17: Price for the Service | F17: Cost for the Service | G17: % of Corporate Costs Allocated
A18: From | B18: To
E19: $ | F19: $ | G19: %
A20: PUSI | B20: PDI | C20: Electric Operations | D20: Cost-Based | E20: 2141338 | F20: 2141338 | G20: 0.9080480388
A21: PUSI | B21: PDI | C21: Engineering Services | D21: Cost-Based | E21: 715392 | F21: 715392 | G21: 0.5018798431
A22: PUSI | B22: PDI | C22: Field Technical Operations | D22: Cost-Based | E22: 588294 | F22: 588294 | G22: 0.9985877384
A23: PUSI | B23: PDI | C23: Vehicles | D23: Cost-Based | E23: 497567 | F23: 497567 | G23: 0.5428564259
A24: PUSI | B24: PDI | C24: Stores | D24: Cost-Based | E24: 141989 | F24: 141989 | G24: 0.7678858249
A25: PUSI | B25: PDI | C25: Customer Service | D25: Cost-Based | E25: 1213090.23 | F25: 1213090.23 | G25: 0.7153998817
A26: PUSI | B26: PDI | C26: Administration | D26: Cost-Based | E26: 580115.56 | F26: 580115.56 | G26: 0.4045077114
A27: PUSI | B27: PDI | C27: Corporate Services | D27: Cost-Based | E27: 280039.42 | F27: 280039.42 | G27: 0.797203746
A28: PUSI | B28: PDI | C28: Finance | D28: Cost-Based | E28: 127860.9 | F28: 127860.9 | G28: 0.351898834
A29: PUSI | B29: PDI | C29: Technology Services | D29: Cost-Based | E29: 600363.32 | F29: 600363.32 | G29: 0.191148044
A30: PUSI | B30: PDI | C30: Human Resources | D30: Cost-Based | E30: 283162.75 | F30: 283162.75 | G30: 0.3832231758
A31: PUSI | B31: PDI | C31: Purchasing | D31: Cost-Based | E31: 61122.04 | F31: 61122.04 | G31: 0.2655210718
A32: PUSI | B32: PDI | C32: Facilities Management | D32: Cost-Based | E32: 503276.04 | F32: 503276.04 | G32: 0.4891377197
A33: PUSI | B33: PDI | C33: Software & Equipment Rent | D33: Cost-Based | E33: 180017 | F33: 180017 | G33: 0.4418680298
A35: PUI | B35: PDI | C35: Settlement Services | D35: Market | E35: 41733.96 | F35: 41733.96 | G35: 0.3813986833
A36: PUI | B36: PDI | C36: MDMA Services | D36: Market | E36: 51868 | F36: 51868 | G36: 0.1842455133
A37: PUI | B37: PDI | C37: MSP Services | D37: Market | E37: 11380 | F37: 11380 | G37: 0.01456688509
A41: Note:
A42: 1 | B42: This appendix must be completed in relation to each service provided or received for the Historical (actuals), Bridge and Test years.

Sheet App.2-N_Corp_Cost_Allocation11
F1: File Number: | G1: ='LDC Info'!$E$18 -> EB-2012-0160
F2: Exhibit: | G2: 4
F3: Tab: | G3: 2
F4: Schedule: | G4: 5
F5: Page:
F7: Date:
A9: Appendix 2-N
A10: Shared Services and Corporate Cost Allocation
B12: Year: | C12: 2011
A14: Shared Servicesand Corporate Cost Allocation
A17: Name of Company | C17: Service Offered | D17: Pricing Methdology | E17: Price for the Service | F17: Cost for the Service | G17: % of Corporate Costs Allocated
A18: From | B18: To
E19: $ | F19: $ | G19: %
A20: PUSI | B20: PDI | C20: Electric Operations | D20: Cost-Based | E20: 2177301 | F20: 2177301 | G20: 0.866758227
A21: PUSI | B21: PDI | C21: Engineering Services | D21: Cost-Based | E21: 797583 | F21: 797583 | G21: 0.5231095008
A22: PUSI | B22: PDI | C22: Field Technical Operations | D22: Cost-Based | E22: 527963 | F22: 527963 | G22: 0.9874712353
A23: PUSI | B23: PDI | C23: Vehicles | D23: Cost-Based | E23: 512120 | F23: 512120 | G23: 0.4969645685
A24: PUSI | B24: PDI | C24: Stores | D24: Cost-Based | E24: 138850 | F24: 138850 | G24: 0.725591944
A25: PUSI | B25: PDI | C25: Customer Service | D25: Cost-Based | E25: 1274142.73 | F25: 1274142.73 | G25: 0.7029999751
A26: PUSI | B26: PDI | C26: Administration | D26: Cost-Based | E26: 538872.37 | F26: 538872.37 | G26: 0.3979274471
A27: PUSI | B27: PDI | C27: Corporate Services | D27: Cost-Based | E27: 269083 | F27: 269083 | G27: 0.8160004415
A28: PUSI | B28: PDI | C28: Finance | D28: Cost-Based | E28: 142978.8 | F28: 142978.8 | G28: 0.3783809747
A29: PUSI | B29: PDI | C29: Technology Services | D29: Cost-Based | E29: 600329.14 | F29: 600329.14 | G29: 0.1787390318
A30: PUSI | B30: PDI | C30: Human Resources | D30: Cost-Based | E30: 303799.72 | F30: 303799.72 | G30: 0.394000158
A31: PUSI | B31: PDI | C31: Purchasing | D31: Cost-Based | E31: 110324.05 | F31: 110324.05 | G31: 0.3965257611
A32: PUSI | B32: PDI | C32: Facilities Management | D32: Cost-Based | E32: 513860 | F32: 513860 | G32: 0.4889206467
A33: PUSI | B33: PDI | C33: Software & Equipment Rent | D33: Cost-Based | E33: 153791 | F33: 153791 | G33: 0.4159593861
A35: PUI | B35: PDI | C35: Settlement Services | D35: Market | E35: 41733.96 | F35: 41733.96 | G35: 0.3734594796
A36: PUI | B36: PDI | C36: MDMA Services | D36: Market | E36: 51868 | F36: 51868 | G36: 0.1902621286
A37: PUI | B37: PDI | C37: MSP Services | D37: Market | E37: 11380 | F37: 11380 | G37: 0.0153798574
A41: Note:
A42: 1 | B42: This appendix must be completed in relation to each service provided or received for the Historical (actuals), Bridge and Test years.

Sheet App.2-N_Corp_Cost_Allocation12
F1: File Number: | G1: ='LDC Info'!$E$18 -> EB-2012-0160
F2: Exhibit: | G2: 4
F3: Tab: | G3: 2
F4: Schedule: | G4: 5
F5: Page:
F7: Date:
A9: Appendix 2-N
A10: Shared Services and Corporate Cost Allocation
B12: Year: | C12: 2012 Actual
A14: Shared Servicesand Corporate Cost Allocation
A17: Name of Company | C17: Service Offered | D17: Pricing Methdology | E17: Price for the Service | F17: Cost for the Service | G17: % of Corporate Costs Allocated
A18: From | B18: To
E19: $ | F19: $ | G19: %
A20: PUSI | B20: PDI | C20: Electric Operations | D20: Cost-Based | E20: 2212494 | F20: 2212494 | G20: 0.9
A21: PUSI | B21: PDI | C21: Engineering Services | D21: Cost-Based | E21: 853794 | F21: 853794 | G21: 0.53
A22: PUSI | B22: PDI | C22: Field Technical Operations | D22: Cost-Based | E22: 625091 | F22: 625091 | G22: 0.99
A23: PUSI | B23: PDI | C23: Vehicles | D23: Cost-Based | E23: 524280 | F23: 524280 | G23: 0.49
A24: PUSI | B24: PDI | C24: Stores | D24: Cost-Based | E24: 166470 | F24: 166470 | G24: 0.76
A25: PUSI | B25: PDI | C25: Customer Service | D25: Cost-Based | E25: 1264572 | F25: 1264572 | G25: 0.67
A26: PUSI | B26: PDI | C26: Administration | D26: Cost-Based | E26: 515865 | F26: 515865 | G26: 0.33
A27: PUSI | B27: PDI | C27: Corporate Services | D27: Cost-Based | E27: 261190 | F27: 261190 | G27: 0.84
A28: PUSI | B28: PDI | C28: Finance | D28: Cost-Based | E28: 151242 | F28: 151242 | G28: 0.4040394089
A29: PUSI | B29: PDI | C29: Technology Services | D29: Cost-Based | E29: 565611 | F29: 565611 | G29: 0.18
A30: PUSI | B30: PDI | C30: Human Resources | D30: Cost-Based | E30: 306967 | F30: 306967 | G30: 0.4
A31: PUSI | B31: PDI | C31: Purchasing | D31: Cost-Based | E31: 116899 | F31: 116899 | G31: 0.39
A32: PUSI | B32: PDI | C32: Facilities Management | D32: Cost-Based | E32: 489000 | F32: 489000 | G32: 0.49
A33: PUSI | B33: PDI | C33: Software & Equipment Rent | D33: Cost-Based | E33: 137595 | F33: 137595 | G33: 0.41
A35: PUI | B35: PDI | C35: Settlement Services | D35: Market | E35: 41733.96 | F35: 41733.96 | G35: 0.3796334732
A36: PUI | B36: PDI | C36: MDMA Services | D36: Market | E36: 51868 | F36: 51868 | G36: 0.1666413388
A37: PUI | B37: PDI | C37: MSP Services | D37: Market | E37: 11380 | F37: 11380 | G37: 0.01783213079
A41: Note:
A42: 1 | B42: This appendix must be completed in relation to each service provided or received for the Historical (actuals), Bridge and Test years.

Sheet App.2-N_Corp_Cost_Allocation13
F1: File Number: | G1: ='LDC Info'!$E$18 -> EB-2012-0160
F2: Exhibit: | G2: 4
F3: Tab: | G3: 2
F4: Schedule: | G4: 5
F5: Page:
F7: Date:
A9: Appendix 2-N
A10: Shared Services and Corporate Cost Allocation
B12: Year: | C12: 2013
A14: Shared Servicesand Corporate Cost Allocation
A17: Name of Company | C17: Service Offered | D17: Pricing Methdology | E17: Price for the Service | F17: Cost for the Service | G17: % of Corporate Costs Allocated
A18: From | B18: To
E19: $ | F19: $ | G19: %
A20: PUSI | B20: PDI | C20: Electric Operations | D20: Cost-Based | E20: 2233297 | F20: 2233297 | G20: 0.8844957777
A21: PUSI | B21: PDI | C21: Engineering Services | D21: Cost-Based | E21: 1246516 | F21: 1246516 | G21: 0.5887009593
A22: PUSI | B22: PDI | C22: Field Technical Operations | D22: Cost-Based | E22: 898940 | F22: 898940 | G22: 1
A23: PUSI | B23: PDI | C23: Vehicles | D23: Cost-Based | E23: 553540 | F23: 553540 | G23: 0.4742915701
A24: PUSI | B24: PDI | C24: Stores | D24: Cost-Based | E24: 120220 | F24: 120220 | G24: 0.7600010115
A25: PUSI | B25: PDI | C25: Customer Service | D25: Cost-Based | E25: 1456261 | F25: 1456261 | G25: 0.6900000616
A26: PUSI | B26: PDI | C26: Administration | D26: Cost-Based | E26: 561394 | F26: 561394 | G26: 0.4041207221
A27: PUSI | B27: PDI | C27: Corporate Services | D27: Cost-Based | E27: 348701 | F27: 348701 | G27: 0.8838838052
A28: PUSI | B28: PDI | C28: Finance | D28: Cost-Based | E28: 311570 | F28: 311570 | G28: 0.5575099309
A29: PUSI | B29: PDI | C29: Technology Services | D29: Cost-Based | E29: 894940 | F29: 894940 | G29: 0.2596100599
A30: PUSI | B30: PDI | C30: Human Resources | D30: Cost-Based | E30: 318633 | F30: 318633 | G30: 0.3524927484
A31: PUSI | B31: PDI | C31: Purchasing | D31: Cost-Based | E31: 123610 | F31: 123610 | G31: 0.3994003018
A32: PUSI | B32: PDI | C32: Facilities Management | D32: Cost-Based | E32: 531000 | F32: 531000 | G32: 0.5115606936
A33: PUSI | B33: PDI | C33: Software & Equipment Rent | D33: Cost-Based | E33: 208000 | F33: 208000 | G33: 0.4249233912
A35: PUI | B35: PDI | C35: Settlement Services | D35: Market | E35: 41733.96 | F35: 41733.96 | G35: 0.3796334732
A36: PUI | B36: PDI | C36: MDMA Services | D36: Market | E36: 51868 | F36: 51868 | G36: 0.1666413388
A37: PUI | B37: PDI | C37: MSP Services | D37: Market | E37: 11380 | F37: 11380 | G37: 0.01783213079
A41: Note:
A42: 1 | B42: This appendix must be completed in relation to each service provided or received for the Historical (actuals), Bridge and Test years.

Sheet App.2-OA Capital Structure
K1: File Number: | O1: ='LDC Info'!$E$18 -> EB-2012-0160
K2: Exhibit: | O2: 5
K3: Tab: | O3: 1
K4: Schedule: | O4: 2
K5: Page:
K7: Date:
C9: Appendix 2-OA
C10: Capital Structure and Cost of Capital
A12: 2009
A14: Line No.
C15: Particulars | E15: Capitalization Ratio | K15: Cost Rate | O15: Return
C18: Application
E19: (%) | I19: ($) | K19: (%) | O19: ($)
C20: Debt
A21: 1 | C21: Long-term Debt | E21: 0.527 | I21: =$I$30*E21 -> 28508316.38 | K21: 0.06306029 | O21: =K21*I21 -> 1797742.698
A22: 2 | C22: Short-term Debt | E22: 0.04 | I22: =$I$30*E22 -> 2163819.08 | K22: 0.0133 | O22: =K22*I22 -> 28778.79376
A23: 3 | C23: Total Debt | E23: =SUM(E21:E22) -> 0.567 | I23: =SUM(I21:I22) -> 30672135.46 | K23: =IF(E23=0,0,SUMPRODUCT(E21:E22,K21:K22)/E23) -> 0.0595498639 | O23: =SUM(O21:O22) -> 1826521.492
C25: Equity
A26: 4 | C26: Common Equity | E26: 0.433 | I26: =$I$30*E26 -> 23423341.54 | K26: 0.0801 | O26: =K26*I26 -> 1876209.657
A27: 5 | C27: Preferred Shares | E27: 0 | I27: =$I$30*E27 -> 0 | O27: =K27*I27 -> 0
A28: 6 | C28: Total Equity | E28: =SUM(E26:E27) -> 0.433 | I28: =SUM(I26:I27) -> 23423341.54 | K28: =IF(E28=0,0,SUMPRODUCT(E26:E27,K26:K27)/E28) -> 0.0801 | O28: =SUM(O26:O27) -> 1876209.657
A30: 7 | C30: Total | E30: 1 | I30: 54095477 | K30: =(K23*E23)+(K28*E28) -> 0.06844807283 | O30: =O23+O28 -> 3702731.149
A33: 2010
A35: Line No.
C36: Particulars | E36: Capitalization Ratio | K36: Cost Rate | O36: Return
C39: Application
E40: (%) | I40: ($) | K40: (%) | O40: ($)
C41: Debt
A42: 1 | C42: Long-term Debt | E42: 0.56 | I42: =$I51*E42 -> 30606128.56 | K42: 0.0538082 | O42: =K42*I42 -> 1646860.687
A43: 2 | C43: Short-term Debt | E43: 0.04 | I43: =$I51*E43 -> 2186152.04 | K43: 0.0133 | O43: =K43*I43 -> 29075.82213
A44: 3 | C44: Total Debt | E44: =SUM(E42:E43) -> 0.6 | I44: =SUM(I42:I43) -> 32792280.6 | K44: =IF(E44=0,0,SUMPRODUCT(E42:E43,K42:K43)/E44) -> 0.05110765333 | O44: =SUM(O42:O43) -> 1675936.509
C46: Equity
A47: 4 | C47: Common Equity | E47: 0.4 | I47: =$I51*E47 -> 21861520.4 | K47: 0.0801 | O47: =K47*I47 -> 1751107.784
A48: 5 | C48: Preferred Shares | E48: 0 | I48: =$I$30*E48 -> 0 | O48: =K48*I48 -> 0
A49: 6 | C49: Total Equity | E49: =SUM(E47:E48) -> 0.4 | I49: =SUM(I47:I48) -> 21861520.4 | K49: =IF(E49=0,0,SUMPRODUCT(E47:E48,K47:K48)/E49) -> 0.0801 | O49: =SUM(O47:O48) -> 1751107.784
A51: 7 | C51: Total | E51: 1 | I51: 54653801 | K51: =(K44*E44)+(K49*E49) -> 0.062704592 | O51: =O44+O49 -> 3427044.293
A54: 2011
A55: Line No.
C56: Particulars | E56: Capitalization Ratio | K56: Cost Rate | O56: Return
C59: Application
E60: (%) | I60: ($) | K60: (%) | O60: ($)
C61: Debt
A62: 1 | C62: Long-term Debt | E62: 0.56 | I62: =$I71*E62 -> 31711468.88 | K62: 0.0507395 | O62: =K62*I62 -> 1609024.075
A63: 2 | C63: Short-term Debt | E63: 0.04 | I63: =$I71*E63 -> 2265104.92 | K63: 0.0133 | O63: =K63*I63 -> 30125.89544
A64: 3 | C64: Total Debt | E64: =SUM(E62:E63) -> 0.6 | I64: =SUM(I62:I63) -> 33976573.8 | K64: =IF(E64=0,0,SUMPRODUCT(E62:E63,K62:K63)/E64) -> 0.04824353333 | O64: =SUM(O62:O63) -> 1639149.971
C66: Equity
A67: 4 | C67: Common Equity | E67: 0.4 | I67: =$I71*E67 -> 22651049.2 | K67: 0.0801 | O67: =K67*I67 -> 1814349.041
A68: 5 | C68: Preferred Shares | E68: 0 | I68: =$I$30*E68 -> 0 | O68: =K68*I68 -> 0
A69: 6 | C69: Total Equity | E69: =SUM(E67:E68) -> 0.4 | I69: =SUM(I67:I68) -> 22651049.2 | K69: =IF(E69=0,0,SUMPRODUCT(E67:E68,K67:K68)/E69) -> 0.0801 | O69: =SUM(O67:O68) -> 1814349.041
A71: 7 | C71: Total | E71: 1 | I71: 56627623 | K71: =(K64*E64)+(K69*E69) -> 0.06098612 | O71: =O64+O69 -> 3453499.012
A73: 2012 - Bridge Year - CGAAP
A74: Line No.
C75: Particulars | E75: Capitalization Ratio | K75: Cost Rate | O75: Return
C77: Application
E78: (%) | I78: ($) | K78: (%) | O78: ($)
C79: Debt
A80: 1 | C80: Long-term Debt | E80: 0.56 | I80: =$I89*E80 -> 35429980.88 | K80: 0.04542494 | O80: =K80*I80 -> 1609404.756
A81: 2 | C81: Short-term Debt | E81: 0.04 | I81: =$I89*E81 -> 2530712.92 | K81: 0.0133 | O81: =K81*I81 -> 33658.48184
A82: 3 | C82: Total Debt | E82: =SUM(E80:E81) -> 0.6 | I82: =SUM(I80:I81) -> 37960693.8 | K82: =IF(E82=0,0,SUMPRODUCT(E80:E81,K80:K81)/E82) -> 0.04328327733 | O82: =SUM(O80:O81) -> 1643063.238
C84: Equity
A85: 4 | C85: Common Equity | E85: 0.4 | I85: =$I89*E85 -> 25307129.2 | K85: 0.0801 | O85: =K85*I85 -> 2027101.049
A86: 5 | C86: Preferred Shares | E86: 0 | I86: =$I$30*E86 -> 0 | O86: =K86*I86 -> 0
A87: 6 | C87: Total Equity | E87: =SUM(E85:E86) -> 0.4 | I87: =SUM(I85:I86) -> 25307129.2 | K87: =IF(E87=0,0,SUMPRODUCT(E85:E86,K85:K86)/E87) -> 0.0801 | O87: =SUM(O85:O86) -> 2027101.049
A89: 7 | C89: Total | E89: 1 | I89: 63267823 | K89: =(K82*E82)+(K87*E87) -> 0.0580099664 | O89: =O82+O87 -> 3670164.286
A91: 2013 - Test Year - CGAAP, Kinetrics Useful Lifes
A92: Line No.
C93: Particulars | E93: Capitalization Ratio | K93: Cost Rate | O93: Return
C95: Application
E96: (%) | I96: ($) | K96: (%) | O96: ($)
C97: Debt
A98: 1 | C98: Long-term Debt | E98: 0.56 | I98: =$I107*E98 -> 36671941.86 | K98: 0.04109133011 | O98: =K98*I98 -> 1506898.869
A99: 2 | C99: Short-term Debt | E99: 0.04 | I99: =$I107*E99 -> 2619424.418 | K99: 0.0207 | O99: =K99*I99 -> 54222.08546
A100: 3 | C100: Total Debt | E100: =SUM(E98:E99) -> 0.6 | I100: =SUM(I98:I99) -> 39291366.28 | K100: =IF(E100=0,0,SUMPRODUCT(E98:E99,K98:K99)/E100) -> 0.03973190811 | O100: =SUM(O98:O99) -> 1561120.954
C102: Equity
A103: 4 | C103: Common Equity | E103: 0.4 | I103: =$I107*E103 -> 26194244.18 | K103: 0.0898 | O103: =K103*I103 -> 2352243.128
A104: 5 | C104: Preferred Shares | E104: 0 | I104: =$I$30*E104 -> 0 | O104: =K104*I104 -> 0
A105: 6 | C105: Total Equity | E105: =SUM(E103:E104) -> 0.4 | I105: =SUM(I103:I104) -> 26194244.18 | K105: =IF(E105=0,0,SUMPRODUCT(E103:E104,K103:K104)/E105) -> 0.0898 | O105: =SUM(O103:O104) -> 2352243.128
A107: 7 | C107: Total | E107: 1 | I107: 65485610.46 | K107: =(K100*E100)+(K105*E105) -> 0.05975914486 | O107: =O100+O105 -> 3913364.082

Sheet App.2-OB_Debt Instruments
J1: File Number: | K1: ='LDC Info'!$E$18 -> EB-2012-0160
J2: Exhibit: | K2: 5
J3: Tab: | K3: 1
J4: Schedule: | K4: 3
J5: Page:
J7: Date:
A10: Appendix 2-OB
A11: Debt Instruments
D15: Year | E15: 2009
A17: Row | B17: Description | C17: Lender | D17: Affiliated or Third-Party Debt? | E17: Fixed or Variable-Rate? | F17: Start Date | G17: Term (years) | H17: Principal ($) | I17: Rate (%) (Note 2) | J17: Interest ($) (Note 1) | P17: Notes
A18: 1 | B18: Demand Loan | C18: City of Peterborough | D18: Affiliated | E18: Variable Rate | F18: 2000-01-01 | H18: 1500000 | I18: 0.01 | J18: =H18*I18 -> 15000
A19: 2 | B19: Demand Loan | C19: City of Peterborough Holdings | D19: Affiliated | E19: Fixed Rate | F19: 2000-01-01 | H19: 21657680 | I19: 0.0762 | J19: =H19*I19 -> 1650315.216 | P19: 1 | Q19: If financing is in place only part of the year, calculate the pro-rated interest and input in the cell.
A20: 3 | B20: Term Loan | C20: Toronto Dominion Bank | D20: Third-Party | E20: Fixed Rate | F20: 2008-12-24 | G20: 10 | H20: 6285904 | I20: 0.0455 | J20: 286008.632 | P20: 2 | Q20: Input actual or deemed long-term debt rate in accordance with the guidelines in The Report of the Board on the Cost of Capital for Ontario's Regulated Utilities, issued December 11, 2009
A21: 4 | B21: Term Loan | C21: Toronto Dominion Bank | D21: Third-Party | E21: Fixed Rate | F21: 2009-12-22 | G21: 10 | H21: 10000000 | I21: 0.0536 | J21: 536000 | P21: 3 | Q21: Add more lines above row 12 if necessary.
A22: =+A21+1 -> 5 | J22: 0
A24: Total | H24: =SUM(H18:H22) -> 39443584 | I24: =IF(H24=0,"",J24/H24) -> 0.06306029006 | J24: =SUM(J18:J22) -> 2487323.848
D28: Year | E28: 2010
A30: Row | B30: Description | C30: Lender | D30: Affiliated or Third-Party Debt? | E30: Fixed or Variable-Rate? | F30: Start Date | G30: Term (years) | H30: Principal ($) | I30: Rate (%) (Note 2) | J30: Interest ($) (Note 1)
A31: 1 | B31: Demand Loan | C31: City of Peterborough | D31: Affiliated | E31: Variable Rate | F31: 2000-01-01 | H31: 1500000 | I31: 0.0175 | J31: =H31*I31 -> 26250
A32: 2 | B32: Demand Loan | C32: City of Peterborough Holdings | D32: Affiliated | E32: Fixed Rate | F32: 2000-01-01 | H32: 21657680 | I32: 0.0587 | J32: =H32*I32 -> 1271305.816
A33: 3 | B33: Term Loan | C33: Toronto Dominion Bank | D33: Third-Party | E33: Fixed Rate | F33: 2008-12-24 | G33: 10 | H33: 5957214 | I33: 0.0455 | J33: 271053.237
A34: 4 | B34: Term Loan | C34: Toronto Dominion Bank | D34: Third-Party | E34: Fixed Rate | F34: 2009-12-22 | G34: 10 | H34: 9553529 | I34: 0.0536 | J34: 512069.1544
A35: =+A34+1 -> 5 | J35: 0
A37: Total | H37: =SUM(H31:H35) -> 38668423 | I37: =IF(H37=0,"",J37/H37) -> 0.0538081992 | J37: =SUM(J31:J35) -> 2080678.207
D40: Year | E40: 2011
A42: Row | B42: Description | C42: Lender | D42: Affiliated or Third-Party Debt? | E42: Fixed or Variable-Rate? | F42: Start Date | G42: Term (years) | H42: Principal ($) | I42: Rate (%) (Note 2) | J42: Interest ($) (Note 1)
A43: 1 | B43: Demand Loan | C43: City of Peterborough | D43: Affiliated | E43: Variable Rate | F43: 2000-01-01 | H43: 1500000 | I43: 0.0175 | J43: =H43*I43 -> 26250
A44: 2 | B44: Demand Loan | C44: City of Peterborough Holdings | D44: Affiliated | E44: Fixed Rate | F44: 2000-01-01 | H44: 21657680 | I44: 0.0532 | J44: =H44*I44 -> 1152188.576
A45: 3 | B45: Term Loan | C45: Toronto Dominion Bank | D45: Third-Party | E45: Fixed Rate | F45: 2008-12-24 | G45: 10 | H45: 5613253 | I45: 0.0455 | J45: 255403.0115
A46: 4 | B46: Term Loan | C46: Toronto Dominion Bank | D46: Third-Party | E46: Fixed Rate | F46: 2009-12-22 | G46: 10 | H46: 9082531 | I46: 0.0536 | J46: 486823.6616
A47: =+A46+1 -> 5 | J47: 0
A49: Total | H49: =SUM(H43:H47) -> 37853464 | I49: =IF(H49=0,"",J49/H49) -> 0.05073948448 | J49: =SUM(J43:J47) -> 1920665.249
D52: Year | E52: 2012
A54: Row | B54: Description | C54: Lender | D54: Affiliated or Third-Party Debt? | E54: Fixed or Variable-Rate? | F54: Start Date | G54: Term (years) | H54: Principal ($) | I54: Rate (%) (Note 2) | J54: Interest ($) (Note 1)
A55: 1 | B55: Demand Loan | C55: City of Peterborough | D55: Affiliated | E55: Variable Rate | F55: 2000-01-01 | H55: 1500000 | I55: 0.0175 | J55: =H55*I55 -> 26250
A56: 2 | B56: Demand Loan | C56: City of Peterborough Holdings | D56: Affiliated | E56: Fixed Rate | F56: 2000-01-01 | H56: 3657680 | I56: 0.0441 | J56: =H56*I56 -> 161303.688
A57: 3 | B57: Term Loan | C57: Toronto Dominion Bank | D57: Third-Party | E57: Variable Rate | F57: 2012-12-20 | G57: 3 | H57: 18000000 | I57: 0.0441 | J57: 793800
A58: 4 | B58: Term Loan | C58: Toronto Dominion Bank | D58: Third-Party | E58: Fixed Rate | F58: 2008-12-24 | G58: 10 | H58: 5253311 | I58: 0.0455 | J58: =H58*I58 -> 239025.6505
A59: =+A58+1 -> 5 | B59: Term Loan | C59: Toronto Dominion Bank | D59: Third-Party | E59: Fixed Rate | F59: 2009-12-22 | G59: 10 | H59: 8585658 | I59: 0.0536 | J59: 460191.2688
A61: Total | H61: =SUM(H55:H59) -> 36996649 | I61: =IF(H61=0,"",J61/H61) -> 0.04542494125 | J61: =SUM(J55:J59) -> 1680570.607
D66: Year | E66: 2013
A68: Row | B68: Description | C68: Lender | D68: Affiliated or Third-Party Debt? | E68: Fixed or Variable-Rate? | F68: Start Date | G68: Term (years) | H68: Principal ($) | I68: Rate (%) (Note 2) | J68: Interest ($) (Note 1)
A69: 1 | B69: Demand Loan | C69: City of Peterborough | D69: Affiliated | E69: Variable Rate | F69: 2000-01-01 | H69: 1500000 | I69: 0.0175 | J69: =H69*I69 -> 26250
A70: 2 | B70: Term Loan | C70: Toronto Dominion Bank | D70: Third-Party | E70: Variable Rate | F70: 2012-12-20 | G70: 30 | H70: 20995918 | I70: 0.03695 | J70: =H70*I70 -> 775799.1701
A71: 3 | B71: Term Loan | C71: Toronto Dominion Bank | D71: Third-Party | E71: Fixed Rate | F71: 2008-12-24 | G71: 10 | H71: 4876645 | I71: 0.0455 | J71: 221887.3475
A72: =+A71+1 -> 4 | B72: Term Loan | C72: Toronto Dominion Bank | D72: Third-Party | E72: Fixed Rate | F72: 2009-12-22 | G72: 10 | H72: 8061489 | I72: 0.0536 | J72: 432095.8104
A74: Total | H74: =SUM(H69:H72) -> 35434052 | I74: =IF(H74=0,"",J74/H74) -> 0.04109133011 | J74: =SUM(J69:J72) -> 1456032.328
H76: =+H74-H69 -> 33934052

Sheet App.2-P_Cost_Allocation
E1: File Number: | F1: ='LDC Info'!$E$18 -> EB-2012-0160
E2: Exhibit: | F2: 7
E3: Tab: | F3: 1
E4: Schedule: | F4: 2
E5: Page:
E7: Date:
A9: Appendix 2-P
A10: Cost Allocation
A12: Please complete the following four tables.
A14: A) Allocated Costs
A16: Classes | B16: Costs Allocated from Previous Study | C16: % | D16: Costs Allocated in Test Year Study (Column 7A) | E16: %
A17: Residential | B17: 7560833.036 | C17: =IF(B$28=0,"",B17/B$28) -> 0.5519706168 | D17: 9855524.467 | E17: =IF(D$28=0,"",D17/D$28) -> 0.6401987433
A18: GS < 50 kW | B18: 2308443.72 | C18: =IF(B$28=0,"",B18/B$28) -> 0.1685254916 | D18: 2278046.669 | E18: 0.1479781842
A19: GS > 50 kW (or 50 kW < GS < xxx kW, if applicable) | B19: 2419352.259 | C19: 0.1766222521 | D19: 2488517.496 | E19: 0.1616500247
A20: GS > xxx kW, if applicable | C20: 0 | E20: 0
A21: Large User, if applicable | B21: 262707.9453 | C21: 0.01917871562 | D21: 248486.6295 | E21: 0.01614128487
A22: Street Lighting | B22: 711182.681 | C22: 0.05191913923 | D22: 450205.5928 | E22: 0.02924461866
A23: Sentinel Lighting | B23: 64016.49978 | C23: 0.00467345684 | D23: 26355.00303 | E23: 0.001711977874
A24: Unmetered Scattered Load (USL) | B24: 371354.3013 | C24: 0.02711032789 | D24: 47340.57515 | E24: 0.003075166301
A25: Other class, if applicable | C25: 0 | E25: 0
C26: 0 | E26: 0
A27: Embedded distributor class | C27: 0 | E27: 0
A28: Total | B28: =SUM(B17:B27) -> 13697890.44 | C28: =SUM(C17:C27) -> 1 | D28: =SUM(D17:D27) -> 15394476.43 | E28: =SUM(E17:E27) -> 1
A30: Notes
A32: 1 Customer Classification - If proposed rate classes differ from those in place in the previous Cost Allocation study, modify the rate classes to match the current application as closely as possible.
A35: 2 Host Distributors - Provide information on embedded distributor(s) as a separate class, if applicable. If embedded distributor(s) are billed as customers in a General Service class, include the allocated cost and revenue of the embedded distributor(s) in the applicable class. Also complete Appendix 2-Q.
A39: 3 Class Revenue Requirements - If using the Board-issued model, in column 7A enter the results from Worksheet O-1, Revenue Requirement (row 40 in the 2013 model). This excludes costs in deferral and variance accounts. Note to Embedded Distributor(s), it also does not include Account 4750 - Low Voltage (LV) Costs.
A43: B) Calculated Class Revenues
C45: Column 7B | D45: Column 7C | E45: Column 7D | F45: Column 7E
A46: Classes (same as previous table) | C46: Load Forecast (LF) X current approved rates | D46: L.F. X current approved rates X (1 + d) | E46: LF X proposed rates | F46: Miscellaneous Revenue
A48: =A17 -> Residential | C48: 7966779.79 | D48: 7754344.426 | E48: 8218408.771 | F48: 921198.0271
A49: GS < 50 kW | C49: 2286361.069 | D49: 2225394.912 | E49: 2225394.912 | F49: 170462.7575
A50: GS > 50 kW (or 50 kW < GS < xxx kW, if applicable) | C50: 3117702.143 | D50: 3034568.153 | E50: 2822991.599 | F50: 163229.8705
A51: GS > xxx kW, if applicable
A52: Large User, if applicable | C52: 235898.5059 | D52: 229608.2372 | E52: 229608.2372 | F52: 19830.20118
A53: Street Lighting | C53: 506843.6677 | D53: 493328.6061 | E53: 493328.6061 | F53: 41589.23173
A54: Sentinel Lighting | C54: 51979.00948 | D54: 50592.98149 | E54: 29085.57139 | F54: 2540.432245
A55: Unmetered Scattered Load (USL) | C55: 292196.5829 | D55: 284405.1177 | E55: 53425.21048 | F55: 3383.479701
A56: Other class, if applicable
A58: =A27 -> Embedded distributor class
A59: =A28 -> Total | C59: =SUM(C48:C58) -> 14457760.77 | D59: =SUM(D48:D58) -> 14072242.43 | E59: =SUM(E48:E58)-1 -> 14072241.91 | F59: =SUM(F48:F58) -> 1322234
A61: Notes:
A63: 1 Columns 7B to 7D - LF means Load Forecast of Annual Billing Quantities (i.e. customers or connections X 12, (kWh or kW, as applicable). Revenue Quantities should be net of Transfomrer Ownership Allowance. Exclude revenue from rate adders and rate riders.
A66: 2 Columns 7C and 7D - Column total in each column should equal the Base Revenue Requirement
A68: 3 Columns 7C - The Board cost allocation model calculates "1+d" in worksheet O-1, cell C21. "d" is defined as Revenue Deficiency/ Revenue at Current Rates.
A71: 4 Columns 7E - If using the Board-issued Cost Allocation model, enter Miscellaneous Revenue as it appears in Worksheet O-1, row 19.
A74: C) Rebalancing Revenue-to-Cost (R/C) Ratios
A76: Class | C76: Previously Approved Ratios | D76: Status Quo Ratios | E76: Proposed Ratios | F76: Policy Range
C77: Most Recent Year: | D77: (7C + 7E) / (7A) | E77: (7D + 7E) / (7A)
C78: 2009
C79: % | D79: % | E79: % | F79: %
A80: =A48 -> Residential | C80: 103.35 | D80: =IF(D17=0,"",(D48+F48)/D17*100) -> 88.02720222 | E80: =IF(D17=0,"",(E48+F48)/D17*100) -> 92.73587447 | F80: 85 - 115
A81: GS < 50 kW | C81: 100.6 | D81: =IF(D18=0,"",(D49+F49)/D18*100) -> 105.1715798 | E81: 105.1715798 | F81: 80 - 120
A82: GS > 50 kW (or 50 kW < GS < xxx kW, if applicable) | C82: 103.35 | D82: 128.5021314 | E82: 120.0000191 | F82: 80 - 120
A83: GS > xxx kW, if applicable | F83: 80 - 120
A84: Large User, if applicable | C84: 85 | D84: 100.3830423 | E84: 100.3830423 | F84: 85 - 115
A85: Street Lighting | C85: 70 | D85: 118.8163467 | E85: 118.8163467 | F85: 70 - 120
A86: Sentinel Lighting | C86: 70 | D86: 201.6065552 | E86: 120 | F86: 80 - 120
A87: Unmetered Scattered Load (USL) | C87: 80 | D87: 607.911071 | E87: 120 | F87: 80 - 120
A88: Other class, if applicable
A90: =A58 -> Embedded distributor class
A92: Notes
A94: 1 Previously Approved Revenue-to-Cost Ratios - For most applicants, Most Recent Year would be the third year of the IRM 3 period, e.g. if the applicant rebased in 2009 with further adjustments over 2 years, the Most recent year is 2011. For applicants that have had rates adjusted only under IRM 2, the Most Recent Year is 2006, and the applicant should enter the ratios from their Informational Filing.
A97: 2 Status Quo Ratios - The Board's updated Cost Allocation Model yields the Status Quo Ratios in Worksheet O-1. Status Quo means "Before Rebalancing".
A99: D) Proposed Revenue-to-Cost Ratios
A101: Class | C101: Proposed Revenue-to-Cost Ratios | F101: Policy Range
C102: 2013 | D102: 2014 | E102: 2015
C103: % | D103: % | E103: % | F103: %
A104: =A80 -> Residential | C104: =E80 -> 92.73587447 | D104: =C104 -> 92.73587447 | E104: 92.73587447 | F104: =F80 -> 85 - 115
A105: =A81 -> GS < 50 kW | C105: =E81 -> 105.1715798 | D105: 105.1715798 | E105: 105.1715798 | F105: =F81 -> 80 - 120
A106: GS > 50 kW (or 50 kW < GS < xxx kW, if applicable) | C106: 120.0000191 | D106: 120.0000191 | E106: 120.0000191 | F106: 80 - 120
A107: GS > xxx kW, if applicable | F107: 80 - 120
A108: Large User, if applicable | C108: 100.3830423 | D108: =C108 -> 100.3830423 | E108: 100.3830423 | F108: 85 - 115
A109: Street Lighting | C109: 118.8163467 | D109: 118.8163467 | E109: 118.8163467 | F109: 70 - 120
A110: Sentinel Lighting | C110: 120 | D110: 120 | E110: 120 | F110: 80 - 120
A111: Unmetered Scattered Load (USL) | C111: 120 | D111: 120 | E111: 120 | F111: 80 - 120
A112: Other class, if applicable | F112: =F88 -> 0
F113: =F89 -> 0
A114: Embedded distributor class
A116: Note
A117: 1 The applicant should complete Table D if it is applying for approval of a revenue to cost ratio in 2012 that is outside the Board’s policy range for any customer class. Table (d) will show the information that the distributor would likely enter in the IRM model) in 2013. In 2013 Table (d), enter the planned ratios for the classes that will be ‘Change’ and ‘No Change’ in 2013 (in the current Revenue Cost Ratio Adjustment Workform, Worksheet C1.1 ‘Decision – Cost Revenue Adjustment’, column d), and enter TBD for class(es) that will be entered as ‘Rebalance’.

Sheet App.2-Q_Cost of Serv. Emb. Dx
F1: File Number: | G1: ='LDC Info'!$E$18 -> EB-2012-0160
F2: Exhibit:
F3: Tab:
F4: Schedule:
F5: Page:
F7: Date:
A9: Appendix 2-Q
A10: Cost of Serving Embedded Distributor(s)
A12: To be completed by Host Distributors*
A13: (Not required if Host Distributor has an Embedded Distributor rate class, i.e. a separate row in Appendix 2-P.)
A17: Proposed Rate Class for Billing Embedded Distributor(s)
A19: Host's Distribution Facilities used by Embedded Distributor(s)
A21: (1) | B21: (2) | C21: (3) | D21: (4) | E21: (5) | F21: (6) = '(3) + (4)
A22: Asset Class | B22: Total OM&A costs asociated with asset class | C22: Original cost of asset class | D22: Accumulated amortization of asset class | E22: Annual amortization of asset class | F22: Net Book Value of asset class
A23: Totals for Host Distributor: | B23: ($) | C23: ($) | D23: ($) | E23: ($)
A24: Distribution Stations | F24: =C24+D24 -> 0
A25: Low Voltage Line | F25: 0
A26: LV Line category # 2 (if applcable) | F26: 0
A27: TS (owned by host) | F27: 0
A28: add rows if necessary... | F28: 0
F29: 0
F30: 0
A32: (1) | B32: (7) | C32: (8) | D32: (9) | E32: (10) | F32: (11)
A33: =A22 -> Asset Class | B33: Total line length or station capacity in asset class | C33: Line length or capacity required to provide LV service to Embedded Distributor(s) | D33: Annual total demand on station/line providing LV services (sum of 12 monthly peaks) | E33: Annual billed Embedded Distributor demand on station/line providing LV services | F33: Embedded Distributor(s)' Responsibility Share
A34: Embedded Distributor's share: | B34: kW or kVa; km | C34: kW or kVA; km | D34: kW or kVA | E34: kW or kVA | F34: percent
A35: Distribution Stations | F35: =IF(D35=0,0,(C35/B35)*(E35/D35)) -> 0
A36: Low Voltage Line | F36: =IF(D36=0,0,(C36/B36)*(E36/D36)) -> 0
A37: LV Line # 2 (if applicable) | F37: =IF(D37=0,0,(C37/B37)*(E37/D37)) -> 0
A38: TS (owned by host) | F38: =IF(D38=0,0,(C38/B38)*(E38/D38)) -> 0
A39: add rows if necessary | F39: =IF(D39=0,0,(C39/B39)*(E39/D39)) -> 0
A41: (1) | B41: (12) | C41: (12a) | D41: (13) | E41: (14) | F41: (15) | G41: (16)
A42: =A33 -> Asset Class | B42: Return on Assets used to Provide LV services | C42: Taxes/PILs | D42: Annual amortization on assets used to provide LV services | E42: OM&A costs with burden associated with assets used to provide LV services | F42: Total annual cost associated with assets used to provide LV services | G42: Monthly cost associated with the delivery of LV services
B43: ($) | C43: ($) | D43: ($) | E43: ($) | F43: ($) | G43: $/kW or $/kVA
A44: Distribution Stations | B44: =E$55*(F24+B24*E$60)*F35 -> 0 | C44: =(B44-(B$55*C$55*F35*(F24+B24*E58)+B$56*C$56*F35*(F24+B24*E$58)))*E$58/(1-E$58) -> 0 | D44: =E24*F35 -> 0 | E44: =B24*F35 -> 0 | F44: =SUM(B44:E44) -> 0 | G44: =IF(E35=0,0,(D44/E35)) -> 0
A45: Low Voltage Line | B45: =E$55*(F25+B25*E$60)*F36 -> 0 | C45: =(B45-(B$55*C$55*F36*(F25+B25*E59)+B$56*C$56*F36*(F25+B25*E59)))*E$58/(1-E$58) -> 0 | D45: =E25*F36 -> 0 | E45: =B25*F36 -> 0 | F45: =SUM(B45:E45) -> 0 | G45: =IF(E36=0,0,(D45/E36)) -> 0
A46: LV Line # 2 (if applicable) | B46: =E$55*(F26+B26*E$60)*F37 -> 0 | C46: =(B46-(B$55*C$55*F37*(F26+B26*E60)+B$56*C$56*F37*(F26+B26*E$60)))*E$58/(1-E$58) -> 0 | D46: =E26*F37 -> 0 | E46: =B26*F37 -> 0 | F46: =SUM(B46:E46) -> 0 | G46: =IF(E37=0,0,(D46/E37)) -> 0
A47: TS (owned by host) | B47: =E$55*(F27+B27*E$60)*F38 -> 0 | C47: =(B47-(B$55*C$55*F38*(F27+B27*E61)+B$56*C$56*F38*(F27+B27*E61)))*E$58/(1-E$58) -> 0 | D47: =E27*F38 -> 0 | E47: =B27*F38 -> 0 | F47: =SUM(B47:E47) -> 0 | G47: =IF(E38=0,0,(D47/E38)) -> 0
A48: add rows if necessary | B48: =E$55*(F28+B28*E$60)*F39 -> 0 | C48: =(B48-(B$55*C$55*F39*(F28+B28*I62)+B$56*C$56*F39*(F28+B28*I62)))*E$58/(1-E$58) -> 0 | D48: =E28*F39 -> 0 | E48: =B28*F39 -> 0 | F48: =SUM(B48:E48) -> 0 | G48: =IF(E39=0,0,(D48/E39)) -> 0
A50: Total | F50: =SUM(F44:F48) -> 0 | G50: =SUM(G44:G48) -> 0
A52: (17) | B52: (18) | C52: (19) | D52: (20) | E52: (21)
B53: Capital Structure | C53: Cost Rate
B54: (%) | C54: (%) | E54: (%)
A55: Long-Term Debt | D55: Weighted Average Cost of Capital | E55: =IF(B61=0%,0,SUMPRODUCT(B55:B59,C55:C59)/B61) -> 0
A56: Short-term Debt
A58: Common Equity | D58: Tax/PILs Rate
A59: Preferred Shares
D60: Working Capital Allowance Factor
A61: Total | B61: =SUM(B55:B59) -> 0

Sheet App.2-R_Loss Factors
G1: File Number: | H1: ='LDC Info'!$E$18 -> EB-2012-0160
G2: Exhibit: | H2: 8
G3: Tab: | H3: 1
G4: Schedule: | H4: 1
G5: Page:
G7: Date:
A9: Appendix 2-R
A10: Loss Factors
C14: Historical Years | H14: 5-Year Average
C15: =IF(ISBLANK('LDC Info'!E26-5), "Year 5", 'LDC Info'!E26-5) -> 2007 | D15: =IF(ISBLANK('LDC Info'!E26-4), "Year 5", 'LDC Info'!E26-4) -> 2008 | E15: =IF(ISBLANK('LDC Info'!E26-3), "Year 5", 'LDC Info'!E26-3) -> 2009 | F15: =IF(ISBLANK('LDC Info'!E26-2), "Year 5", 'LDC Info'!E26-2) -> 2010 | G15: =IF(ISBLANK('LDC Info'!E26-1), "Year 5", 'LDC Info'!E26-1) -> 2011 | J15: 2012
B16: Losses Within Distributor's System
A17: A(1) | B17: "Wholesale" kWh delivered to distributor (higher value) | C17: 863940494 | D17: 854066751 | E17: 840014481 | F17: 843920476 | G17: 854625841 | H17: =IF(SUM(C17:G17)=0,0,AVERAGE(C17:G17)) -> 851313608.6 | J17: 839838122.7
A18: A(2) | B18: "Wholesale" kWh delivered to distributor (lower value) | C18: 857671135 | D18: 847751263 | E18: 834047120 | F18: 838079589 | G18: 848819148 | H18: =IF(SUM(C18:G18)=0,0,AVERAGE(C18:G18)) -> 845273651 | J18: 834306527.1
A19: B | B19: Portion of "Wholesale" kWh delivered to distributor for its Large Use Customer(s) | C19: =ROUND((C22*1.01),0) -> 63853311 | D19: =ROUND((D22*1.01),0) -> 64021341 | E19: 58877967 | F19: 57313602 | G19: 56803289 | H19: =IF(SUM(C19:G19)=0,0,AVERAGE(C19:G19)) -> 60173902 | J19: =ROUND((J22*1.01),0) -> 53563883
A20: C | B20: Net "Wholesale" kWh delivered to distributor = A(2) - B | C20: =C18-C19 -> 793817824 | D20: 783729922 | E20: 775169153 | F20: 780765987 | G20: 792015859 | H20: 785099749 | J20: =J18-J19 -> 780742644.1
A21: D | B21: "Retail" kWh delivered by distributor | C21: 820201486 | D21: 819538762 | E21: 791578450 | F21: 801058085 | G21: 813602220 | H21: =IF(SUM(C21:G21)=0,0,AVERAGE(C21:G21)) -> 809195800.6 | J21: 795821240.2
A22: E | B22: Portion of "Retail" kWh delivered by distributor to its Large Use Customer(s) | C22: 63221100 | D22: 63387466 | E22: 58295017 | F22: 56746141 | G22: 56240880 | H22: =IF(SUM(C22:G22)=0,0,AVERAGE(C22:G22)) -> 59578120.8 | J22: 53033548
A23: F | B23: Net "Retail" kWh delivered by distributor = D - E | C23: =C21-C22 -> 756980386 | D23: 756151296 | E23: 733283433 | F23: 744311944 | G23: 757361340 | H23: 749617679.8 | J23: =J21-J22 -> 742787692.2
A24: G | B24: Loss Factor in Distributor's system = C / F | C24: =IF(C23=0,"",C20/C23) -> 1.048663662 | D24: 1.036472365 | E24: 1.057120778 | F24: 1.048976835 | G24: 1.045756916 | H24: 1.047333554 | J24: =IF(J23=0,"",J20/J23) -> 1.051097982
B25: Losses Upstream of Distributor's System
A26: H | B26: Supply Facilities Loss Factor | C26: 1.00731 | D26: 1.00745 | E26: 1.007154 | F26: 1.006969 | G26: 1.006841 | H26: =IF(SUM(C26:G26)=0,0,AVERAGE(C26:G26)) -> 1.0071448 | J26: 1.00663
B27: Total Losses
A28: I | B28: Total Loss Factor = G x H | C28: =IF(C24="","",C24*C26) -> 1.056329394 | D28: 1.044194084 | E28: 1.06468342 | F28: 1.056287154 | G28: 1.052910939 | H28: 1.054816543 | J28: 1.058066761
A30: Notes
A33: A(1) | B33: If directly connected to the IESO-controlled grid, kWh pertains to the virtual meter on the primary or high voltage side of the transformer at the interface with the transmission grid. This corresponds to the "With Losses" kWh value provided by the IESO's MV-WEB. It is the higher of the two values provided by MV-WEB.
B37: If fully embedded within a host distributor, kWh pertains to the virtual meter on the primary or high voltage side of the transformer, at the interface between the host distributor and the transmission grid. For example, if the host distributor is Hydro One Networks Inc., kWh from the Hydro One Networks' invoice corresponding to "Total kWh w Losses" should be reported. This corresponds to the higher of the two kWh values provided in Hydro One Networks' invoice.
B42: If partially embedded, kWh pertains to the sum of the above.
A44: A(2) | B44: If directly connected to the IESO-controlled grid, kWh pertains to a metering installation on the secondary or low voltage side of the transformer at the interface with the transmission grid. This corresponds to the "Without Losses" kWh value provided by the IESO's MV-WEB. It is the lower of the two kWh values provided by MV-WEB.
B48: If fully embedded with the host distributor, kWh pertains to an actual or virtual meter at the interface between the embedded distributor and the host distributor. For example, if the host distributor is Hydro One Networks Inc., kWh from the Hydro One Networks' invoice corresponding to "Total kWh" should be reported. This corresponds to the lower of the two kWh values provided in Hydro One Networks' invoice.
B53: If partially embedded, kWh pertains to the sum of the above.
B55: Additionally, kWh pertaining to distributed generation directly connected to the distributor's own distribution network should be included in A(2).
A58: B | B58: If a Large Use Customer is metered on the secondary or low voltage side of the transformer, the default loss is 1% (i.e., B = 1.01 X E).
A61: D | B61: kWh corresponding to D should equal metered or estimated kWh at the customer’s delivery point.
A64: G and I | B64: These loss factors pertain to secondary-metered customers with demand less than 5,000 kW.
A66: H | B66: If directly connected to the IESO-controlled grid, SFLF = 1.0045.
B68: If fully embedded within a host distributor, SFLF = loss factor re losses in transformer at grid interface X loss factor re losses in host distributor's system. If the host distributor is Hydro One Networks Inc., SFLF = 1.0060 X 1.0278 = 1.0340. If partially embedded, SFLF should be calculated as the weighted average of above.
B72: Distributors that wish to propose a different SFLF should provide appropriate justification for any such proposal including supporting
B73: calculations and any other relevant material.

Sheet App.2-S_Stranded Meters
G1: File Number: | H1: ='LDC Info'!$E$18 -> EB-2012-0160
G2: Exhibit: | H2: 9
G3: Tab: | H3: 2
G4: Schedule: | H4: 1
G5: Page:
G7: Date:
A9: Appendix 2-S
A10: Stranded Meter Treatment
A12: Year | B12: Notes | C12: Gross Asset Value | D12: Accumulated Amortization | E12: Contributed Capital (Net of Amortization) | F12: Net Asset | G12: Proceeds on Disposition | H12: Residual Net Book Value
C13: (A) | D13: (B) | E13: (C) | F13: (D ) = (A) - (B) - (C) | G13: (E) | H13: (F) = (D) - (E)
A14: 2006 | F14: =C14-D14-E14 -> 0 | H14: =F14-G14 -> 0
A15: 2007 | F15: 0 | H15: 0
A16: 2008 | F16: 0 | H16: 0
A17: 2009 | C17: 1679841 | D17: =737749+116402 -> 854151 | F17: 825690 | G17: 5089 | H17: 820601
A18: 2010 | C18: =1380993+1679841 -> 3060834 | D18: =273974+854151+157326 -> 1285451 | E18: 42633 | F18: 1732750 | G18: =5089+846 -> 5935 | H18: 1726815
A19: 2011 | C19: =C18 -> 3060834 | D19: =D18+157326 -> 1442777 | E19: =E18 -> 42633 | F19: 1575424 | G19: =G18 -> 5935 | H19: 1569489
A20: 2012 | B20: (1) | C20: =C19 -> 3060834 | D20: =D19+157326 -> 1600103 | E20: =E19 -> 42633 | F20: 1418098 | G20: =G19 -> 5935 | H20: 1412163
A22: Notes:
A24: (1) | B24: For 2012, please indicate whether the amounts provided are on a forecast or actual basis.
A26: Some distributors have transferred the cost of stranded meters from Account 1860 - Meters to "Sub-account Stranded Meter Costs of Account 1555", while in some cases distributors have left these costs in Account 1860. Depending on which treatment the applicant has chosen. please provide the information under either of the two scenarios (A and B below), as applicable.
A31: Scenario A: If the stranded meter costs were transferred to "Sub-account Stranded Meter Costs" of Account 1555, the above table should be completed and the following information should be provided.
A34: 1 | B34: A description of the accounting treatment followed by the applicant on stranded meter costs for financial accounting and reporting purposes.
A37: 2 | B37: The amount of the pooled residual net book value of the removed from service stranded meters, less any contributed capital (net of accumulated amortization), and less any net proceeds from sales, which were transferred to this sub-account as of December 31, 2010.
A41: 3 | B41: A statement as to whether or not, since transferring the removed stranded meter costs to the sub-account, the recording of depreciation expenses was continued in order to reduce the net book value through accumulated depreciation. If so, the total depreciation expense amount for the period from the time the costs for the stranded meters were transferred to the sub-account to December 31, 2010 should be provided.
B46: If no depreciation expenses were recorded to reduce the net book value of stranded meter costs through accumulated depreciation, the total depreciation expense amount that would have been applicable from the time that the stranded meter costs were transferred to the sub-account of Account 1555 to December 31, 2010 should be provided. In addition, the following information should be provided:
B51: a) | C51: Whether or not carrying charges were recorded for the stranded meter cost balances in the sub-account, and if so, the total carrying charges recorded to December 31, 2010.
B54: b) | C54: The estimated amount of the pooled residual net book value of the removed from service meters, less any net proceeds from sales and contributed capital, at the time when the smart meters will have been fully deployed (e.g., as of December 31, 2010). If the smart meters have been fully deployed, the actual amount should be provided.
B59: c) | C59: A description as to how the applicant intends to recover in rates the remaining costs for stranded meters, including the proposed accounting treatment, the proposed disposition period, and the associated bill impacts.
A63: Scenario B: If the stranded meter costs remained recorded in Account 1860, the above table should be completed and the following information should be provided:
A66: 1 | B66: A description of the accounting treatment followed by the applicant on stranded meter costs for financial accounting and reporting purposes.
A69: 2 | B69: The amount of the pooled residual net book value of the removed from service stranded meters, less any contributed capital (net of accumulated amortization), and less any net proceeds from sales, as of December 31, 2010.
A73: 3 | B73: A statement as to whether or not the recording of depreciation expenses continued in order to reduce the net book value through accumulated depreciation. If so, provision of the total (cumulative) depreciation expense for the period from the time that the meters became stranded to December 31, 2010.
A77: 4 | B77: If no depreciation expenses were recorded to reduce the net book value of stranded meters through accumulated depreciation, the total (cumulative) depreciation expense amount that would have been applicable for the period from the time that the meters became stranded to December 31, 2010.
A81: 5 | B81: The estimated amount of the pooled residual net book value of the removed from service meters, less any net proceeds from sales and contributed capital, at the time when smart meters will have been fully deployed. If the smart meters have been fully deployed, please provide the actual amount.
A85: 6 | B85: A description as to how the applicant intends to recover in rates the costs for stranded meters, including the proposed accounting treatment, the proposed disposition period and the associated bill impacts.
A88: Distributors should also provide the Net Book Value per class of meter as of December 31, 2010 as well as the number of meters that were removed / stranded. In preparing this information, distributors should review the Board's letter of January 16, 2007 Stranded Meter Costs Related to the Installation of Smart Meters which stated that records were to be kept of the type and number of each meter to support the stranded meter costs.

Sheet App.2-T_1592_Tax_Variance
D1: File Number: | F1: ='LDC Info'!$E$18 -> EB-2012-0160
D2: Exhibit: | F2: 9
D3: Tab: | F3: 1
D4: Schedule: | F4: 4
D5: Page:
D7: Date:
B12: Appendix 2-T
B13: Deferred PILs Account 1592 Balances
B15: The following table should be completed based on the information requested below, in accordance with the notes following the table. An explanation should be provided for any blank entries.
B17: Tax Item | F17: Principal as of
F18: December 31,
F19: 2011
B20: Large Corporation Tax grossed-up proxy from 2006 EDR application PILs model for the period from May 1, 2006 to April 30, 2007 | F20: 0
B21: Large Corporation Tax grossed-up proxy from 2006 EDR application PILs model for the period from January 1, 2006 to April 30, 2006 (4/12ths of the approved grossed-up proxy), if not recorded in PILs account 1562
B22: Ontario Capital Tax rate decrease and increase in capital deduction for 2007
B23: Ontario Capital Tax rate decrease and increase in capital deduction for 2008
B24: Ontario Capital Tax rate decrease and increase in capital deduction for 2009
B25: Ontario Capital Tax rate decrease and increase in capital deduction for 2010
B26: Capital Cost Allowance class changes from 2006 EDR application for 2006
B27: Capital Cost Allowance class changes from 2006 EDR application for 2007
B28: Capital Cost Allowance class changes from 2006 EDR application for 2008
B29: Capital Cost Allowance class changes from 2006 EDR application for 2009
B30: Capital Cost Allowance class changes from 2006 EDR application for 2010
B31: Capital Cost Allowance class changes from 2006 EDR application for 2011
B32: Capital Cost Allowance class changes from any prior application not recorded above. Please provide details and explanation separately.
B33: HST/OVAT Input Tax Credits (ITC's) | F33: -22956
B34: Total | F34: =SUM(F20:F33) -> -22956
B36: Notes:
B38: 1 | C38: Revise the deferral and variance account continuity schedule to include account 1592 as a group 2 account and enter all relevant information for transactions, adjustments, etc., for all relevant years.
B41: 2 | C41: Describe each type of tax item that has been recorded in account 1592.
B43: 3 | C43: Provide the calculations that show how each item was determined and provide any pertinent supporting evidence and documentation.
B46: 4 | C46: Please state whether or not the applicant followed the guidance provided in the FAQ of July 2007. If not, please provide an explanation.
B49: 5 | C49: Identify the account balance as of December 31, 2011 as per the 2011 Audited Financial Statements. Identify the account balance as of December 31, 2011 as per the April 2012 2.1.7 RRR filing to the Board. Provide a reconciliation if the balances provided are not identical to each other and to the total shown on the continuity schedule.
B54: 6 | C54: Complete the above table based on the answers to the previous. Add rows as required to complete the analysis in an informative manner. Please provide the completed table as a working Excel spreadsheet.

Sheet App.2-U_IFRS Transition Costs
J1: File Number: | K1: ='LDC Info'!$E$18 -> EB-2012-0160
J2: Exhibit:
J3: Tab:
J4: Schedule:
J5: Page:
J7: Date:
A9: Appendix 2-U
A10: One-Time Incremental IFRS Transition Costs
A12: The following table should be completed based on the information requested below. An explanation should be provided for any blank entries. The entries should include one-time incremental IFRS transition costs that are currently included in Account 1508, Other Regulatory Assets, sub-account Deferred IFRS Transition Costs Account, or Account 1508, Other Regulatory Assets, sub-account IFRS Transition Costs Variance Account.
A14: Nature of One-Time Incremental IFRS Transition Costs 1 | E14: Audited Actual | F14: Audited Actual | G14: Audited Actual | H14: Audited Carrying | I14: Total Audited | J14: RRR 2.1.7 | K14: Variance 2 | L14: Reasons why the costs recorded meet the criteria of one-time IFRS administrative incremental costs
E15: Costs Incurred | F15: Costs Incurred | G15: Costs Incurred | H15: Charges | I15: Actual Costs | J15: Balance
E16: 2009 | F16: 2010 | G16: 2011 | H16: to Dec 31, 2011 | I16: to Dec 31, 2011 | J16: 2011-12-31
A17: professional accounting fees | I17: =SUM(E17:H17) -> 0
A18: professional legal fees | I18: =SUM(E18:H18) -> 0
A19: salaries, wages and benefits of staff added to support the transition to IFRS | I19: 0
A20: associated staff training and development costs | I20: 0
A21: costs related to system upgrades, or replacements or changes where IFRS was the major reason for conversion | I21: 0
I22: 0
I23: 0
I24: 0
I25: 0
I26: 0
I27: 0
I28: 0
A29: Insert description of additional item(s) and new rows if needed. | I29: 0
A30: Total | E30: =SUM(E17:E29) -> 0 | F30: =SUM(F17:F29) -> 0 | G30: =SUM(G17:G29) -> 0 | H30: =SUM(H17:H29) -> 0 | I30: =SUM(I17:I29) -> 0 | K30: =+I30-J30 -> 0
A33: Note:
A34: 1 | B34: The Deferred IFRS Transition Costs Account and the IFRS Transition Costs Variance Account are exclusively for necessary, incremental transition costs and shall not include ongoing IFRS compliance costs or impacts arising from adopting accounting policy changes that reflect changes in the timing of the recognition of income. The incremental costs in these accounts shall not include costs related to system upgrades, or replacements or changes where IFRS was not the major reason for conversion. In addition, incremental IFRS costs shall not include capital assets or expenditures.
A36: 2 | B36: Applicants are to provide an explanation of material variances in evidence

Sheet App.2-V_Rev_Reconciliation
P1: File Number: | Q1: ='LDC Info'!$E$18 -> EB-2012-0160
P2: Exhibit: | Q2: 8
P3: Tab: | Q3: 1
P4: Schedule: | Q4: 7
P5: Page:
P7: Date:
B9: Appendix 2-V
B10: Revenue Reconciliation
B13: Rate Class | C13: Customers/ Connections | D13: Number of Customers/Connections | G13: Test Year Consumption | I13: Proposed Rates | L13: Revenues at Proposed Rates | N13: Class Specific Revenue Requirement | O13: Transformer Allowance Credit | P13: Total | Q13: Difference
D14: Start of Test Year | E14: End of Test Year | F14: Average | G14: kWh | H14: kW | I14: Monthly Service Charge | J14: Volumetric
J15: kWh | K15: kW
B17: Residential | C17: Customers | D17: 31576 | E17: 31940 | F17: =IF(SUM(D17:E17)=0,0,AVERAGE(D17:E17)) -> 31758 | G17: 295504809 | I17: 12.29 | J17: 0.012 | L17: =I17*F17*12+J17*G17+K17*H17 -> 8229727.548 | N17: 8218408.771 | P17: =SUM(N17:O17) -> 8218408.771 | Q17: =P17-L17 -> -11318.77744
B18: GS < 50 kW | C18: Customers | D18: 3556 | E18: 3538 | F18: 3547 | G18: 112640284 | I18: 29.9 | J18: 0.0085 | L18: 2230106.014 | N18: 2225394.912 | P18: 2225394.912 | Q18: -4711.101879
B19: GS > 50 to 4,999 kW | C19: Customers | D19: 384 | E19: 396 | F19: 390 | H19: 866178 | I19: 152.91 | K19: 2.6063 | L19: 2973138.521 | N19: =2973237.59928024-150246 -> 2822991.599 | O19: 150246 | P19: 2973237.599 | Q19: 99.07788024
B20: Large Use | C20: Customers | D20: 2 | E20: 2 | F20: 2 | H20: 114493 | I20: 6143.49 | K20: 0.7176 | L20: 229603.9368 | N20: 229608.2372 | P20: 229608.2372 | Q20: 4.300419316
B21: Streetlighting | C21: Connections | D21: 8149 | E21: 8151 | F21: 8150 | H21: 14999 | I21: 3.08 | K21: 12.8363 | L21: 493755.6637 | N21: 493328.6061 | P21: 493328.6061 | Q21: -427.0575833
B22: Sentinel Lighting | C22: Connections | D22: 366 | E22: 356 | F22: 148 | H22: 2009 | I22: 11.29 | K22: 4.4976 | L22: 29086.7184 | N22: 29085.57139 | P22: 29085.57139 | Q22: -1.147006786
B23: Unmetered Scattered Load | C23: Connections | D23: 384 | E23: 384 | F23: 384 | G23: 1646137 | I23: 2.03 | J23: 0.0268 | L23: 53470.7116 | N23: 53425.21048 | P23: 53425.21048 | Q23: -45.50112204
B24: Standby Power | F24: 0 | L24: 0 | P24: 0 | Q24: 0
B25: Embedded Distributor Class | F25: 0 | L25: 0 | P25: 0 | Q25: 0
B26: etc. | F26: 0 | L26: 0 | P26: 0 | Q26: 0
F27: 0 | L27: 0 | P27: 0 | Q27: 0
F28: 0 | L28: 0 | P28: 0 | Q28: 0
F29: 0 | L29: 0 | P29: 0 | Q29: 0
B31: Total | L31: =SUM(L17:L29) -> 14238889.11 | N31: =SUM(N17:N29) -> 14072242.91 | O31: =SUM(O17:O29) -> 150246 | P31: =N31+O31 -> 14222488.91 | Q31: =P31-L31 -> -16400.20673
B33: Note
B35: 1 The class specific revenue requirements in column N must be the amounts used in the final rate design process. The total of column N should equate to the proposed base revenue requirement

Sheet App.2-W_Bill Impacts_Res
N1: File Number: | O1: ='LDC Info'!$E$18 -> EB-2012-0160 | T1: 2
N2: Exhibit: | O2: 8
N3: Tab: | O3: Appendix M
N4: Schedule:
N5: Page:
N7: Date:
B10: Appendix 2-W
B11: Bill Impacts
B14: Customer Class: | D14: Residential
D16: Consumption | F16: 800 | G16: kWh
F18: Current Board-Approved | J18: Proposed | N18: Impact
D19: Charge Unit | F19: Rate | G19: Volume | H19: Charge | J19: Rate | K19: Volume | L19: Charge | N19: $ Change | O19: % Change
F20: ($) | H20: ($) | J20: ($) | L20: ($)
B21: Monthly Service Charge | D21: Monthly | F21: 11.91 | G21: 1 | H21: =G21*F21 -> 11.91 | J21: 12.29 | K21: 1 | L21: =K21*J21 -> 12.29 | N21: =L21-H21 -> 0.38 | O21: =IF((H21)=0,"",(N21/H21)) -> 0.03190596138
B22: Smart Meter Rate Adder | D22: Monthly | F22: 1.76 | G22: 1 | H22: =G22*F22 -> 1.76 | K22: 1 | L22: =K22*J22 -> 0 | N22: =L22-H22 -> -1.76 | O22: =IF((H22)=0,"",(N22/H22)) -> -1
B23: Monthly Service Charge Deferral | D23: Monthly | G23: 1 | H23: 0 | J23: 0.19 | K23: 1 | L23: =K23*J23 -> 0.19 | N23: =L23-H23 -> 0.19 | O23: =IF((H23)=0,"",(N23/H23)) -> 
B24: Distribution Volumetric Deferral | D24: per kWh | G24: =$F$16 -> 800 | H24: 0 | J24: 0.0002 | K24: =$F$16 -> 800 | L24: 0.16 | N24: 0.16
B25: Stranded Meter Rate Rider | D25: Monthly | G25: 1 | H25: 0 | J25: 0.85 | K25: 1 | L25: 0.85 | N25: 0.85
G26: 1 | H26: 0 | K26: 1 | L26: 0 | N26: 0
B27: Distribution Volumetric Rate | D27: per kWh | F27: 0.0116 | G27: =$F$16 -> 800 | H27: 9.28 | J27: 0.012 | K27: =$F$16 -> 800 | L27: 9.6 | N27: 0.32 | O27: =IF((H27)=0,"",(N27/H27)) -> 0.03448275862
B28: Smart Meter Disposition Rider | D28: Monthly | F28: 0.37 | G28: 1 | H28: 0.37 | J28: =F28 -> 0.37 | K28: 1 | L28: 0.37 | N28: 0 | O28: 0
B29: LRAM & SSM Rate Rider | D29: per kWh | F29: 0.0016 | G29: =$F$16 -> 800 | H29: 1.28 | J29: 0.0007 | K29: =$F$16 -> 800 | L29: 0.56 | N29: -0.72 | O29: -0.5625
G30: =$F$16 -> 800 | H30: =G30*F30 -> 0 | K30: 800 | L30: =K30*J30 -> 0 | N30: =L30-H30 -> 0 | O30: =IF((H30)=0,"",(N30/H30)) -> 
G31: 800 | H31: 0 | K31: 800 | L31: 0 | N31: 0
G32: 800 | H32: 0 | K32: 800 | L32: 0 | N32: 0
G33: =$F$16 -> 800 | H33: 0 | K33: 800 | L33: 0 | N33: 0
G34: 800 | H34: 0 | K34: 800 | L34: 0 | N34: 0
G35: 800 | H35: 0 | K35: 800 | L35: 0 | N35: 0
G36: 800 | H36: 0 | K36: 800 | L36: 0 | N36: 0
B37: Sub-Total A | H37: =SUM(H21:H36) -> 24.6 | L37: =SUM(L21:L36) -> 24.02 | N37: -0.58 | O37: -0.02357723577
B38: Deferral/Variance Account Disposition Rate Rider | D38: per kWh | F38: =-0.0015 -> -0.0015 | G38: =$F$16 -> 800 | H38: =G38*F38 -> -1.2 | J38: -0.0019 | K38: =$F$16 -> 800 | L38: =K38*J38 -> -1.52 | N38: =L38-H38 -> -0.32 | O38: =IF((H38)=0,"",(N38/H38)) -> 0.2666666667
B39: Tax Change Rate Rider | D39: per kWh | F39: -0.0005 | G39: =$F$16 -> 800 | H39: =G39*F39 -> -0.4 | K39: =$F$16 -> 800 | L39: =K39*J39 -> 0 | N39: =L39-H39 -> 0.4 | O39: =IF((H39)=0,"",(N39/H39)) -> -1
B40: Global Adj Disposition Rider | D40: per kWh | F40: -0.0015 | G40: 800 | H40: -1.2 | K40: 800 | L40: 0 | N40: 1.2 | O40: -1
B41: CGAAP Accounting Change | D41: per kWh | G41: 800 | H41: 0 | J41: -0.0002 | K41: 800 | L41: -0.16 | N41: -0.16
B42: Low Voltage Service Charge | D42: per kWh | F42: 0.0005 | G42: 800 | H42: =G42*F42 -> 0.4 | J42: 0.001 | K42: 800 | L42: =K42*J42 -> 0.8 | N42: =L42-H42 -> 0.4 | O42: =IF((H42)=0,"",(N42/H42)) -> 1
B43: Smart Meter Entity Charge | D43: Monthly | J43: 0.79 | K43: 1 | L43: =K43*J43 -> 0.79 | N43: =L43-H43 -> 0.79
B44: Sub-Total B - Distribution (includes Sub-Total A) | H44: =SUM(H38:H42)+H37 -> 22.2 | L44: =SUM(L38:L43)+L37 -> 23.93 | N44: =L44-H44 -> 1.73 | O44: =IF((H44)=0,"",(N44/H44)) -> 0.07792792793
B45: RTSR - Network | D45: per kWh | F45: 0.0066 | G45: =F16*(1+F71) -> 838.96 | H45: =G45*F45 -> 5.537136 | J45: 0.0068 | K45: =F16*(1+J71) -> 843.84 | L45: =K45*J45 -> 5.738112 | N45: 0.200976 | O45: 0.03629602018
B46: RTSR - Line and Transformation Connection | D46: per kWh | F46: 0.0047 | G46: =G45 -> 838.96 | H46: =G46*F46 -> 3.943112 | J46: 0.0046 | K46: =K45 -> 843.84 | L46: =K46*J46 -> 3.881664 | N46: -0.061448 | O46: -0.01558363039
B47: Sub-Total C - Delivery (including Sub-Total B) | H47: =SUM(H44:H46) -> 31.680248 | L47: =SUM(L44:L46) -> 33.549776 | N47: 1.869528 | O47: 0.05901241682
B48: Wholesale Market Service Charge (WMSC) | D48: per kWh | F48: 0.0052 | G48: =G46 -> 838.96 | H48: =G48*F48 -> 4.362592 | J48: 0.0044 | K48: =K46 -> 843.84 | L48: =K48*J48 -> 3.712896 | N48: -0.649696 | O48: -0.1489243092
B49: Rural and Remote Rate Protection (RRRP) | D49: per kWh | F49: 0.0011 | G49: =G46 -> 838.96 | H49: 0.922856 | J49: 0.0012 | K49: =K46 -> 843.84 | L49: 1.012608 | N49: 0.089752 | O49: 0.0972546096
B50: Standard Supply Service Charge | D50: Monthly | F50: 0.25 | G50: 1 | H50: 0.25 | J50: =F50 -> 0.25 | K50: 1 | L50: 0.25 | N50: 0 | O50: 0
B51: Debt Retirement Charge (DRC) | D51: per kWh | F51: =0.0067 -> 0.0067 | G51: =G49 -> 838.96 | H51: 5.621032 | J51: =F51 -> 0.0067 | K51: =K49 -> 843.84 | L51: 5.653728 | N51: 0.032696 | O51: 0.00581672547
B52: Energy - RPP - Tier 1 | F52: 0.075 | G52: =IF($T$1=1,IF($F$16>=600,600,IF($F$16<600,$F$16*(1+$F$71),$F$16-600)),IF($T$1=2,IF($F$16>=1000,1000,IF($F$16<1000,$F$16*(1+$F$71),$F$16-1000)))) -> 838.96 | H52: =G52*F52 -> 62.922 | J52: 0.078 | K52: =IF($T$1=1,IF($F$16>=600,600,IF($F$16<600,$F$16*(1+$J$71),$F$16-600)),IF($T$1=2,IF($F$16>=1000,1000,IF($F$16<1000,$F$16*(1+$J$71),$F$16-1000)))) -> 843.84 | L52: =K52*J52 -> 65.81952 | N52: 2.89752 | O52: 0.04604939449
B53: Energy - RPP - Tier 2 | F53: 0.088 | G53: =IF($T$1=1,IF($F$16>=600,$F$16*(1+$F$71)-600,IF($F$16<600,0,)), IF($T$1=2,IF($F$16>=1000,$F$16*(1+$F$71)-1000,IF($F$16<1000,0)))) -> 0 | H53: =G53*F53 -> 0 | J53: 0.091 | K53: =IF($T$1=1,IF($F$16>=600,$F$16*(1+$J$71)-600,IF($F$16<600,0,)), IF($T$1=2,IF($F$16>=1000,$F$16*(1+$J$71)-1000,IF($F$16<1000,0)))) -> 0 | L53: =K53*J53 -> 0 | N53: 0
B54: TOU - Off Peak | F54: 0.065 | G54: =0.64*$F$16*(1+$F$71) -> 536.9344 | H54: 34.900736 | J54: 0.067 | K54: =0.64*$F$16*(1+$J$71) -> 540.0576 | L54: 36.1838592 | N54: 1.2831232 | O54: 0.03676493241
B55: TOU - Mid Peak | F55: 0.1 | G55: =0.18*$F$16*(1+$F$71) -> 151.0128 | H55: 15.10128 | J55: 0.104 | K55: =0.18*$F$16*(1+$J$71) -> 151.8912 | L55: 15.7966848 | N55: 0.6954048 | O55: 0.04604939449
B56: TOU - On Peak | F56: 0.117 | G56: =0.18*$F$16*(1+$F$71) -> 151.0128 | H56: 17.6684976 | J56: 0.124 | K56: =0.18*$F$16*(1+$J$71) -> 151.8912 | L56: 18.8345088 | N56: 1.1660112 | O56: 0.06599379451
B58: Total Bill on RPP (before Taxes) | H58: =SUM(H47:H53) -> 105.758728 | L58: =SUM(L47:L53) -> 109.998528 | N58: 4.2398 | O58: 0.04008936265
B59: HST | F59: 0.13 | H59: =H58*F59 -> 13.74863464 | J59: 0.13 | L59: =L58*J59 -> 14.29980864 | N59: =L59-H59 -> 0.551174 | O59: =IF((H59)=0,"",(N59/H59)) -> 0.04008936265
B60: Total Bill (including HST) | H60: =H58+H59 -> 119.5073626 | L60: =L58+L59 -> 124.2983366 | N60: =L60-H60 -> 4.790974 | O60: =IF((H60)=0,"",(N60/H60)) -> 0.04008936265
B61: Ontario Clean Energy Benefit 1 | H61: =ROUND(-H60*10%,2) -> -11.95 | L61: =ROUND(-L60*10%,2) -> -12.43 | N61: =L61-H61 -> -0.48 | O61: =IF((H61)=0,"",(N61/H61)) -> 0.04016736402
B62: Total Bill on RPP (including OCEB) | H62: =SUM(H60:H61) -> 107.5573626 | L62: =SUM(L60:L61) -> 111.8683366 | N62: 4.310974 | O62: 0.04008069642
B64: Total Bill on TOU (before Taxes) | H64: =SUM(H47:H51,H54:H56) -> 110.5072416 | L64: =SUM(L47:L51,L54:L56) -> 114.9940608 | N64: =L64-H64 -> 4.4868192 | O64: =IF((H64)=0,"",(N64/H64)) -> 0.04060203779
B65: HST | F65: 0.13 | H65: =H64*F65 -> 14.36594141 | J65: 0.13 | L65: =L64*J65 -> 14.9492279 | N65: 0.583286496 | O65: 0.04060203779
B66: Total Bill (including HST) | H66: =H64+H65 -> 124.873183 | L66: =L64+L65 -> 129.9432887 | N66: 5.070105696 | O66: 0.04060203779
B67: Ontario Clean Energy Benefit 1 | H67: =ROUND(-H66*10%,2) -> -12.49 | L67: =ROUND(-L66*10%,2) -> -12.99 | N67: -0.5 | O67: 0.04003202562
B68: Total Bill on TOU (including OCEB) | H68: =H66+H67 -> 112.383183 | L68: =L66+L67 -> 116.9532887 | N68: 4.570105696 | O68: 0.04066538759
B71: Loss Factor (%) | F71: 0.0487 | J71: 0.0548
A73: 1 Applicable to eligible customers only. Refer to the Ontario Clean Energy Benefit Act, 2010.
A75: Note that the "Charge $" columns provide breakdowns of the amounts that each bill component contributes to the total monthly bill at the referenced
A76: consumption level at existing and proposed rates.
A78: Applicants must provide bill impacts for residential at 800 kWh and GS<50kW at 2000 kWh. In addition, their filing should cover the range that is relevant
A79: to their service territory, class by class. A general guideline of consumption levels follows:
A81: Residential (kWh) - 100, 250, 500, 800, 1000, 1500, 2000
A82: GS<50kW (kWh) - 1000, 2000, 5000, 10000, 15000
A83: GS>50kW (kW) - 60, 100, 500, 1000
A84: Large User - range appropriate for utility
A85: Lighting Classes and USL - 150 kWh and 1 kW, range appropriate for utility.

Sheet App.2-W_Bill Impacts_GS<50
N1: File Number: | O1: ='LDC Info'!$E$18 -> EB-2012-0160 | T1: 2
N2: Exhibit: | O2: 8
N3: Tab: | O3: Appendix M
N4: Schedule:
N5: Page:
N7: Date:
B10: Appendix 2-W
B11: Bill Impacts
B14: Customer Class: | D14: General Service Less Than 50KW
D16: Consumption | F16: 2000 | G16: kWh
F18: Current Board-Approved | J18: Proposed | N18: Impact
D19: Charge Unit | F19: Rate | G19: Volume | H19: Charge | J19: Rate | K19: Volume | L19: Charge | N19: $ Change | O19: % Change
F20: ($) | H20: ($) | J20: ($) | L20: ($)
B21: Monthly Service Charge | D21: Monthly | F21: 29.9 | G21: 1 | H21: =G21*F21 -> 29.9 | J21: 29.9 | K21: 1 | L21: =K21*J21 -> 29.9 | N21: =L21-H21 -> 0 | O21: =IF((H21)=0,"",(N21/H21)) -> 0
B22: Smart Meter Rate Adder | D22: Monthly | F22: 6.15 | G22: 1 | H22: =G22*F22 -> 6.15 | K22: 1 | L22: =K22*J22 -> 0 | N22: =L22-H22 -> -6.15 | O22: =IF((H22)=0,"",(N22/H22)) -> -1
B23: Monthly Service Charge Deferral | D23: Monthly | G23: 1 | H23: 0 | K23: 1 | L23: =K23*J23 -> 0 | N23: =L23-H23 -> 0 | O23: =IF((H23)=0,"",(N23/H23)) -> 
B24: Distribution Volumetric Deferral | D24: per kWh | G24: 1 | H24: 0 | J24: -0.0002 | K24: =$F$16 -> 2000 | L24: -0.4 | N24: -0.4
B25: Stranded Meter Rate Rider | D25: Monthly | G25: 1 | H25: 0 | J25: 5.58 | K25: 1 | L25: 5.58 | N25: 5.58
G26: 1 | H26: 0 | K26: 1 | L26: 0 | N26: 0
B27: Distribution Volumetric Rate | D27: per kWh | F27: 0.009 | G27: =$F$16 -> 2000 | H27: 18 | J27: 0.0085 | K27: =$F$16 -> 2000 | L27: 17 | N27: -1 | O27: -0.05555555556
B28: Smart Meter Disposition Rider | D28: Monthly | F28: 5.52 | G28: 1 | H28: 5.52 | J28: =F28 -> 5.52 | K28: 1 | L28: 5.52 | N28: 0 | O28: 0
B29: LRAM & SSM Rate Rider | D29: per kWh | F29: 0.0006 | G29: =$F$16 -> 2000 | H29: 1.2 | J29: 0.0007 | K29: =$F$16 -> 2000 | L29: 1.4 | N29: 0.2 | O29: 0.1666666667
B30: LRAMVA Rate Rider | D30: per kWh | G30: =$F$16 -> 2000 | H30: 0 | J30: 0.0001 | K30: 2000 | L30: 0.2 | N30: 0.2
G31: 2000 | H31: 0 | K31: 2000 | L31: 0 | N31: 0
G32: 2000 | H32: 0 | K32: 2000 | L32: 0 | N32: 0
G33: 2000 | H33: 0 | K33: 2000 | L33: 0 | N33: 0
G34: 2000 | H34: 0 | K34: 2000 | L34: 0 | N34: 0
G35: 2000 | H35: 0 | K35: 2000 | L35: 0 | N35: 0
G36: 2000 | H36: 0 | K36: 2000 | L36: 0 | N36: 0
B37: Sub-Total A | H37: =SUM(H21:H36) -> 60.77 | L37: =SUM(L21:L36) -> 59.2 | N37: -1.57 | O37: -0.02583511601
B38: Deferral/Variance Account Disposition Rate Rider | D38: per kWh | F38: =-0.0015 -> -0.0015 | G38: =$F$16 -> 2000 | H38: =G38*F38 -> -3 | J38: -0.0019 | K38: =$F$16 -> 2000 | L38: =K38*J38 -> -3.8 | N38: =L38-H38 -> -0.8 | O38: =IF((H38)=0,"",(N38/H38)) -> 0.2666666667
B39: Tax Change Rate Rider | D39: per kWh | F39: -0.0004 | G39: =$F$16 -> 2000 | H39: =G39*F39 -> -0.8 | K39: =$F$16 -> 2000 | L39: =K39*J39 -> 0 | N39: =L39-H39 -> 0.8 | O39: =IF((H39)=0,"",(N39/H39)) -> -1
B40: Global Adj Disposition Rider | D40: per kWh | F40: -0.0015 | G40: 2000 | H40: -3 | K40: 2000 | L40: 0 | N40: 3 | O40: -1
B41: CGAAP Accounting Change | D41: per kWh | G41: 2000 | H41: 0 | J41: -0.0001 | K41: 2000 | L41: -0.2 | N41: -0.2
B42: Low Voltage Service Charge | D42: per kWh | F42: 0.0005 | G42: 2000 | H42: =G42*F42 -> 1 | J42: 0.0009 | K42: 2000 | L42: =K42*J42 -> 1.8 | N42: =L42-H42 -> 0.8 | O42: =IF((H42)=0,"",(N42/H42)) -> 0.8
B43: Smart Meter Entity Charge | D43: Monthly | J43: 0.79 | K43: 1 | L43: =K43*J43 -> 0.79 | N43: =L43-H43 -> 0.79
B44: Sub-Total B - Distribution (includes Sub-Total A) | H44: =SUM(H38:H42)+H37 -> 54.97 | L44: =SUM(L38:L43)+L37 -> 57.79 | N44: =L44-H44 -> 2.82 | O44: =IF((H44)=0,"",(N44/H44)) -> 0.05130070948
B45: RTSR - Network | D45: per kWh | F45: 0.006 | G45: =F16*(1+F71) -> 2097.4 | H45: =G45*F45 -> 12.5844 | J45: 0.0062 | K45: =F16*(1+J71) -> 2109.6 | L45: =K45*J45 -> 13.07952 | N45: 0.49512 | O45: 0.03934394965
B46: RTSR - Line and Transformation Connection | D46: per kWh | F46: 0.0043 | G46: =G45 -> 2097.4 | H46: =G46*F46 -> 9.01882 | J46: 0.0042 | K46: =K45 -> 2109.6 | L46: =K46*J46 -> 8.86032 | N46: -0.1585 | O46: -0.01757436117
B47: Sub-Total C - Delivery (including Sub-Total B) | H47: =SUM(H44:H46) -> 76.57322 | L47: =SUM(L44:L46) -> 79.72984 | N47: 3.15662 | O47: 0.04122355048
B48: Wholesale Market Service Charge (WMSC) | D48: per kWh | F48: 0.0052 | G48: =G46 -> 2097.4 | H48: =G48*F48 -> 10.90648 | J48: 0.0044 | K48: =K46 -> 2109.6 | L48: =K48*J48 -> 9.28224 | N48: -1.62424 | O48: -0.1489243092
B49: Rural and Remote Rate Protection (RRRP) | D49: per kWh | F49: 0.0011 | G49: =G46 -> 2097.4 | H49: 2.30714 | J49: 0.0012 | K49: =K46 -> 2109.6 | L49: 2.53152 | N49: 0.22438 | O49: 0.0972546096
B50: Standard Supply Service Charge | D50: Monthly | F50: 0.25 | G50: 1 | H50: 0.25 | J50: =F50 -> 0.25 | K50: 1 | L50: 0.25 | N50: 0 | O50: 0
B51: Debt Retirement Charge (DRC) | D51: per kWh | F51: =0.0067 -> 0.0067 | G51: =G49 -> 2097.4 | H51: 14.05258 | J51: =F51 -> 0.0067 | K51: =K49 -> 2109.6 | L51: 14.13432 | N51: 0.08174 | O51: 0.00581672547
B52: Energy - RPP - Tier 1 | F52: 0.075 | G52: =IF($T$1=1,IF($F$16>=600,600,IF($F$16<600,$F$16*(1+$F$71),$F$16-600)),IF($T$1=2,IF($F$16>=1000,1000,IF($F$16<1000,$F$16*(1+$F$71),$F$16-1000)))) -> 1000 | H52: =G52*F52 -> 75 | J52: 0.078 | K52: =IF($T$1=1,IF($F$16>=600,600,IF($F$16<600,$F$16*(1+$J$71),$F$16-600)),IF($T$1=2,IF($F$16>=1000,1000,IF($F$16<1000,$F$16*(1+$J$71),$F$16-1000)))) -> 1000 | L52: =K52*J52 -> 78 | N52: 3 | O52: 0.04
B53: Energy - RPP - Tier 2 | F53: 0.088 | G53: =IF($T$1=1,IF($F$16>=600,$F$16*(1+$F$71)-600,IF($F$16<600,0,)), IF($T$1=2,IF($F$16>=1000,$F$16*(1+$F$71)-1000,IF($F$16<1000,0)))) -> 1097.4 | H53: =G53*F53 -> 96.5712 | J53: 0.091 | K53: =IF($T$1=1,IF($F$16>=600,$F$16*(1+$J$71)-600,IF($F$16<600,0,)), IF($T$1=2,IF($F$16>=1000,$F$16*(1+$J$71)-1000,IF($F$16<1000,0)))) -> 1109.6 | L53: =K53*J53 -> 100.9736 | N53: 4.4024 | O53: 0.04558709015
B54: TOU - Off Peak | F54: 0.065 | G54: =0.64*$F$16*(1+$F$71) -> 1342.336 | H54: 87.25184 | J54: 0.067 | K54: =0.64*$F$16*(1+$J$71) -> 1350.144 | L54: 90.459648 | N54: 3.207808 | O54: 0.03676493241
B55: TOU - Mid Peak | F55: 0.1 | G55: =0.18*$F$16*(1+$F$71) -> 377.532 | H55: 37.7532 | J55: 0.104 | K55: =0.18*$F$16*(1+$J$71) -> 379.728 | L55: 39.491712 | N55: 1.738512 | O55: 0.04604939449
B56: TOU - On Peak | F56: 0.117 | G56: =0.18*$F$16*(1+$F$71) -> 377.532 | H56: 44.171244 | J56: 0.124 | K56: =0.18*$F$16*(1+$J$71) -> 379.728 | L56: 47.086272 | N56: 2.915028 | O56: 0.06599379451
B58: Total Bill on RPP (before Taxes) | H58: =SUM(H47:H53) -> 275.66062 | L58: =SUM(L47:L53) -> 284.90152 | N58: 9.2409 | O58: 0.03352274257
B59: HST | F59: 0.13 | H59: =H58*F59 -> 35.8358806 | J59: 0.13 | L59: =L58*J59 -> 37.0371976 | N59: 1.201317 | O59: 0.03352274257
B60: Total Bill (including HST) | H60: =H58+H59 -> 311.4965006 | L60: =L58+L59 -> 321.9387176 | N60: 10.442217 | O60: 0.03352274257
B61: Ontario Clean Energy Benefit 1 | H61: =ROUND(-H60*10%,2) -> -31.15 | L61: =ROUND(-L60*10%,2) -> -32.19 | N61: -1.04 | O61: 0.03338683788
B62: Total Bill on RPP (including OCEB) | H62: =SUM(H60:H61) -> 280.3465006 | L62: =SUM(L60:L61) -> 289.7487176 | N62: 9.402217 | O62: 0.03353784328
B64: Total Bill on TOU (before Taxes) | H64: =SUM(H47:H51,H54:H56) -> 273.265704 | L64: =SUM(L47:L51,L54:L56) -> 282.965552 | N64: =L64-H64 -> 9.699848 | O64: =IF((H64)=0,"",(N64/H64)) -> 0.03549603136
B65: HST | F65: 0.13 | H65: =H64*F65 -> 35.52454152 | J65: 0.13 | L65: =L64*J65 -> 36.78552176 | N65: 1.26098024 | O65: 0.03549603136
B66: Total Bill (including HST) | H66: =H64+H65 -> 308.7902455 | L66: =L64+L65 -> 319.7510738 | N66: 10.96082824 | O66: 0.03549603136
B67: Ontario Clean Energy Benefit 1 | H67: =ROUND(-H66*10%,2) -> -30.88 | L67: =ROUND(-L66*10%,2) -> -31.98 | N67: -1.1 | O67: 0.03562176166
B68: Total Bill on TOU (including OCEB) | H68: =H66+H67 -> 277.9102455 | L68: =L66+L67 -> 287.7710738 | N68: 9.86082824 | O68: 0.03548206084
B71: Loss Factor (%) | F71: 0.0487 | J71: 0.0548
A73: 1 Applicable to eligible customers only. Refer to the Ontario Clean Energy Benefit Act, 2010.
A75: Note that the "Charge $" columns provide breakdowns of the amounts that each bill component contributes to the total monthly bill at the referenced
A76: consumption level at existing and proposed rates.
A78: Applicants must provide bill impacts for residential at 800 kWh and GS<50kW at 2000 kWh. In addition, their filing should cover the range that is relevant
A79: to their service territory, class by class. A general guideline of consumption levels follows:
A81: Residential (kWh) - 100, 250, 500, 800, 1000, 1500, 2000
A82: GS<50kW (kWh) - 1000, 2000, 5000, 10000, 15000
A83: GS>50kW (kW) - 60, 100, 500, 1000
A84: Large User - range appropriate for utility
A85: Lighting Classes and USL - 150 kWh and 1 kW, range appropriate for utility.

Sheet App.2-W_Bill Impacts_GS>50
N1: File Number: | O1: ='LDC Info'!$E$18 -> EB-2012-0160 | T1: 2
N2: Exhibit: | O2: 8
N3: Tab: | O3: Appendix M
N4: Schedule:
N5: Page:
N7: Date:
B10: Appendix 2-W
B11: Bill Impacts
B14: Customer Class: | D14: General Service Greater Than 50KW
D16: Consumption | F16: 75000 | G16: kWh
F17: 250 | G17: kW
F18: Current Board-Approved | J18: Proposed | N18: Impact
D19: Charge Unit | F19: Rate | G19: Volume | H19: Charge | J19: Rate | K19: Volume | L19: Charge | N19: $ Change | O19: % Change
F20: ($) | H20: ($) | J20: ($) | L20: ($)
B21: Monthly Service Charge | D21: Monthly | F21: 247.49 | G21: 1 | H21: =G21*F21 -> 247.49 | J21: 152.91 | K21: 1 | L21: =K21*J21 -> 152.91 | N21: =L21-H21 -> -94.58 | O21: =IF((H21)=0,"",(N21/H21)) -> -0.3821568548
B22: Smart Meter Rate Adder | D22: Monthly | G22: 1 | H22: =G22*F22 -> 0 | K22: 1 | L22: =K22*J22 -> 0 | N22: =L22-H22 -> 0 | O22: =IF((H22)=0,"",(N22/H22)) -> 
B23: Monthly Service Charge Deferral | D23: Monthly | G23: 1 | H23: 0 | J23: -47.29 | K23: 1 | L23: =K23*J23 -> -47.29 | N23: =L23-H23 -> -47.29 | O23: =IF((H23)=0,"",(N23/H23)) -> 
B24: Distribution Volumetric Deferral | D24: per kW | G24: =$F$17 -> 250 | H24: 0 | J24: 0.0808 | K24: =$F$17 -> 250 | L24: 20.2 | N24: 20.2
G25: 1 | H25: 0 | K25: 1 | L25: 0 | N25: 0
G26: 1 | H26: 0 | K26: 1 | L26: 0 | N26: 0
B27: Distribution Volumetric Rate | D27: per kW | F27: 2.4354 | G27: =$F$17 -> 250 | H27: 608.85 | J27: 2.6063 | K27: =$F$17 -> 250 | L27: 651.575 | N27: 42.725 | O27: 0.07017327749
B28: Smart Meter Disposition Rider | D28: Monthly | G28: 1 | H28: 0 | J28: =F28 -> 0 | K28: 1 | L28: 0 | N28: 0
B29: LRAM & SSM Rate Rider | D29: per kW | F29: 0.0611 | G29: =$F$17 -> 250 | H29: 15.275 | J29: 0.0831 | K29: =$F$17 -> 250 | L29: 20.775 | N29: 5.5 | O29: 0.3600654664
B30: LRAMVA Rate Rider | D30: per kW | G30: =$F$17 -> 250 | H30: 0 | J30: 0.0009 | K30: =$F$17 -> 250 | L30: 0.225 | N30: 0.225
G31: =$F$16 -> 75000 | H31: 0 | K31: =$F$16 -> 75000 | L31: 0 | N31: 0
G32: 75000 | H32: 0 | K32: 75000 | L32: 0 | N32: 0
G33: 75000 | H33: 0 | K33: 75000 | L33: 0 | N33: 0
G34: 75000 | H34: 0 | K34: 75000 | L34: 0 | N34: 0
G35: 75000 | H35: 0 | K35: 75000 | L35: 0 | N35: 0
G36: 75000 | H36: 0 | K36: 75000 | L36: 0 | N36: 0
B37: Sub-Total A | H37: =SUM(H21:H36) -> 871.615 | L37: =SUM(L21:L36) -> 798.395 | N37: -73.22 | O37: -0.08400497926
B38: Deferral/Variance Account Disposition Rate Rider | D38: per kW | F38: -0.614 | G38: =$F$17 -> 250 | H38: =G38*F38 -> -153.5 | J38: -0.7851 | K38: =$F$17 -> 250 | L38: =K38*J38 -> -196.275 | N38: =L38-H38 -> -42.775 | O38: =IF((H38)=0,"",(N38/H38)) -> 0.2786644951
B39: Tax Change Rate Rider | D39: per kW | F39: -0.0734 | G39: =$F$17 -> 250 | H39: =G39*F39 -> -18.35 | K39: =$F$17 -> 250 | L39: =K39*J39 -> 0 | N39: =L39-H39 -> 18.35 | O39: =IF((H39)=0,"",(N39/H39)) -> -1
B40: Global Adj Disposition Rider | D40: per kW | F40: -0.6241 | G40: 250 | H40: -156.025 | K40: 250 | L40: 0 | N40: 156.025 | O40: -1
B41: CGAAP Accounting Change | D41: per kW | G41: 250 | H41: 0 | J41: -0.0202 | K41: 250 | L41: -5.05 | N41: -5.05
B42: Low Voltage Service Charge | D42: per kW | F42: 0.193 | G42: =$F$17 -> 250 | H42: =G42*F42 -> 48.25 | J42: 0.3349 | K42: =$F$17 -> 250 | L42: =K42*J42 -> 83.725 | N42: =L42-H42 -> 35.475 | O42: =IF((H42)=0,"",(N42/H42)) -> 0.7352331606
B43: Smart Meter Entity Charge | D43: Monthly | K43: 1 | L43: =K43*J43 -> 0 | N43: =L43-H43 -> 0
B44: Sub-Total B - Distribution (includes Sub-Total A) | H44: =SUM(H38:H42)+H37 -> 591.99 | L44: =SUM(L38:L42)+L37 -> 680.795 | N44: =L44-H44 -> 88.805 | O44: =IF((H44)=0,"",(N44/H44)) -> 0.1500109799
B45: RTSR - Network | D45: per kW | F45: 2.4345 | G45: =$F$17*(1+F$71) -> 262.175 | H45: =G45*F45 -> 638.2650375 | J45: 2.5134 | K45: =$F$17*(1+J$71) -> 263.7 | L45: =K45*J45 -> 662.78358 | N45: 24.5185425 | O45: 0.03841435933
B46: RTSR - Line and Transformation Connection | D46: per kW | F46: 1.6613 | G46: =$F$17*(1+F$71) -> 262.175 | H46: =G46*F46 -> 435.5513275 | J46: 1.6362 | K46: =$F$17*(1+J$71) -> 263.7 | L46: =K46*J46 -> 431.46594 | N46: -4.0853875 | O46: -0.009379807251
B47: Sub-Total C - Delivery (including Sub-Total B) | H47: =SUM(H44:H46) -> 1665.806365 | L47: =SUM(L44:L46) -> 1775.04452 | N47: 109.238155 | O47: 0.06557674247
B48: Wholesale Market Service Charge (WMSC) | D48: per kWh | F48: 0.0052 | G48: =F16 -> 75000 | H48: =G48*F48 -> 390 | J48: 0.0044 | K48: =F16*(1+J71) -> 79110 | L48: =K48*J48 -> 348.084 | N48: -41.916 | O48: -0.1074769231
B49: Rural and Remote Rate Protection (RRRP) | D49: per kWh | F49: 0.0011 | G49: =F16 -> 75000 | H49: 82.5 | J49: 0.0012 | K49: =K48 -> 79110 | L49: 94.932 | N49: 12.432 | O49: 0.1506909091
B50: Standard Supply Service Charge | D50: Monthly | F50: 0.25 | G50: 1 | H50: 0.25 | J50: =F50 -> 0.25 | K50: 1 | L50: 0.25 | N50: 0 | O50: 0
B51: Debt Retirement Charge (DRC) | D51: per kWh | F51: =0.0067 -> 0.0067 | G51: =F16 -> 75000 | H51: 502.5 | J51: =F51 -> 0.0067 | K51: =K49 -> 79110 | L51: 530.037 | N51: 27.537 | O51: 0.0548
B52: Energy - RPP - Tier 1 | F52: 0.075 | G52: =IF($T$1=1,IF($F$16>=600,600,IF($F$16<600,$F$16*(1+$F$71),$F$16-600)),IF($T$1=2,IF($F$16>=1000,1000,IF($F$16<1000,$F$16*(1+$F$71),$F$16-1000)))) -> 1000 | H52: =G52*F52 -> 75 | J52: 0.078 | K52: =IF($T$1=1,IF($F$16>=600,600,IF($F$16<600,$F$16*(1+$F$71),$F$16-600)),IF($T$1=2,IF($F$16>=1000,1000,IF($F$16<1000,$F$16*(1+$F$71),$F$16-1000)))) -> 1000 | L52: =K52*J52 -> 78 | N52: 3 | O52: 0.04
B53: Energy - RPP - Tier 2 | F53: 0.088 | G53: =IF($T$1=1,IF($F$16>=600,$F$16*(1+$F$71)-600,IF($F$16<600,0,)), IF($T$1=2,IF($F$16>=1000,$F$16*(1+$F$71)-1000,IF($F$16<1000,0)))) -> 77652.5 | H53: =G53*F53 -> 6833.42 | J53: 0.091 | K53: =IF($T$1=1,IF($F$16>=600,$F$16*(1+$F$71)-600,IF($F$16<600,0,)), IF($T$1=2,IF($F$16>=1000,$F$16*(1+$F$71)-1000,IF($F$16<1000,0)))) -> 77652.5 | L53: =K53*J53 -> 7066.3775 | N53: 232.9575 | O53: 0.03409090909
B54: TOU - Off Peak | F54: 0.065 | G54: =0.64*$F$16*(1+$F$71) -> 50337.6 | H54: 3271.944 | J54: 0.067 | K54: =0.64*$F$16*(1+$F$71) -> 50337.6 | L54: 3372.6192 | N54: 100.6752 | O54: 0.03076923077
B55: TOU - Mid Peak | F55: 0.1 | G55: =0.18*$F$16*(1+$F$71) -> 14157.45 | H55: 1415.745 | J55: 0.104 | K55: =0.18*$F$16*(1+$F$71) -> 14157.45 | L55: 1472.3748 | N55: 56.6298 | O55: 0.04
B56: TOU - On Peak | F56: 0.117 | G56: =0.18*$F$16*(1+$F$71) -> 14157.45 | H56: 1656.42165 | J56: 0.124 | K56: =0.18*$F$16*(1+$F$71) -> 14157.45 | L56: 1755.5238 | N56: 99.10215 | O56: 0.05982905983
B58: Total Bill on RPP (before Taxes) | H58: =SUM(H47:H53) -> 9549.476365 | L58: =SUM(L47:L53) -> 9892.72502 | N58: 343.248655 | O58: 0.03594423839
B59: HST | F59: 0.13 | H59: =H58*F59 -> 1241.431927 | J59: 0.13 | L59: =L58*J59 -> 1286.054253 | N59: 44.62232515 | O59: 0.03594423839
B60: Total Bill (including HST) | H60: =H58+H59 -> 10790.90829 | L60: =L58+L59 -> 11178.77927 | N60: 387.8709801 | O60: 0.03594423839
B61: Ontario Clean Energy Benefit 1 | H61: =ROUND(-H60*10%,2) -> -1079.09 | L61: =ROUND(-L60*10%,2) -> -1117.88 | N61: -38.79 | O61: 0.0359469553
B62: Total Bill on RPP (including OCEB) | H62: =SUM(H60:H61) -> 9711.818292 | L62: =SUM(L60:L61) -> 10060.89927 | N62: 349.0809801 | O62: 0.03594393652
B64: Total Bill on TOU (before Taxes) | H64: =SUM(H47:H51,H54:H56) -> 8985.167015 | L64: =SUM(L47:L51,L54:L56) -> 9348.86532 | N64: =L64-H64 -> 363.698305 | O64: =IF((H64)=0,"",(N64/H64)) -> 0.04047763435
B65: HST | F65: 0.13 | H65: =H64*F65 -> 1168.071712 | J65: 0.13 | L65: =L64*J65 -> 1215.352492 | N65: 47.28077965 | O65: 0.04047763435
B66: Total Bill (including HST) | H66: =H64+H65 -> 10153.23873 | L66: =L64+L65 -> 10564.21781 | N66: 410.9790847 | O66: 0.04047763435
B67: Ontario Clean Energy Benefit 1 | H67: =ROUND(-H66*10%,2) -> -1015.32 | L67: =ROUND(-L66*10%,2) -> -1056.42 | N67: -41.1 | O67: 0.04047984872
B68: Total Bill on TOU (including OCEB) | H68: =H66+H67 -> 9137.918727 | L68: =L66+L67 -> 9507.797812 | N68: 369.8790846 | O68: 0.04047738831
B71: Loss Factor (%) | F71: 0.0487 | J71: 0.0548
A73: 1 Applicable to eligible customers only. Refer to the Ontario Clean Energy Benefit Act, 2010.
A75: Note that the "Charge $" columns provide breakdowns of the amounts that each bill component contributes to the total monthly bill at the referenced
A76: consumption level at existing and proposed rates.
A78: Applicants must provide bill impacts for residential at 800 kWh and GS<50kW at 2000 kWh. In addition, their filing should cover the range that is relevant
A79: to their service territory, class by class. A general guideline of consumption levels follows:
A81: Residential (kWh) - 100, 250, 500, 800, 1000, 1500, 2000
A82: GS<50kW (kWh) - 1000, 2000, 5000, 10000, 15000
A83: GS>50kW (kW) - 60, 100, 500, 1000
A84: Large User - range appropriate for utility
A85: Lighting Classes and USL - 150 kWh and 1 kW, range appropriate for utility.

Sheet App.2-W_Bill Impacts_LU
N1: File Number: | O1: ='LDC Info'!$E$18 -> EB-2012-0160 | T1: 2
N2: Exhibit: | O2: 8
N3: Tab: | O3: Appendix M
N4: Schedule:
N5: Page:
N7: Date:
B10: Appendix 2-W
B11: Bill Impacts
B14: Customer Class: | D14: Large User
D16: Consumption | F16: 2000000 | G16: kWh
F17: 5000 | G17: kW
F18: Current Board-Approved | J18: Proposed | N18: Impact
D19: Charge Unit | F19: Rate | G19: Volume | H19: Charge | J19: Rate | K19: Volume | L19: Charge | N19: $ Change | O19: % Change
F20: ($) | H20: ($) | J20: ($) | L20: ($)
B21: Monthly Service Charge | D21: Monthly | F21: 6311.79 | G21: 1 | H21: =G21*F21 -> 6311.79 | J21: 6143.49 | K21: 1 | L21: =K21*J21 -> 6143.49 | N21: =L21-H21 -> -168.3 | O21: =IF((H21)=0,"",(N21/H21)) -> -0.02666438522
B22: Smart Meter Rate Adder | D22: Monthly | G22: 1 | H22: =G22*F22 -> 0 | K22: 1 | L22: =K22*J22 -> 0 | N22: =L22-H22 -> 0 | O22: =IF((H22)=0,"",(N22/H22)) -> 
B23: Monthly Service Charge Deferral | D23: Monthly | G23: 1 | H23: 0 | J23: -84.15 | K23: 1 | L23: =K23*J23 -> -84.15 | N23: =L23-H23 -> -84.15 | O23: =IF((H23)=0,"",(N23/H23)) -> 
B24: Distribution Volumetric Deferral | D24: per kW | G24: =$F$17 -> 5000 | H24: 0 | J24: -0.0093 | K24: =$F$17 -> 5000 | L24: -46.5 | N24: -46.5
G25: 1 | H25: 0 | K25: 1 | L25: 0 | N25: 0
G26: 1 | H26: 0 | K26: 1 | L26: 0 | N26: 0
B27: Distribution Volumetric Rate | D27: per kW | F27: 0.7373 | G27: =$F$17 -> 5000 | H27: 3686.5 | J27: 0.7176 | K27: =$F$17 -> 5000 | L27: 3588 | N27: -98.5 | O27: -0.02671911027
B28: Smart Meter Disposition Rider | D28: Monthly | G28: 1 | H28: 0 | J28: =F28 -> 0 | K28: 1 | L28: 0 | N28: 0
B29: LRAM & SSM Rate Rider | D29: per kW | G29: =$F$17 -> 5000 | H29: 0 | K29: =$F$17 -> 5000 | L29: 0 | N29: 0
G30: =$F$16 -> 2000000 | H30: 0 | K30: =$F$16 -> 2000000 | L30: 0 | N30: 0
G31: 2000000 | H31: 0 | K31: 2000000 | L31: 0 | N31: 0
G32: 2000000 | H32: 0 | K32: 2000000 | L32: 0 | N32: 0
G33: 2000000 | H33: 0 | K33: 2000000 | L33: 0 | N33: 0
G34: 2000000 | H34: 0 | K34: 2000000 | L34: 0 | N34: 0
G35: 2000000 | H35: 0 | K35: 2000000 | L35: 0 | N35: 0
G36: 2000000 | H36: 0 | K36: 2000000 | L36: 0 | N36: 0
B37: Sub-Total A | H37: =SUM(H21:H36) -> 9998.29 | L37: =SUM(L21:L36) -> 9600.84 | N37: -397.45 | O37: -0.03975179756
B38: Deferral/Variance Account Disposition Rate Rider | D38: per kW | F38: -0.7037 | G38: =$F$17 -> 5000 | H38: =G38*F38 -> -3518.5 | J38: -0.9159 | K38: =$F$17 -> 5000 | L38: =K38*J38 -> -4579.5 | N38: =L38-H38 -> -1061 | O38: =IF((H38)=0,"",(N38/H38)) -> 0.3015489555
B39: Tax Change Rate Rider | D39: per kW | F39: -0.0358 | G39: =$F$17 -> 5000 | H39: =G39*F39 -> -179 | K39: =$F$17 -> 5000 | L39: =K39*J39 -> 0 | N39: =L39-H39 -> 179 | O39: =IF((H39)=0,"",(N39/H39)) -> -1
B40: Global Adj Disposition Rider | D40: per kW | F40: -0.7152 | G40: 5000 | H40: -3576 | K40: 5000 | L40: 0 | N40: 3576 | O40: -1
B41: CGAAP Accounting Change | D41: per kW | G41: 5000 | H41: 0 | J41: -0.0124 | K41: =$F$17 -> 5000 | L41: -62 | N41: -62
B42: Low Voltage Service Charge | D42: per kW | F42: 0.2364 | G42: =$F$17 -> 5000 | H42: =G42*F42 -> 1182 | J42: 0.4103 | K42: =$F$17 -> 5000 | L42: =K42*J42 -> 2051.5 | N42: =L42-H42 -> 869.5 | O42: =IF((H42)=0,"",(N42/H42)) -> 0.7356175973
B43: Smart Meter Entity Charge | D43: Monthly | K43: 1 | L43: =K43*J43 -> 0 | N43: =L43-H43 -> 0
B44: Sub-Total B - Distribution (includes Sub-Total A) | H44: =SUM(H38:H42)+H37 -> 3906.79 | L44: =SUM(L38:L42)+L37 -> 7010.84 | N44: =L44-H44 -> 3104.05 | O44: =IF((H44)=0,"",(N44/H44)) -> 0.7945269646
B45: RTSR - Network | D45: per kW | F45: 2.8683 | G45: =$F$17*(1+F$71) -> 5085.5 | H45: =G45*F45 -> 14586.73965 | J45: 2.9613 | K45: =$F$17*(1+J$71) -> 5086 | L45: =K45*J45 -> 15061.1718 | N45: 474.43215 | O45: 0.03252489325
B46: RTSR - Line and Transformation Connection | D46: per kW | F46: 2.0352 | G46: =$F$17*(1+F$71) -> 5085.5 | H46: =G46*F46 -> 10350.0096 | J46: 2.0045 | K46: =$F$17*(1+J$71) -> 5086 | L46: =K46*J46 -> 10194.887 | N46: -155.1226 | O46: -0.01498767692
B47: Sub-Total C - Delivery (including Sub-Total B) | H47: =SUM(H44:H46) -> 28843.53925 | L47: =SUM(L44:L46) -> 32266.8988 | N47: 3423.35955 | O47: 0.1186872221
B48: Wholesale Market Service Charge (WMSC) | D48: per kWh | F48: 0.0052 | G48: =F16 -> 2000000 | H48: =G48*F48 -> 10400 | J48: 0.0044 | K48: =F16*(1+J71) -> 2034400 | L48: =K48*J48 -> 8951.36 | N48: -1448.64 | O48: -0.1392923077
B49: Rural and Remote Rate Protection (RRRP) | D49: per kWh | F49: 0.0011 | G49: =F16 -> 2000000 | H49: 2200 | J49: 0.0012 | K49: =K48 -> 2034400 | L49: 2441.28 | N49: 241.28 | O49: 0.1096727273
B50: Standard Supply Service Charge | D50: Monthly | F50: 0.25 | G50: 1 | H50: 0.25 | J50: =F50 -> 0.25 | K50: 1 | L50: 0.25 | N50: 0 | O50: 0
B51: Debt Retirement Charge (DRC) | D51: per kWh | F51: =0.0067 -> 0.0067 | G51: =F16 -> 2000000 | H51: 13400 | J51: =F51 -> 0.0067 | K51: =K48 -> 2034400 | L51: 13630.48 | N51: 230.48 | O51: 0.0172
B52: Energy - RPP - Tier 1 | D52: per kWh | F52: 0.075 | G52: =IF($T$1=1,IF($F$16>=600,600,IF($F$16<600,$F$16*(1+$F$71),$F$16-600)),IF($T$1=2,IF($F$16>=1000,1000,IF($F$16<1000,$F$16*(1+$F$71),$F$16-1000)))) -> 1000 | H52: =G52*F52 -> 75 | J52: 0.078 | K52: =IF($T$1=1,IF($F$16>=600,600,IF($F$16<600,$F$16*(1+$F$71),$F$16-600)),IF($T$1=2,IF($F$16>=1000,1000,IF($F$16<1000,$F$16*(1+$F$71),$F$16-1000)))) -> 1000 | L52: =K52*J52 -> 78 | N52: 3 | O52: 0.04
B53: Energy - RPP - Tier 2 | F53: 0.088 | G53: =IF($T$1=1,IF($F$16>=600,$F$16*(1+$F$71)-600,IF($F$16<600,0,)), IF($T$1=2,IF($F$16>=1000,$F$16*(1+$F$71)-1000,IF($F$16<1000,0)))) -> 2033200 | H53: =G53*F53 -> 178921.6 | J53: 0.091 | K53: =IF($T$1=1,IF($F$16>=600,$F$16*(1+$F$71)-600,IF($F$16<600,0,)), IF($T$1=2,IF($F$16>=1000,$F$16*(1+$F$71)-1000,IF($F$16<1000,0)))) -> 2033200 | L53: =K53*J53 -> 185021.2 | N53: 6099.6 | O53: 0.03409090909
B54: TOU - Off Peak | F54: 0.065 | G54: =0.64*$F$16*(1+$F$71) -> 1301888 | H54: 84622.72 | J54: 0.067 | K54: =0.64*$F$16*(1+$F$71) -> 1301888 | L54: 87226.496 | N54: 2603.776 | O54: 0.03076923077
B55: TOU - Mid Peak | F55: 0.1 | G55: =0.18*$F$16*(1+$F$71) -> 366156 | H55: 36615.6 | J55: 0.104 | K55: =0.18*$F$16*(1+$F$71) -> 366156 | L55: 38080.224 | N55: 1464.624 | O55: 0.04
B56: TOU - On Peak | F56: 0.117 | G56: =0.18*$F$16*(1+$F$71) -> 366156 | H56: 42840.252 | J56: 0.124 | K56: =0.18*$F$16*(1+$F$71) -> 366156 | L56: 45403.344 | N56: 2563.092 | O56: 0.05982905983
B58: Total Bill on RPP (before Taxes) | H58: =SUM(H47:H53) -> 233840.3892 | L58: =SUM(L47:L53) -> 242389.4688 | N58: 8549.07955 | O58: 0.0365594651
B59: HST | F59: 0.13 | H59: =H58*F59 -> 30399.2506 | J59: 0.13 | L59: =L58*J59 -> 31510.63094 | N59: 1111.380342 | O59: 0.0365594651
B60: Total Bill (including HST) | H60: =H58+H59 -> 264239.6399 | L60: =L58+L59 -> 273900.0997 | N60: 9660.459892 | O60: 0.0365594651
B61: Ontario Clean Energy Benefit 1 | H61: =ROUND(-H60*10%,2) -> -26423.96 | L61: =ROUND(-L60*10%,2) -> -27390.01 | N61: -966.05 | O61: 0.0365596224
B62: Total Bill on RPP (including OCEB) | H62: =SUM(H60:H61) -> 237815.6799 | L62: =SUM(L60:L61) -> 246510.0897 | N62: 8694.409891 | O62: 0.03655944762
B64: Total Bill on TOU (before Taxes) | H64: =SUM(H47:H51,H54:H56) -> 218922.3612 | L64: =SUM(L47:L51,L54:L56) -> 228000.3328 | N64: =L64-H64 -> 9077.97155 | O64: =IF((H64)=0,"",(N64/H64)) -> 0.04146662542
B65: HST | F65: 0.13 | H65: =H64*F65 -> 28459.90696 | J65: 0.13 | L65: =L64*J65 -> 29640.04326 | N65: 1180.136302 | O65: 0.04146662542
B66: Total Bill (including HST) | H66: =H64+H65 -> 247382.2682 | L66: =L64+L65 -> 257640.3761 | N66: 10258.10785 | O66: 0.04146662542
B67: Ontario Clean Energy Benefit 1 | H67: =ROUND(-H66*10%,2) -> -24738.23 | L67: =ROUND(-L66*10%,2) -> -25764.04 | N67: -1025.81 | O67: 0.04146658835
B68: Total Bill on TOU (including OCEB) | H68: =H66+H67 -> 222644.0382 | L68: =L66+L67 -> 231876.3361 | N68: 9232.297852 | O68: 0.04146662954
B71: Loss Factor (%) | F71: 0.0171 | J71: 0.0172
A73: 1 Applicable to eligible customers only. Refer to the Ontario Clean Energy Benefit Act, 2010.
A75: Note that the "Charge $" columns provide breakdowns of the amounts that each bill component contributes to the total monthly bill at the referenced
A76: consumption level at existing and proposed rates.
A78: Applicants must provide bill impacts for residential at 800 kWh and GS<50kW at 2000 kWh. In addition, their filing should cover the range that is relevant
A79: to their service territory, class by class. A general guideline of consumption levels follows:
A81: Residential (kWh) - 100, 250, 500, 800, 1000, 1500, 2000
A82: GS<50kW (kWh) - 1000, 2000, 5000, 10000, 15000
A83: GS>50kW (kW) - 60, 100, 500, 1000
A84: Large User - range appropriate for utility
A85: Lighting Classes and USL - 150 kWh and 1 kW, range appropriate for utility.

Sheet App.2-W_Bill Impacts_StrtLght
N1: File Number: | O1: ='LDC Info'!$E$18 -> EB-2012-0160 | T1: 2
N2: Exhibit: | O2: 8
N3: Tab: | O3: Appendix M
N4: Schedule:
N5: Page:
N7: Date:
B10: Appendix 2-W
B11: Bill Impacts
B14: Customer Class: | D14: Street Lighting
D16: Consumption | F16: 600000 | G16: kWh
F17: 1500 | G17: kW
F18: Current Board-Approved | J18: Proposed | N18: Impact
D19: Charge Unit | F19: Rate | G19: Volume | H19: Charge | J19: Rate | K19: Volume | L19: Charge | N19: $ Change | O19: % Change
F20: ($) | H20: ($) | J20: ($) | L20: ($)
B21: Monthly Service Charge | D21: Monthly | F21: 3.16 | G21: 1 | H21: =G21*F21 -> 3.16 | J21: 3.08 | K21: 1 | L21: =K21*J21 -> 3.08 | N21: =L21-H21 -> -0.08 | O21: =IF((H21)=0,"",(N21/H21)) -> -0.0253164557
B22: Smart Meter Rate Adder | D22: Monthly | G22: 1 | H22: =G22*F22 -> 0 | K22: 1 | L22: =K22*J22 -> 0 | N22: =L22-H22 -> 0 | O22: =IF((H22)=0,"",(N22/H22)) -> 
B23: Monthly Service Charge Deferral | D23: Monthly | G23: 1 | H23: 0 | J23: -0.04 | K23: 1 | L23: =K23*J23 -> -0.04 | N23: =L23-H23 -> -0.04 | O23: =IF((H23)=0,"",(N23/H23)) -> 
B24: Distribution Volumetric Deferral | D24: per kW | G24: =$F$17 -> 1500 | H24: 0 | J24: -0.1663 | K24: =$F$17 -> 1500 | L24: -249.45 | N24: -249.45
G25: 1 | H25: 0 | K25: 1 | L25: 0 | N25: 0
G26: 1 | H26: 0 | K26: 1 | L26: 0 | N26: 0
B27: Distribution Volumetric Rate | D27: per kW | F27: 13.188 | G27: =$F$17 -> 1500 | H27: 19782 | J27: 12.8363 | K27: =$F$17 -> 1500 | L27: 19254.45 | N27: -527.55 | O27: -0.0266681832
B28: Smart Meter Disposition Rider | D28: Monthly | G28: 1 | H28: 0 | J28: =F28 -> 0 | K28: 1 | L28: 0 | N28: 0
B29: LRAM & SSM Rate Rider | D29: per kW | G29: =$F$17 -> 1500 | H29: 0 | K29: =$F$17 -> 1500 | L29: 0 | N29: 0
G30: =$F$16 -> 600000 | H30: 0 | K30: =$F$16 -> 600000 | L30: 0 | N30: 0
G31: 600000 | H31: 0 | K31: 600000 | L31: 0 | N31: 0
G32: 600000 | H32: 0 | K32: 600000 | L32: 0 | N32: 0
G33: 600000 | H33: 0 | K33: 600000 | L33: 0 | N33: 0
G34: 600000 | H34: 0 | K34: 600000 | L34: 0 | N34: 0
G35: 600000 | H35: 0 | K35: 600000 | L35: 0 | N35: 0
G36: 600000 | H36: 0 | K36: 600000 | L36: 0 | N36: 0
B37: Sub-Total A | H37: =SUM(H21:H36) -> 19785.16 | L37: =SUM(L21:L36) -> 19008.04 | N37: -777.12 | O37: -0.03927792345
B38: Deferral/Variance Account Disposition Rate Rider | D38: per kW | F38: -0.5182 | G38: =$F$17 -> 1500 | H38: =G38*F38 -> -777.3 | J38: -0.7023 | K38: =$F$17 -> 1500 | L38: =K38*J38 -> -1053.45 | N38: =L38-H38 -> -276.15 | O38: =IF((H38)=0,"",(N38/H38)) -> 0.3552682362
B39: Tax Change Rate Rider | D39: per kW | F39: -0.5916 | G39: =$F$17 -> 1500 | H39: =G39*F39 -> -887.4 | K39: =$F$17 -> 1500 | L39: =K39*J39 -> 0 | N39: =L39-H39 -> 887.4 | O39: =IF((H39)=0,"",(N39/H39)) -> -1
B40: Global Adj Disposition Rider | D40: per kW | F40: -0.5267 | G40: 1500 | H40: -790.05 | K40: 1500 | L40: 0 | N40: 790.05 | O40: -1
B41: CGAAP Accounting Change | D41: per kW | G41: 1500 | H41: 0 | J41: -0.2034 | K41: 1500 | L41: -305.1 | N41: -305.1
B42: Low Voltage Service Charge | D42: per kW | F42: 0.1497 | G42: =$F$17 -> 1500 | H42: =G42*F42 -> 224.55 | J42: 0.2597 | K42: =$F$17 -> 1500 | L42: =K42*J42 -> 389.55 | N42: =L42-H42 -> 165 | O42: =IF((H42)=0,"",(N42/H42)) -> 0.7348029392
B43: Smart Meter Entity Charge | D43: Monthly | K43: 1 | L43: =K43*J43 -> 0 | N43: =L43-H43 -> 0
B44: Sub-Total B - Distribution (includes Sub-Total A) | H44: =SUM(H38:H42)+H37 -> 17554.96 | L44: =SUM(L38:L42)+L37 -> 18039.04 | N44: =L44-H44 -> 484.08 | O44: =IF((H44)=0,"",(N44/H44)) -> 0.02757511267
B45: RTSR - Network | D45: per kW | F45: 1.835 | G45: =$F$17*(1+F$71) -> 1573.05 | H45: =G45*F45 -> 2886.54675 | J45: 1.8945 | K45: =$F$17*(1+J$71) -> 1582.2 | L45: =K45*J45 -> 2997.4779 | N45: 110.93115 | O45: 0.03843040131
B46: RTSR - Line and Transformation Connection | D46: per kW | F46: 1.2884 | G46: =$F$17*(1+F$71) -> 1573.05 | H46: =G46*F46 -> 2026.71762 | J46: 1.269 | K46: =$F$17*(1+J$71) -> 1582.2 | L46: =K46*J46 -> 2007.8118 | N46: -18.90582 | O46: -0.009328295078
B47: Sub-Total C - Delivery (including Sub-Total B) | H47: =SUM(H44:H46) -> 22468.22437 | L47: =SUM(L44:L46) -> 23044.3297 | N47: 576.10533 | O47: 0.02564089269
B48: Wholesale Market Service Charge (WMSC) | D48: per kWh | F48: 0.0052 | G48: =F16 -> 600000 | H48: =G48*F48 -> 3120 | J48: 0.0044 | K48: =F16*(1+J71) -> 632880 | L48: =K48*J48 -> 2784.672 | N48: -335.328 | O48: -0.1074769231
B49: Rural and Remote Rate Protection (RRRP) | D49: per kWh | F49: 0.0011 | G49: =F16 -> 600000 | H49: 660 | J49: 0.0012 | K49: =K48 -> 632880 | L49: 759.456 | N49: 99.456 | O49: 0.1506909091
B50: Standard Supply Service Charge | D50: Monthly | F50: 0.25 | G50: 1 | H50: 0.25 | J50: =F50 -> 0.25 | K50: 1 | L50: 0.25 | N50: 0 | O50: 0
B51: Debt Retirement Charge (DRC) | D51: per kWh | F51: =0.0067 -> 0.0067 | G51: =F16 -> 600000 | H51: 4020 | J51: =F51 -> 0.0067 | K51: =K49 -> 632880 | L51: 4240.296 | N51: 220.296 | O51: 0.0548
B52: Energy - RPP - Tier 1 | F52: 0.075 | G52: =IF($T$1=1,IF($F$16>=600,600,IF($F$16<600,$F$16*(1+$F$71),$F$16-600)),IF($T$1=2,IF($F$16>=1000,1000,IF($F$16<1000,$F$16*(1+$F$71),$F$16-1000)))) -> 1000 | H52: =G52*F52 -> 75 | J52: 0.078 | K52: =IF($T$1=1,IF($F$16>=600,600,IF($F$16<600,$F$16*(1+$F$71),$F$16-600)),IF($T$1=2,IF($F$16>=1000,1000,IF($F$16<1000,$F$16*(1+$F$71),$F$16-1000)))) -> 1000 | L52: =K52*J52 -> 78 | N52: 3 | O52: 0.04
B53: Energy - RPP - Tier 2 | F53: 0.088 | G53: =IF($T$1=1,IF($F$16>=600,$F$16*(1+$F$71)-600,IF($F$16<600,0,)), IF($T$1=2,IF($F$16>=1000,$F$16*(1+$F$71)-1000,IF($F$16<1000,0)))) -> 628220 | H53: =G53*F53 -> 55283.36 | J53: 0.091 | K53: =IF($T$1=1,IF($F$16>=600,$F$16*(1+$F$71)-600,IF($F$16<600,0,)), IF($T$1=2,IF($F$16>=1000,$F$16*(1+$F$71)-1000,IF($F$16<1000,0)))) -> 628220 | L53: =K53*J53 -> 57168.02 | N53: 1884.66 | O53: 0.03409090909
B54: TOU - Off Peak | F54: 0.065 | G54: =0.64*$F$16*(1+$F$71) -> 402700.8 | H54: 26175.552 | J54: 0.067 | K54: =0.64*$F$16*(1+$F$71) -> 402700.8 | L54: 26980.9536 | N54: 805.4016 | O54: 0.03076923077
B55: TOU - Mid Peak | F55: 0.1 | G55: =0.18*$F$16*(1+$F$71) -> 113259.6 | H55: 11325.96 | J55: 0.104 | K55: =0.18*$F$16*(1+$F$71) -> 113259.6 | L55: 11778.9984 | N55: 453.0384 | O55: 0.04
B56: TOU - On Peak | F56: 0.117 | G56: =0.18*$F$16*(1+$F$71) -> 113259.6 | H56: 13251.3732 | J56: 0.124 | K56: =0.18*$F$16*(1+$F$71) -> 113259.6 | L56: 14044.1904 | N56: 792.8172 | O56: 0.05982905983
B58: Total Bill on RPP (before Taxes) | H58: =SUM(H47:H53) -> 85626.83437 | L58: =SUM(L47:L53) -> 88075.0237 | N58: 2448.18933 | O58: 0.02859137965
B59: HST | F59: 0.13 | H59: =H58*F59 -> 11131.48847 | J59: 0.13 | L59: =L58*J59 -> 11449.75308 | N59: 318.2646129 | O59: 0.02859137965
B60: Total Bill (including HST) | H60: =H58+H59 -> 96758.32284 | L60: =L58+L59 -> 99524.77678 | N60: 2766.453943 | O60: 0.02859137965
B61: Ontario Clean Energy Benefit 1 | H61: =ROUND(-H60*10%,2) -> -9675.83 | L61: =ROUND(-L60*10%,2) -> -9952.48 | N61: -276.65 | O61: 0.0285918624
B62: Total Bill on RPP (including OCEB) | H62: =SUM(H60:H61) -> 87082.49284 | L62: =SUM(L60:L61) -> 89572.29678 | N62: 2489.803943 | O62: 0.02859132601
B64: Total Bill on TOU (before Taxes) | H64: =SUM(H47:H51,H54:H56) -> 81021.35957 | L64: =SUM(L47:L51,L54:L56) -> 83633.1461 | N64: =L64-H64 -> 2611.78653 | O64: =IF((H64)=0,"",(N64/H64)) -> 0.03223577763
B65: HST | F65: 0.13 | H65: =H64*F65 -> 10532.77674 | J65: 0.13 | L65: =L64*J65 -> 10872.30899 | N65: 339.5322489 | O65: 0.03223577763
B66: Total Bill (including HST) | H66: =H64+H65 -> 91554.13631 | L66: =L64+L65 -> 94505.45509 | N66: 2951.318779 | O66: 0.03223577763
B67: Ontario Clean Energy Benefit 1 | H67: =ROUND(-H66*10%,2) -> -9155.41 | L67: =ROUND(-L66*10%,2) -> -9450.55 | N67: -295.14 | O67: 0.03223667755
B68: Total Bill on TOU (including OCEB) | H68: =H66+H67 -> 82398.72631 | L68: =L66+L67 -> 85054.90509 | N68: 2656.178779 | O68: 0.03223567763
B71: Loss Factor (%) | F71: 0.0487 | J71: 0.0548
A73: 1 Applicable to eligible customers only. Refer to the Ontario Clean Energy Benefit Act, 2010.
A75: Note that the "Charge $" columns provide breakdowns of the amounts that each bill component contributes to the total monthly bill at the referenced
A76: consumption level at existing and proposed rates.
A78: Applicants must provide bill impacts for residential at 800 kWh and GS<50kW at 2000 kWh. In addition, their filing should cover the range that is relevant
A79: to their service territory, class by class. A general guideline of consumption levels follows:
A81: Residential (kWh) - 100, 250, 500, 800, 1000, 1500, 2000
A82: GS<50kW (kWh) - 1000, 2000, 5000, 10000, 15000
A83: GS>50kW (kW) - 60, 100, 500, 1000
A84: Large User - range appropriate for utility
A85: Lighting Classes and USL - 150 kWh and 1 kW, range appropriate for utility.

Sheet App.2-W_Bill Impacts_SentLght
N1: File Number: | O1: ='LDC Info'!$E$18 -> EB-2012-0160 | T1: 2
N2: Exhibit: | O2: 8
N3: Tab: | O3: Appendix M
N4: Schedule:
N5: Page:
N7: Date:
B10: Appendix 2-W
B11: Bill Impacts
B14: Customer Class: | D14: Sentinel Lighting
D16: Consumption | F16: 150 | G16: kWh
F17: 1 | G17: kW
F18: Current Board-Approved | J18: Proposed | N18: Impact
D19: Charge Unit | F19: Rate | G19: Volume | H19: Charge | J19: Rate | K19: Volume | L19: Charge | N19: $ Change | O19: % Change
F20: ($) | H20: ($) | J20: ($) | L20: ($)
B21: Monthly Service Charge | D21: Monthly | F21: 3.73 | G21: 1 | H21: =G21*F21 -> 3.73 | J21: 11.29 | K21: 1 | L21: =K21*J21 -> 11.29 | N21: =L21-H21 -> 7.56 | O21: =IF((H21)=0,"",(N21/H21)) -> 2.026809651
B22: Smart Meter Rate Adder | D22: Monthly | G22: 1 | H22: =G22*F22 -> 0 | K22: 1 | L22: =K22*J22 -> 0 | N22: =L22-H22 -> 0 | O22: =IF((H22)=0,"",(N22/H22)) -> 
B23: Monthly Service Charge Deferral | D23: Monthly | G23: 1 | H23: 0 | J23: 1.1 | K23: 1 | L23: =K23*J23 -> 1.1 | N23: =L23-H23 -> 1.1 | O23: =IF((H23)=0,"",(N23/H23)) -> 
B24: Distribution Volumetric Deferral | D24: per kW | G24: 1 | H24: 0 | J24: -6.3026 | K24: 1 | L24: -6.3026 | N24: -6.3026
G25: 1 | H25: 0 | K25: 1 | L25: 0 | N25: 0
G26: 1 | H26: 0 | K26: 1 | L26: 0 | N26: 0
B27: Distribution Volumetric Rate | D27: per kW | F27: 17.83 | G27: =$F$17 -> 1 | H27: 17.83 | J27: 4.4976 | K27: =$F$17 -> 1 | L27: 4.4976 | N27: -13.3324 | O27: -0.7477509815
B28: Smart Meter Disposition Rider | D28: Monthly | G28: 1 | H28: 0 | J28: =F28 -> 0 | K28: 1 | L28: 0 | N28: 0
B29: LRAM & SSM Rate Rider | D29: per kW | G29: =$F$17 -> 1 | H29: 0 | K29: =$F$17 -> 1 | L29: 0 | N29: 0
G30: =$F$16 -> 150 | H30: 0 | K30: =$F$16 -> 150 | L30: 0 | N30: 0
G31: 150 | H31: 0 | K31: 150 | L31: 0 | N31: 0
G32: 150 | H32: 0 | K32: 150 | L32: 0 | N32: 0
G33: 150 | H33: 0 | K33: 150 | L33: 0 | N33: 0
G34: 150 | H34: 0 | K34: 150 | L34: 0 | N34: 0
G35: 150 | H35: 0 | K35: 150 | L35: 0 | N35: 0
G36: 150 | H36: 0 | K36: 150 | L36: 0 | N36: 0
B37: Sub-Total A | H37: =SUM(H21:H36) -> 21.56 | L37: =SUM(L21:L36) -> 10.585 | N37: -10.975 | O37: -0.5090445269
B38: Deferral/Variance Account Disposition Rate Rider | D38: per kW | F38: -0.5502 | G38: =$F$17 -> 1 | H38: =G38*F38 -> -0.5502 | J38: -0.676 | K38: =$F$17 -> 1 | L38: =K38*J38 -> -0.676 | N38: =L38-H38 -> -0.1258 | O38: =IF((H38)=0,"",(N38/H38)) -> 0.2286441294
B39: Tax Change Rate Rider | D39: per kW | F39: -0.5203 | G39: =$F$17 -> 1 | H39: =G39*F39 -> -0.5203 | K39: =$F$17 -> 1 | L39: =K39*J39 -> 0 | N39: =L39-H39 -> 0.5203 | O39: =IF((H39)=0,"",(N39/H39)) -> -1
B40: Global Adj Disposition Rider | D40: per kW | F40: -0.5592 | G40: 1 | H40: -0.5592 | K40: 1 | L40: 0 | N40: 0.5592 | O40: -1
B41: CGAAP Accounting Change | D41: per kW | G41: 1 | H41: 0 | J41: -0.0896 | K41: 1 | L41: -0.0896 | N41: -0.0896
B42: Low Voltage Service Charge | D42: per kW | F42: 0.1532 | G42: =$F$17 -> 1 | H42: =G42*F42 -> 0.1532 | J42: 0.2659 | K42: =$F$17 -> 1 | L42: =K42*J42 -> 0.2659 | N42: =L42-H42 -> 0.1127 | O42: =IF((H42)=0,"",(N42/H42)) -> 0.7356396867
B43: Smart Meter Entity Charge | D43: Monthly | K43: 1 | L43: =K43*J43 -> 0 | N43: =L43-H43 -> 0
B44: Sub-Total B - Distribution (includes Sub-Total A) | H44: =SUM(H38:H42)+H37 -> 20.0835 | L44: =SUM(L38:L42)+L37 -> 10.0853 | N44: =L44-H44 -> -9.9982 | O44: =IF((H44)=0,"",(N44/H44)) -> -0.4978315533
B45: RTSR - Network | D45: per kW | F45: 1.8487 | G45: =$F$17*(1+F$71) -> 1.0487 | H45: =G45*F45 -> 1.93873169 | J45: 1.9086 | K45: =$F$17*(1+J$71) -> 1.0548 | L45: =K45*J45 -> 2.01319128 | N45: 0.07445959 | O45: 0.0384063408
B46: RTSR - Line and Transformation Connection | D46: per kW | F46: 1.3191 | G46: =$F$17*(1+F$71) -> 1.0487 | H46: =G46*F46 -> 1.38334017 | J46: 1.2992 | K46: =$F$17*(1+J$71) -> 1.0548 | L46: =K46*J46 -> 1.37039616 | N46: -0.01294401 | O46: -0.009357069418
B47: Sub-Total C - Delivery (including Sub-Total B) | H47: =SUM(H44:H46) -> 23.40557186 | L47: =SUM(L44:L46) -> 13.46888744 | N47: -9.93668442 | O47: -0.4245435437
B48: Wholesale Market Service Charge (WMSC) | D48: per kWh | F48: 0.0052 | G48: =F16 -> 150 | H48: =G48*F48 -> 0.78 | J48: 0.0044 | K48: =F16*(1+J71) -> 158.22 | L48: =K48*J48 -> 0.696168 | N48: -0.083832 | O48: -0.1074769231
B49: Rural and Remote Rate Protection (RRRP) | D49: per kWh | F49: 0.0011 | G49: =F16 -> 150 | H49: 0.165 | J49: 0.0012 | K49: =K48 -> 158.22 | L49: 0.189864 | N49: 0.024864 | O49: 0.1506909091
B50: Standard Supply Service Charge | D50: Monthly | F50: 0.25 | G50: 1 | H50: 0.25 | J50: =F50 -> 0.25 | K50: 1 | L50: 0.25 | N50: 0 | O50: 0
B51: Debt Retirement Charge (DRC) | D51: per kWh | F51: =0.0067 -> 0.0067 | G51: =F16 -> 150 | H51: 1.005 | J51: =F51 -> 0.0067 | K51: =K49 -> 158.22 | L51: 1.060074 | N51: 0.055074 | O51: 0.0548
B52: Energy - RPP - Tier 1 | F52: 0.075 | G52: =IF($T$1=1,IF($F$16>=600,600,IF($F$16<600,$F$16*(1+$F$71),$F$16-600)),IF($T$1=2,IF($F$16>=1000,1000,IF($F$16<1000,$F$16*(1+$F$71),$F$16-1000)))) -> 157.305 | H52: =G52*F52 -> 11.797875 | J52: 0.078 | K52: =IF($T$1=1,IF($F$16>=600,600,IF($F$16<600,$F$16*(1+$F$71),$F$16-600)),IF($T$1=2,IF($F$16>=1000,1000,IF($F$16<1000,$F$16*(1+$F$71),$F$16-1000)))) -> 157.305 | L52: =K52*J52 -> 12.26979 | N52: 0.471915 | O52: 0.04
B53: Energy - RPP - Tier 2 | F53: 0.088 | G53: =IF($T$1=1,IF($F$16>=600,$F$16*(1+$F$71)-600,IF($F$16<600,0,)), IF($T$1=2,IF($F$16>=1000,$F$16*(1+$F$71)-1000,IF($F$16<1000,0)))) -> 0 | H53: =G53*F53 -> 0 | J53: 0.091 | K53: =IF($T$1=1,IF($F$16>=600,$F$16*(1+$F$71)-600,IF($F$16<600,0,)), IF($T$1=2,IF($F$16>=1000,$F$16*(1+$F$71)-1000,IF($F$16<1000,0)))) -> 0 | L53: =K53*J53 -> 0 | N53: 0
B54: TOU - Off Peak | F54: 0.065 | G54: =0.64*$F$16*(1+$F$71) -> 100.6752 | H54: 6.543888 | J54: 0.067 | K54: =0.64*$F$16*(1+$F$71) -> 100.6752 | L54: 6.7452384 | N54: 0.2013504 | O54: 0.03076923077
B55: TOU - Mid Peak | F55: 0.1 | G55: =0.18*$F$16*(1+$F$71) -> 28.3149 | H55: 2.83149 | J55: 0.104 | K55: =0.18*$F$16*(1+$F$71) -> 28.3149 | L55: 2.9447496 | N55: 0.1132596 | O55: 0.04
B56: TOU - On Peak | F56: 0.117 | G56: =0.18*$F$16*(1+$F$71) -> 28.3149 | H56: 3.3128433 | J56: 0.124 | K56: =0.18*$F$16*(1+$F$71) -> 28.3149 | L56: 3.5110476 | N56: 0.1982043 | O56: 0.05982905983
B58: Total Bill on RPP (before Taxes) | H58: =SUM(H47:H53) -> 37.40344686 | L58: =SUM(L47:L53) -> 27.93478344 | N58: -9.46866342 | O58: -0.2531494879
B59: HST | F59: 0.13 | H59: =H58*F59 -> 4.862448092 | J59: 0.13 | L59: =L58*J59 -> 3.631521847 | N59: -1.230926245 | O59: -0.2531494879
B60: Total Bill (including HST) | H60: =H58+H59 -> 42.26589495 | L60: =L58+L59 -> 31.56630529 | N60: -10.69958966 | O60: -0.2531494879
B61: Ontario Clean Energy Benefit 1 | H61: =ROUND(-H60*10%,2) -> -4.23 | L61: =ROUND(-L60*10%,2) -> -3.16 | N61: 1.07 | O61: -0.2529550827
B62: Total Bill on RPP (including OCEB) | H62: =SUM(H60:H61) -> 38.03589495 | L62: =SUM(L60:L61) -> 28.40630529 | N62: -9.629589665 | O62: -0.2531711079
B64: Total Bill on TOU (before Taxes) | H64: =SUM(H47:H51,H54:H56) -> 38.29379316 | L64: =SUM(L47:L51,L54:L56) -> 28.86602904 | N64: =L64-H64 -> -9.42776412 | O64: =IF((H64)=0,"",(N64/H64)) -> -0.2461956192
B65: HST | F65: 0.13 | H65: =H64*F65 -> 4.978193111 | J65: 0.13 | L65: =L64*J65 -> 3.752583775 | N65: -1.225609336 | O65: -0.2461956192
B66: Total Bill (including HST) | H66: =H64+H65 -> 43.27198627 | L66: =L64+L65 -> 32.61861282 | N66: -10.65337346 | O66: -0.2461956192
B67: Ontario Clean Energy Benefit 1 | H67: =ROUND(-H66*10%,2) -> -4.33 | L67: =ROUND(-L66*10%,2) -> -3.26 | N67: 1.07 | O67: -0.247113164
B68: Total Bill on TOU (including OCEB) | H68: =H66+H67 -> 38.94198627 | L68: =L66+L67 -> 29.35861282 | N68: -9.583373456 | O68: -0.2460935965
B71: Loss Factor (%) | F71: 0.0487 | J71: 0.0548
A73: 1 Applicable to eligible customers only. Refer to the Ontario Clean Energy Benefit Act, 2010.
A75: Note that the "Charge $" columns provide breakdowns of the amounts that each bill component contributes to the total monthly bill at the referenced
A76: consumption level at existing and proposed rates.
A78: Applicants must provide bill impacts for residential at 800 kWh and GS<50kW at 2000 kWh. In addition, their filing should cover the range that is relevant
A79: to their service territory, class by class. A general guideline of consumption levels follows:
A81: Residential (kWh) - 100, 250, 500, 800, 1000, 1500, 2000
A82: GS<50kW (kWh) - 1000, 2000, 5000, 10000, 15000
A83: GS>50kW (kW) - 60, 100, 500, 1000
A84: Large User - range appropriate for utility
A85: Lighting Classes and USL - 150 kWh and 1 kW, range appropriate for utility.

Sheet App.2-W_Bill Impacts_USL
N1: File Number: | O1: ='LDC Info'!$E$18 -> EB-2012-0160 | T1: 2
N2: Exhibit: | O2: 8
N3: Tab: | O3: Appendix M
N4: Schedule:
N5: Page:
N7: Date:
B10: Appendix 2-W
B11: Bill Impacts
B14: Customer Class: | D14: Unmetered Scattered Load
D16: Consumption | F16: 35000 | G16: kWh
F18: Current Board-Approved | J18: Proposed | N18: Impact
D19: Charge Unit | F19: Rate | G19: Volume | H19: Charge | J19: Rate | K19: Volume | L19: Charge | N19: $ Change | O19: % Change
F20: ($) | H20: ($) | J20: ($) | L20: ($)
B21: Monthly Service Charge | D21: Monthly | F21: 11.1 | G21: 1 | H21: =G21*F21 -> 11.1 | J21: 2.03 | K21: 1 | L21: =K21*J21 -> 2.03 | N21: =L21-H21 -> -9.07 | O21: =IF((H21)=0,"",(N21/H21)) -> -0.8171171171
B22: Smart Meter Rate Adder | D22: Monthly | G22: 1 | H22: =G22*F22 -> 0 | K22: 1 | L22: =K22*J22 -> 0 | N22: =L22-H22 -> 0 | O22: =IF((H22)=0,"",(N22/H22)) -> 
B23: Monthly Service Charge Deferral | D23: Monthly | G23: 1 | H23: 0 | J23: -4.54 | K23: 1 | L23: =K23*J23 -> -4.54 | N23: =L23-H23 -> -4.54 | O23: =IF((H23)=0,"",(N23/H23)) -> 
B24: Distribution Volumetric Deferral | D24: per kWh | G24: 1 | H24: 0 | J24: -0.0565 | K24: =$F$16 -> 35000 | L24: -1977.5 | N24: -1977.5
G25: 1 | H25: 0 | K25: 1 | L25: 0 | N25: 0
G26: 1 | H26: 0 | K26: 1 | L26: 0 | N26: 0
B27: Distribution Volumetric Rate | D27: per kWh | F27: 0.1464 | G27: =$F$16 -> 35000 | H27: 5124 | J27: 0.0268 | K27: =$F$16 -> 35000 | L27: 938 | N27: -4186 | O27: -0.8169398907
B28: Smart Meter Disposition Rider | D28: Monthly | G28: 1 | H28: 0 | J28: =F28 -> 0 | K28: 1 | L28: 0 | N28: 0
B29: LRAM & SSM Rate Rider | D29: per kWh | G29: =$F$16 -> 35000 | H29: 0 | K29: =$F$16 -> 35000 | L29: 0 | N29: 0
G30: =$F$16 -> 35000 | H30: 0 | K30: 35000 | L30: 0 | N30: 0
G31: 35000 | H31: 0 | K31: 35000 | L31: 0 | N31: 0
G32: 35000 | H32: 0 | K32: 35000 | L32: 0 | N32: 0
G33: 35000 | H33: 0 | K33: 35000 | L33: 0 | N33: 0
G34: 35000 | H34: 0 | K34: 35000 | L34: 0 | N34: 0
G35: 35000 | H35: 0 | K35: 35000 | L35: 0 | N35: 0
G36: 35000 | H36: 0 | K36: 35000 | L36: 0 | N36: 0
B37: Sub-Total A | H37: =SUM(H21:H36) -> 5135.1 | L37: =SUM(L21:L36) -> -1042.01 | N37: -6177.11 | O37: -1.202919125
B38: Deferral/Variance Account Disposition Rate Rider | D38: per kWh | F38: -0.0015 | G38: =$F$16 -> 35000 | H38: =G38*F38 -> -52.5 | J38: -0.0019 | K38: =$F$16 -> 35000 | L38: =K38*J38 -> -66.5 | N38: =L38-H38 -> -14 | O38: =IF((H38)=0,"",(N38/H38)) -> 0.2666666667
B39: Tax Change Rate Rider | D39: per kWh | F39: -0.0033 | G39: =$F$16 -> 35000 | H39: =G39*F39 -> -115.5 | K39: =$F$16 -> 35000 | L39: =K39*J39 -> 0 | N39: =L39-H39 -> 115.5 | O39: =IF((H39)=0,"",(N39/H39)) -> -1
B40: Global Adj Disposition Rider | D40: per kWh | F40: -0.0015 | G40: 35000 | H40: -52.5 | K40: 35000 | L40: 0 | N40: 52.5 | O40: -1
B41: CGAAP Accounting Change | D41: per kWh | G41: 35000 | H41: 0 | J41: -0.0002 | K41: 35000 | L41: -7 | N41: -7
B42: Low Voltage Service Charge | D42: per kWh | F42: 0.0005 | G42: 35000 | H42: =G42*F42 -> 17.5 | J42: 0.0009 | K42: 35000 | L42: =K42*J42 -> 31.5 | N42: =L42-H42 -> 14 | O42: =IF((H42)=0,"",(N42/H42)) -> 0.8
B43: Smart Meter Entity Charge | D43: Monthly | K43: 1 | L43: =K43*J43 -> 0 | N43: =L43-H43 -> 0
B44: Sub-Total B - Distribution (includes Sub-Total A) | H44: =SUM(H38:H42)+H37 -> 4932.1 | L44: =SUM(L38:L42)+L37 -> -1084.01 | N44: =L44-H44 -> -6016.11 | O44: =IF((H44)=0,"",(N44/H44)) -> -1.219786703
B45: RTSR - Network | D45: per kWh | F45: 0.006 | G45: =F16*(1+F71) -> 36704.5 | H45: =G45*F45 -> 220.227 | J45: 0.0062 | K45: =F16*(1+J71) -> 36918 | L45: =K45*J45 -> 228.8916 | N45: 8.6646 | O45: 0.03934394965
B46: RTSR - Line and Transformation Connection | D46: per kWh | F46: 0.0043 | G46: =G45 -> 36704.5 | H46: =G46*F46 -> 157.82935 | J46: 0.0042 | K46: =K45 -> 36918 | L46: =K46*J46 -> 155.0556 | N46: -2.77375 | O46: -0.01757436117
B47: Sub-Total C - Delivery (including Sub-Total B) | H47: =SUM(H44:H46) -> 5310.15635 | L47: =SUM(L44:L46) -> -700.0628 | N47: -6010.21915 | O47: -1.131834687
B48: Wholesale Market Service Charge (WMSC) | D48: per kWh | F48: 0.0052 | G48: =G46 -> 36704.5 | H48: =G48*F48 -> 190.8634 | J48: 0.0044 | K48: =K46 -> 36918 | L48: =K48*J48 -> 162.4392 | N48: -28.4242 | O48: -0.1489243092
B49: Rural and Remote Rate Protection (RRRP) | D49: per kWh | F49: 0.0011 | G49: =G46 -> 36704.5 | H49: 40.37495 | J49: 0.0012 | K49: =K46 -> 36918 | L49: 44.3016 | N49: 3.92665 | O49: 0.0972546096
B50: Standard Supply Service Charge | D50: Monthly | F50: 0.25 | G50: 1 | H50: 0.25 | J50: =F50 -> 0.25 | K50: 1 | L50: 0.25 | N50: 0 | O50: 0
B51: Debt Retirement Charge (DRC) | D51: per kWh | F51: =0.0067 -> 0.0067 | G51: =G49 -> 36704.5 | H51: 245.92015 | J51: =F51 -> 0.0067 | K51: =K49 -> 36918 | L51: 247.3506 | N51: 1.43045 | O51: 0.00581672547
B52: Energy - RPP - Tier 1 | F52: 0.075 | G52: =IF($T$1=1,IF($F$16>=600,600,IF($F$16<600,$F$16*(1+$F$71),$F$16-600)),IF($T$1=2,IF($F$16>=1000,1000,IF($F$16<1000,$F$16*(1+$F$71),$F$16-1000)))) -> 1000 | H52: =G52*F52 -> 75 | J52: 0.078 | K52: =IF($T$1=1,IF($F$16>=600,600,IF($F$16<600,$F$16*(1+$J$71),$F$16-600)),IF($T$1=2,IF($F$16>=1000,1000,IF($F$16<1000,$F$16*(1+$J$71),$F$16-1000)))) -> 1000 | L52: =K52*J52 -> 78 | N52: 3 | O52: 0.04
B53: Energy - RPP - Tier 2 | F53: 0.088 | G53: =IF($T$1=1,IF($F$16>=600,$F$16*(1+$F$71)-600,IF($F$16<600,0,)), IF($T$1=2,IF($F$16>=1000,$F$16*(1+$F$71)-1000,IF($F$16<1000,0)))) -> 35704.5 | H53: =G53*F53 -> 3141.996 | J53: 0.091 | K53: =IF($T$1=1,IF($F$16>=600,$F$16*(1+$J$71)-600,IF($F$16<600,0,)), IF($T$1=2,IF($F$16>=1000,$F$16*(1+$J$71)-1000,IF($F$16<1000,0)))) -> 35918 | L53: =K53*J53 -> 3268.538 | N53: 126.542 | O53: 0.04027439882
B54: TOU - Off Peak | F54: 0.065 | G54: =0.64*$F$16*(1+$F$71) -> 23490.88 | H54: 1526.9072 | J54: 0.067 | K54: =0.64*$F$16*(1+$J$71) -> 23627.52 | L54: 1583.04384 | N54: 56.13664 | O54: 0.03676493241
B55: TOU - Mid Peak | F55: 0.1 | G55: =0.18*$F$16*(1+$F$71) -> 6606.81 | H55: 660.681 | J55: 0.104 | K55: =0.18*$F$16*(1+$J$71) -> 6645.24 | L55: 691.10496 | N55: 30.42396 | O55: 0.04604939449
B56: TOU - On Peak | F56: 0.117 | G56: =0.18*$F$16*(1+$F$71) -> 6606.81 | H56: 772.99677 | J56: 0.124 | K56: =0.18*$F$16*(1+$J$71) -> 6645.24 | L56: 824.00976 | N56: 51.01299 | O56: 0.06599379451
B58: Total Bill on RPP (before Taxes) | H58: =SUM(H47:H53) -> 9004.56085 | L58: =SUM(L47:L53) -> 3100.8166 | N58: -5903.74425 | O58: -0.6556393308
B59: HST | F59: 0.13 | H59: =H58*F59 -> 1170.592911 | J59: 0.13 | L59: =L58*J59 -> 403.106158 | N59: -767.4867525 | O59: -0.6556393308
B60: Total Bill (including HST) | H60: =H58+H59 -> 10175.15376 | L60: =L58+L59 -> 3503.922758 | N60: -6671.231002 | O60: -0.6556393308
B61: Ontario Clean Energy Benefit 1 | H61: =ROUND(-H60*10%,2) -> -1017.52 | L61: =ROUND(-L60*10%,2) -> -350.39 | N61: 667.13 | O61: -0.6556431323
B62: Total Bill on RPP (including OCEB) | H62: =SUM(H60:H61) -> 9157.63376 | L62: =SUM(L60:L61) -> 3153.532758 | N62: -6004.101002 | O62: -0.6556389084
B64: Total Bill on TOU (before Taxes) | H64: =SUM(H47:H51,H54:H56) -> 8748.14982 | L64: =SUM(L47:L51,L54:L56) -> 2852.43716 | N64: =L64-H64 -> -5895.71266 | O64: =IF((H64)=0,"",(N64/H64)) -> -0.6739382362
B65: HST | F65: 0.13 | H65: =H64*F65 -> 1137.259477 | J65: 0.13 | L65: =L64*J65 -> 370.8168308 | N65: -766.4426458 | O65: -0.6739382362
B66: Total Bill (including HST) | H66: =H64+H65 -> 9885.409297 | L66: =L64+L65 -> 3223.253991 | N66: -6662.155306 | O66: -0.6739382362
B67: Ontario Clean Energy Benefit 1 | H67: =ROUND(-H66*10%,2) -> -988.54 | L67: =ROUND(-L66*10%,2) -> -322.33 | N67: 666.21 | O67: -0.6739332753
B68: Total Bill on TOU (including OCEB) | H68: =H66+H67 -> 8896.869297 | L68: =L66+L67 -> 2900.923991 | N68: -5995.945306 | O68: -0.6739387874
B71: Loss Factor (%) | F71: 0.0487 | J71: 0.0548
A73: 1 Applicable to eligible customers only. Refer to the Ontario Clean Energy Benefit Act, 2010.
A75: Note that the "Charge $" columns provide breakdowns of the amounts that each bill component contributes to the total monthly bill at the referenced
A76: consumption level at existing and proposed rates.
A78: Applicants must provide bill impacts for residential at 800 kWh and GS<50kW at 2000 kWh. In addition, their filing should cover the range that is relevant
A79: to their service territory, class by class. A general guideline of consumption levels follows:
A81: Residential (kWh) - 100, 250, 500, 800, 1000, 1500, 2000
A82: GS<50kW (kWh) - 1000, 2000, 5000, 10000, 15000
A83: GS>50kW (kW) - 60, 100, 500, 1000
A84: Large User - range appropriate for utility
A85: Lighting Classes and USL - 150 kWh and 1 kW, range appropriate for utility.

Sheet App.2-X_CoS_Flowchart
F1: File Number: | G1: ='LDC Info'!$E$18 -> EB-2012-0160
F2: Exhibit:
F3: Tab:
F4: Schedule:
F5: Page:
F7: Date:
B13: Appendix 2-X
B14: Cost of Service Rate Application Schematic
B16: The Cost of Service Rate Application Schematic is a flowchart appended to Chapter 2 of the Filing Requirements as a guide for the components of an application and how demand and costs interrelate to derive the revenue requirement and then how the revenue requirement is allocated between classes and through fixed/variable splits to derive rates that will be compensatory for the annual revenue requirement, based on the the forecasted demand. There is no form to be filled out; therefore, this Schedule is not required to be filed.
